Workbook

Sheet Ciampino
A1: Comune di Ciampino - Redditi 2012-2016
A2: Anno di imposta | B2: 2012 | C2: 2013 | D2: 2014 | E2: 2015 | F2: 2016 | G2: Vari. 2016 su 2015
A3: Numero contribuenti | B3: 24795 | C3: 24420 | D3: 24375 | E3: 24550 | F3: 24806 | G3: =F3-E3 -> 256
A4: Residenti | B4: 37332 | C4: 38145 | D4: 38417 | E4: 38412 | F4: 38533 | G4: =F4-E4 -> 121
A5: famiglie | B5: 15923 | C5: 15981 | D5: 16033 | E5: 16094 | F5: 16314 | G5: 220
A6: Incidenza contribuenti/residenti % | B6: =B3/B4*100 -> 66.41755063 | C6: =C3/C4*100 -> 64.01887534 | D6: =D3/D4*100 -> 63.44847333 | E6: =E3/E4*100 -> 63.91231907 | F6: =F3/F4*100 -> 64.37598941 | G6: 0.4636703447
A7: Reddito da fabbricati - Frequenza | B7: 2199 | C7: 5880 | D7: 12228 | E7: 12238 | F7: 12340 | G7: 102
A8: Reddito da fabbricati - Ammontare in euro | B8: 14585947 | C8: 16845210 | D8: 19650551 | E8: 18133745 | F8: 17686024 | G8: -447721
A9: Reddito da lavoro dipendente e assimilati - Frequenza | B9: 13958 | C9: 13654 | D9: 13624 | E9: 13996 | F9: 14306 | G9: 310
A10: Reddito da lavoro dipendente e assimilati - Ammontare in euro | B10: 321161831 | C10: 316912236 | D10: 310841290 | E10: 317131906 | F10: 324408293 | G10: 7276387
A11: Reddito da pensione - Frequenza | B11: 7727 | C11: 7665 | D11: 7669 | E11: 7727 | F11: 7656 | G11: -71
A12: Reddito da pensione - Ammontare in euro | B12: 154344998 | C12: 157703457 | D12: 162006658 | E12: 164404767 | F12: 166442397 | G12: 2037630
A13: Reddito da lavoro autonomo (comprensivo dei valori nulli) - Frequenza | B13: 517 | C13: 503 | D13: 516 | E13: 463 | F13: 426 | G13: -37
A14: Reddito da lavoro autonomo (comprensivo dei valori nulli) - Ammontare in euro | B14: 14238033 | C14: 13393399 | D14: 13331765 | E14: 13237548 | F14: 12656869 | G14: -580679
A15: Reddito di spettanza dell'imprenditore in contabilita' ordinaria (comprensivo dei valori nulli) - Frequenza | B15: 62 | C15: 55 | D15: 52 | E15: 46 | F15: 47 | G15: 1
A16: Reddito di spettanza dell'imprenditore in contabilita' ordinaria (comprensivo dei valori nulli) - Ammontare in euro | B16: 1291700 | C16: 1218390 | D16: 1228032 | E16: 1120933 | F16: 1161917 | G16: 40984
A17: Reddito di spettanza dell'imprenditore in contabilita' semplificata (comprensivo dei valori nulli) - Frequenza | B17: 796 | C17: 726 | D17: 709 | E17: 663 | F17: 622 | G17: -41
A18: Reddito di spettanza dell'imprenditore in contabilita' semplificata (comprensivo dei valori nulli) - Ammontare in euro | B18: 13117118 | C18: 11263375 | D18: 11006520 | E18: 10897159 | F18: 11177108 | G18: 279949
A19: Reddito da partecipazione (comprensivo dei valori nulli) - Frequenza | B19: 789 | C19: 747 | D19: 712 | E19: 647 | F19: 630 | G19: -17
A20: Reddito da partecipazione (comprensivo dei valori nulli) - Ammontare in euro | B20: 11033730 | C20: 10742802 | D20: 10467724 | E20: 9900720 | F20: 10078058 | G20: 177338
A21: Reddito complessivo | B21: =B8+B10+B12+B14+B16+B18+B20 -> 529773357 | C21: =C8+C10+C12+C14+C16+C18+C20 -> 528078869 | D21: =D8+D10+D12+D14+D16+D18+D20 -> 528532540 | E21: =E8+E10+E12+E14+E16+E18+E20 -> 534826778 | F21: =F8+F10+F12+F14+F16+F18+F20 -> 543610666 | G21: 8783888
A22: incidenza del reddito da lavoro dipendente % | B22: =B10/B21*100 -> 60.62249578 | C22: =C10/C21*100 -> 60.0122926 | D22: =D10/D21*100 -> 58.81213861 | E22: =E10/E21*100 -> 59.29619066 | F22: =F10/F21*100 -> 59.67658718 | G22: 0.3803965141
A23: reddito al netto delle imposte - escluse le addizionali | B23: =B21-B27 -> 420037710 | C23: =C21-C27 -> 419719148 | D23: =D21-D27 -> 422351468 | E23: =E21-E27 -> 426379991 | F23: =F21-F27 -> 433722851 | G23: 7342860
A24: Reddito imponibile - Frequenza | B24: 23735 | C24: 23371 | D24: 23324 | E24: 23564 | F24: 23725 | G24: 161
A25: Reddito imponibile - Ammontare in euro | B25: 526462426 | C25: 523452962 | D25: 520161885 | E25: 526585177 | F25: 535165329 | G25: 8580152
A26: Imposta netta - Frequenza | B26: 19805 | C26: 19456 | D26: 19344 | E26: 19457 | F26: 19552 | G26: 95
A27: Imposta netta - Ammontare in euro | B27: 109735647 | C27: 108359721 | D27: 106181072 | E27: 108446787 | F27: 109887815 | G27: 1441028
A28: Bonus spettante - Frequenza | F28: 7202 | G28: 7202
A29: Bonus spettante - Ammontare in euro | F29: 5909480 | G29: 5909480
A30: Reddito imponibile addizionale - Frequenza | B30: 19620 | C30: 19276 | D30: 19161 | E30: 19240 | F30: 19338 | G30: 98
A31: Reddito imponibile addizionale - Ammontare in euro | B31: 506275888 | C31: 502184296 | D31: 497293127 | E31: 503595984 | F31: 511180247 | G31: 7584263
A32: Addizionale regionale dovuta - Frequenza | B32: 19613 | C32: 19270 | D32: 19155 | E32: 18934 | F32: 19059 | G32: 125
A33: Addizionale regionale dovuta - Ammontare in euro | B33: 8732720 | C33: 8672340 | D33: 9669478 | E33: 10852539 | F33: 11185568 | G33: 333029
A34: Addizionale comunale dovuta - Frequenza | B34: 19415 | C34: 19021 | D34: 18858 | E34: 18861 | F34: 18925 | G34: 64
A35: Addizionale comunale dovuta - Ammontare in euro | B35: 4026080 | C35: 3997654 | D35: 3954545 | E35: 4000703 | F35: 4058998 | G35: 58295
A36: Reddito complessivo minore o uguale a zero euro - Frequenza | B36: 103 | C36: 119 | D36: 118 | E36: 90 | F36: 90 | G36: 0
A37: Reddito complessivo minore o uguale a zero euro - Ammontare in euro | B37: -548417 | C37: -888924 | D37: -966043 | E37: -950593 | F37: -831959 | G37: 118634
A38: Reddito complessivo da 0 a 10000 euro - Frequenza | B38: 5927 | C38: 5797 | D38: 6115 | E38: 6247 | F38: 6154 | G38: -93
A39: Reddito complessivo da 0 a 10000 euro - Ammontare in euro | B39: 30084862 | C39: 28375207 | D39: 29240498 | E39: 28998374 | F39: 29196738 | G39: 198364
A40: Reddito complessivo da 10000 a 15000 euro - Frequenza | B40: 3016 | C40: 2913 | D40: 2819 | E40: 2934 | F40: 2970 | G40: 36
A41: Reddito complessivo da 10000 a 15000 euro - Ammontare in euro | B41: 37842894 | C41: 36563309 | D41: 35288660 | E41: 36648734 | F41: 37042203 | G41: 393469
A42: Contribuenti da zero a 15.000 € val. % su totale contribuenti | B42: =(B36+B38+B40)/B3*100 -> 36.48316193 | C42: =(C36+C38+C40)/C3*100 -> 36.15479115 | D42: =(D36+D38+D40)/D3*100 -> 37.13641026 | E42: =(E36+E38+E40)/E3*100 -> 37.76374745 | F42: =(F36+F38+F40)/F3*100 -> 37.1442393 | G42: -0.6195081572
A43: Reddito complessivo da 15000 a 26000 euro - Frequenza | B43: 7233 | C43: 7131 | D43: 6999 | E43: 6811 | F43: 6991 | G43: 180
A44: Reddito complessivo da 15000 a 26000 euro - Ammontare in euro | B44: 146753475 | C44: 145600815 | D44: 143022554 | E44: 139263726 | F44: 143075254 | G44: 3811528
A45: Reddito complessivo da 26000 a 55000 euro - Frequenza | B45: 6478 | C45: 6577 | D45: 6722 | E45: 6835 | F45: 6889 | G45: 54
A46: Reddito complessivo da 26000 a 55000 euro - Ammontare in euro | B46: 227403194 | C46: 230054538 | D46: 236074620 | E46: 241388262 | F46: 243634525 | G46: 2246263
A47: Contribuenti da 15 a 55.000 € val. % su totale contribuenti | B47: =(B43+B45)/B3*100 -> 55.297439 | C47: =(C43+C45)/C3*100 -> 56.13431613 | D47: =(D43+D45)/D3*100 -> 56.29128205 | E47: =(E43+E45)/E3*100 -> 55.58452138 | F47: =(F43+F45)/F3*100 -> 55.95420463 | G47: 0.369683243
A48: Reddito complessivo da 55000 a 75000 euro - Frequenza | B48: 628 | C48: 657 | D48: 663 | E48: 691 | F48: 697 | G48: 6
A49: Reddito complessivo da 55000 a 75000 euro - Ammontare in euro | B49: 40003462 | C49: 41739904 | D49: 42196214 | E49: 43766305 | F49: 44392485 | G49: 626180
A50: Reddito complessivo da 75000 a 120000 euro - Frequenza | B50: 426 | C50: 423 | D50: 434 | E50: 473 | F50: 470 | G50: -3
A51: Reddito complessivo da 75000 a 120000 euro - Ammontare in euro | B51: 38665700 | C51: 38560394 | D51: 39363346 | E51: 43023358 | F51: 43055882 | G51: 32524
A52: Reddito complessivo oltre 120000 euro - Frequenza | B52: 116 | C52: 111 | D52: 105 | E52: 103 | F52: 120 | G52: 17
A53: Reddito complessivo oltre 120000 euro - Ammontare in euro | B53: 19477158 | C53: 18767768 | D53: 17399907 | E53: 18090313 | F53: 20563563 | G53: 2473250
A54: Contribuenti oltre i 55.000 € val. % su totale contribuenti | B54: =(B48+B50+B52)/B3*100 -> 4.718693285 | C54: =(C48+C50+C52)/C3*100 -> 4.877149877 | D54: =(D48+D50+D52)/D3*100 -> 4.931282051 | E54: =(E48+E50+E52)/E3*100 -> 5.16089613 | F54: =(F48+F50+F52)/F3*100 -> 5.188260905 | G54: 0.02736477427
A55: Reddito complessivo per fasce di reddito (somma) | B55: =B37+B39+B41+B44+B46+B49+B51+B53 -> 539682328 | C55: =C37+C39+C41+C44+C46+C49+C51+C53 -> 538773011 | D55: =D37+D39+D41+D44+D46+D49+D51+D53 -> 541619756 | E55: =E37+E39+E41+E44+E46+E49+E51+E53 -> 550228479 | F55: =F37+F39+F41+F44+F46+F49+F51+F53 -> 560128691 | G55: 9900212
A56: Reddito medio pere contribuente al netto delle imposte | B56: =B23/B3 -> 16940.41984 | C56: =C23/C3 -> 17187.5163 | D56: =D23/D3 -> 17327.23971 | E56: =E23/E3 -> 17367.82041 | F56: =F23/F3 -> 17484.59449 | G56: 116.7740859
A57: Reddito medio per residente al netto delle imposte | B57: =B23/B4 -> 11251.41193 | C57: =C23/C4 -> 11003.25463 | D57: =D23/D4 -> 10993.86907 | E57: =E23/E4 -> 11100.17679 | F57: =F23/F4 -> 11255.8807 | G57: 155.7039059
A58: Reddito medio per famiglia al netto delle imposte | B58: =B23/B5 -> 26379.30729 | C58: =C23/C5 -> 26263.63482 | D58: =D23/D5 -> 26342.63507 | E58: =E23/E5 -> 26493.10246 | F58: =F23/F5 -> 26585.92932 | G58: 92.82686396

Sheet comuni della Provincia
A1: Comune - codici Istat-cod. catastale- | E1: Contribuenti-residenti e famiglie | H1: REDDITI: tipologia in ammontare € e freq contribuenti | V1: REDDITI: complessivo-netto-x contribuente-xfamiglia-procapite-Agio e Disagio reddituale | AC1: REDDITI-imponibile-imposta-bonus-addizionali | AO1: REDDITI x FASCE: ammontare e freq
A2: Anno di imposta | B2: Codice catastale | C2: Codice Istat Comune | D2: Denominazione Comune | E2: Numero contribuenti | F2: residenti | G2: n Famiglie | H2: da fabbricati - Freq | I2: da fabbricati - euro | J2: da lavoro dipendente e assimilati - Freq | K2: da lavoro dipendente e assimilati - euro | L2: da pensione -freq | M2: da pensione -euro | N2: da lavoro autonomo (+valori nulli) - freq | O2: da lavoro autonomo +valori nulli) - euro | P2: dell'imprenditore in contabilita' ordinaria +valori nulli - freq | Q2: dell'imprenditore in contabilita' ordinaria+valori nulli- euro | R2: dell'imprenditore in contabilita' semplificata +valori nulli - freq | S2: dell'imprenditore in contabilita' semplificata+ valori nulli- euro | T2: da partecipazione +valori nulli- freq | U2: da partecipazione +valori nulli- euro | V2: complessivo | W2: al netto delle imposte | X2: netto X contribuente | Y2: netto X famiglia | Z2: netto procapite | AA2: Disagio reddituale - % contribuenti fino a 10.000€ | AB2: Agio reddituale - % contribuenti oltre 75.000 € | AC2: imponibile - freq | AD2: imponibile - euro | AE2: Imposta netta - freq | AF2: Imposta netta - euro | AG2: Bonus spettante - freq | AH2: Bonus spettante - euro | AI2: imponibile addizionale - freq | AJ2: imponibile addizionale - euro | AK2: Addizionale regionale dovuta - freq | AL2: Addizionale regionale dovuta - euro | AM2: Addizionale comunale dovuta - freq | AN2: Addizionale comunale dovuta - euro | AO2: minore o uguale a zero - freq | AP2: minore o uguale a zero- euro | AQ2: da 0 a 10000 - freq | AR2: da 0 a 10000 - euro | AS2: da 10000 a 15000 - freq | AT2: da 10000 a 15000 - euro | AU2: da 15000 a 26000 - freq | AV2: da 15000 a 26000 - euro | AW2: da 26000 a 55000 - freq | AX2: da 26000 a 55000 -euro | AY2: da 55000 a 75000 - freq | AZ2: da 55000 a 75000 -euro | BA2: da 75000 a 120000 - freq | BB2: da 75000 a 120000 - euro | BC2: oltre 120000 - freq | BD2: oltre 120000 - euro
A3: 2016 | B3: M272 | C3: 58118 | D3: CIAMPINO | E3: 24806 | F3: 38533 | G3: 16314 | H3: 12340 | I3: 17686024 | J3: 14306 | K3: 324408293 | L3: 7656 | M3: 166442397 | N3: 426 | O3: 12656869 | P3: 47 | Q3: 1161917 | R3: 622 | S3: 11177108 | T3: 630 | U3: 10078058 | V3: =I3+K3+M3+O3+Q3+S3+U3 -> 543610666 | W3: =V3-AF3 -> 433722851 | X3: =W3/E3 -> 17484.59449 | Y3: =W3/G3 -> 26585.92932 | Z3: =W3/F3 -> 11255.8807 | AA3: =(AO3+AQ3)/E3*100 -> 25.17132952 | AB3: =(BA3+BC3)/E3*100 -> 2.378456825 | AC3: 23725 | AD3: 535165329 | AE3: 19552 | AF3: 109887815 | AG3: 7202 | AH3: 5909480 | AI3: 19338 | AJ3: 511180247 | AK3: 19059 | AL3: 11185568 | AM3: 18925 | AN3: 4058998 | AO3: 90 | AP3: -831959 | AQ3: 6154 | AR3: 29196738 | AS3: 2970 | AT3: 37042203 | AU3: 6991 | AV3: 143075254 | AW3: 6889 | AX3: 243634525 | AY3: 697 | AZ3: 44392485 | BA3: 470 | BB3: 43055882 | BC3: 120 | BD3: 20563563
A4: 2016 | B4: A062 | C4: 58001 | D4: AFFILE | E4: 947 | F4: 1520 | G4: 632 | H4: 416 | I4: 325870 | J4: 524 | K4: 8834887 | L4: 357 | M4: 5136233 | N4: 8 | O4: 231321 | R4: 24 | S4: 398254 | T4: 20 | U4: 191950 | V4: =I4+K4+M4+O4+Q4+S4+U4 -> 15118515 | W4: =V4-AF4 -> 12835519 | X4: =W4/E4 -> 13553.87434 | Y4: =W4/G4 -> 20309.36551 | Z4: =W4/F4 -> 8444.420395 | AA4: =(AO4+AQ4)/E4*100 -> 34.3189018 | AB4: =(BA4+BC4)/E4*100 -> 0 | AC4: 923 | AD4: 14897725 | AE4: 656 | AF4: 2282996 | AG4: 284 | AH4: 239698 | AI4: 637 | AJ4: 13387655 | AK4: 623 | AL4: 253030 | AM4: 626 | AN4: 68074 | AO4: 0 | AP4: 0 | AQ4: 325 | AR4: 1510028 | AS4: 137 | AT4: 1693091 | AU4: 298 | AV4: 5993946 | AW4: 161 | AX4: 5257045 | AY4: 7 | AZ4: 444690
A5: 2016 | B5: A084 | C5: 58002 | D5: AGOSTA | E5: 1005 | F5: 1758 | G5: 760 | H5: 433 | I5: 303689 | J5: 569 | K5: 11253968 | L5: 346 | M5: 6003394 | P5: 0 | Q5: 0 | R5: 34 | S5: 501513 | T5: 28 | U5: 357984 | V5: =I5+K5+M5+O5+Q5+S5+U5 -> 18420548 | W5: =V5-AF5 -> 15255310 | X5: =W5/E5 -> 15179.41294 | Y5: =W5/G5 -> 20072.77632 | Z5: =W5/F5 -> 8677.650739 | AA5: =(AO5+AQ5)/E5*100 -> 27.1641791 | AB5: =(BA5+BC5)/E5*100 -> 0.3980099502 | AC5: 973 | AD5: 18171080 | AE5: 787 | AF5: 3165238 | AG5: 303 | AH5: 255975 | AI5: 766 | AJ5: 17014183 | AK5: 754 | AL5: 335088 | AM5: 541 | AN5: 61891 | AQ5: 273 | AR5: 1362571 | AS5: 134 | AT5: 1674173 | AU5: 344 | AV5: 6980324 | AW5: 225 | AX5: 7494194 | AY5: 4 | AZ5: 254413 | BA5: 4 | BB5: 324995
A6: 2016 | B6: A132 | C6: 58003 | D6: ALBANO LAZIALE | E6: 25973 | F6: 41654 | G6: 17276 | H6: 11977 | I6: 18609292 | J6: 14580 | K6: 309246689 | L6: 8097 | M6: 151053854 | N6: 475 | O6: 16221358 | P6: 48 | Q6: 1122995 | R6: 759 | S6: 13507769 | T6: 795 | U6: 10143998 | V6: 519905955 | W6: 419504339 | X6: 16151.55504 | Y6: 24282.49242 | Z6: 10071.16577 | AA6: 28.6682324 | AB6: 2.052131059 | AC6: 24918 | AD6: 511158796 | AE6: 20091 | AF6: 100401616 | AG6: 7814 | AH6: 6447820 | AI6: 19407 | AJ6: 480482235 | AK6: 19084 | AL6: 10267830 | AM6: 18984 | AN6: 3807057 | AO6: 109 | AP6: -1235297 | AQ6: 7337 | AR6: 35108300 | AS6: 3409 | AT6: 42358451 | AU6: 7613 | AV6: 154753437 | AW6: 5962 | AX6: 207450077 | AY6: 578 | AZ6: 36602714 | BA6: 404 | BB6: 37252642 | BC6: 129 | BD6: 23187134
A7: 2016 | B7: A210 | C7: 58004 | D7: ALLUMIERE | E7: 2655 | F7: 4052 | G7: 1689 | H7: 1290 | I7: 1317869 | J7: 1474 | K7: 26468392 | L7: 924 | M7: 15479079 | N7: 17 | O7: 415106 | P7: 5 | Q7: 47894 | R7: 76 | S7: 862141 | T7: 73 | U7: 872477 | V7: 45462958 | W7: 38017886 | X7: 14319.35443 | Y7: 22509.10953 | Z7: 9382.499013 | AA7: 32.76836158 | AB7: 0.4896421846 | AC7: 2549 | AD7: 44939210 | AE7: 1973 | AF7: 7445072 | AG7: 762 | AH7: 613675 | AI7: 1922 | AJ7: 41449342 | AK7: 1870 | AL7: 811167 | AM7: 1868 | AN7: 169743 | AO7: 12 | AP7: -95804 | AQ7: 858 | AR7: 3915649 | AS7: 369 | AT7: 4559452 | AU7: 774 | AV7: 15751222 | AW7: 570 | AX7: 19308419 | AY7: 23 | AZ7: 1425216 | BA7: 8 | BB7: 792437 | BC7: 5 | BD7: 739963
A8: 2016 | B8: A297 | C8: 58005 | D8: ANGUILLARA SABAZIA | E8: 11601 | F8: 19401 | G8: 7715 | H8: 5320 | I8: 8547905 | J8: 6423 | K8: 133214298 | L8: 3319 | M8: 66615796 | N8: 227 | O8: 7093776 | P8: 21 | Q8: 465435 | R8: 418 | S8: 7129404 | T8: 397 | U8: 4414760 | V8: 227481374 | W8: 183506360 | X8: 15818.15016 | Y8: 23785.65911 | Z8: 9458.603165 | AA8: 30.14395311 | AB8: 1.896388242 | AC8: 11044 | AD8: 223800714 | AE8: 8838 | AF8: 43975014 | AG8: 3313 | AH8: 2694162 | AI8: 8500 | AJ8: 209769426 | AK8: 8323 | AL8: 4510342 | AM8: 8288 | AN8: 1667018 | AO8: 44 | AP8: -292732 | AQ8: 3453 | AR8: 16065040 | AS8: 1552 | AT8: 19292058 | AU8: 3001 | AV8: 61045043 | AW8: 2850 | AX8: 100364236 | AY8: 264 | AZ8: 16750171 | BA8: 180 | BB8: 16602230 | BC8: 40 | BD8: 6944178
A9: 2016 | B9: A309 | C9: 58006 | D9: ANTICOLI CORRADO | E9: 568 | F9: 893 | G9: 415 | H9: 237 | I9: 160014 | J9: 284 | K9: 5977023 | L9: 208 | M9: 3113552 | N9: 8 | O9: 258332 | R9: 24 | S9: 321952 | T9: 17 | U9: 247483 | V9: 10078356 | W9: 8332892 | X9: 14670.58451 | Y9: 20079.25783 | Z9: 9331.346025 | AA9: 29.57746479 | AB9: 0.7042253521 | AC9: 540 | AD9: 9900172 | AE9: 434 | AF9: 1745464 | AG9: 159 | AH9: 131794 | AI9: 420 | AJ9: 9273626 | AK9: 405 | AL9: 183960 | AM9: 408 | AN9: 21423 | AQ9: 168 | AR9: 803071 | AS9: 96 | AT9: 1189620 | AU9: 161 | AV9: 3319131 | AW9: 117 | AX9: 3895904 | AY9: 5 | AZ9: 302823 | BA9: 4 | BB9: 340390
A10: 2016 | B10: A323 | C10: 58007 | D10: ANZIO | E10: 35169 | F10: 54311 | G10: 27121 | H10: 16217 | I10: 26356901 | J10: 19899 | K10: 383729670 | L10: 10370 | M10: 207091461 | N10: 652 | O10: 21041607 | P10: 99 | Q10: 2751487 | R10: 1116 | S10: 18492239 | T10: 1143 | U10: 15493486 | V10: 674956851 | W10: 545298014 | X10: 15505.07589 | Y10: 20106.11755 | Z10: 10040.28676 | AA10: 32.89260428 | AB10: 1.888026387 | AC10: 33493 | AD10: 661972053 | AE10: 25879 | AF10: 129658837 | AG10: 10244 | AH10: 8202580 | AI10: 24893 | AJ10: 616682646 | AK10: 24358 | AL10: 13260586 | AM10: 24223 | AN10: 3195738 | AO10: 154 | AP10: -1703392 | AQ10: 11414 | AR10: 51415858 | AS10: 4500 | AT10: 55862803 | AU10: 9113 | AV10: 185250702 | AW10: 7883 | AX10: 273840138 | AY10: 793 | AZ10: 50507988 | BA10: 513 | BB10: 46707059 | BC10: 151 | BD10: 32197050
A11: 2016 | B11: A370 | C11: 58008 | D11: ARCINAZZO ROMANO | E11: 884 | F11: 1342 | G11: 645 | H11: 321 | I11: 292953 | J11: 445 | K11: 8021075 | L11: 372 | M11: 5912017 | N11: 5 | O11: 372447 | P11: 4 | Q11: 173998 | R11: 28 | S11: 342349 | T11: 19 | U11: 403718 | V11: 15518557 | W11: 12843929 | X11: 14529.33145 | Y11: 19913.06822 | Z11: 9570.73696 | AA11: 35.0678733 | AB11: 1.244343891 | AC11: 862 | AD11: 15222041 | AE11: 637 | AF11: 2674628 | AG11: 235 | AH11: 199536 | AI11: 617 | AJ11: 13946499 | AK11: 599 | AL11: 283622 | AM11: 601 | AN11: 34362 | AO11: 4 | AP11: -137918 | AQ11: 306 | AR11: 1549280 | AS11: 120 | AT11: 1524100 | AU11: 262 | AV11: 5188026 | AW11: 161 | AX11: 5563185 | AY11: 10 | AZ11: 620216 | BA11: 11 | BB11: 1011976
A12: 2016 | B12: M213 | C12: 58117 | D12: ARDEA | E12: 28740 | F12: 49418 | G12: 22297 | H12: 13247 | I12: 16156474 | J12: 17570 | K12: 322238865 | L12: 7645 | M12: 137257651 | N12: 310 | O12: 8713604 | P12: 55 | Q12: 1769018 | R12: 935 | S12: 14976625 | T12: 705 | U12: 8352261 | V12: 509464498 | W12: 420988130 | X12: 14648.1604 | Y12: 18880.93152 | Z12: 8518.922862 | AA12: 31.9519833 | AB12: 0.9081419624 | AC12: 27520 | AD12: 500736402 | AE12: 21682 | AF12: 88476368 | AG12: 10089 | AH12: 8217647 | AI12: 20745 | AJ12: 462854168 | AK12: 20278 | AL12: 9326418 | AM12: 20022 | AN12: 3642117 | AO12: 154 | AP12: -1794441 | AQ12: 9029 | AR12: 41992860 | AS12: 4041 | AT12: 50205523 | AU12: 8436 | AV12: 171203369 | AW12: 5980 | AX12: 204740324 | AY12: 419 | AZ12: 26372445 | BA12: 209 | BB12: 18887998 | BC12: 52 | BD12: 8895100
A13: 2016 | B13: A401 | C13: 58009 | D13: ARICCIA | E13: 11927 | F13: 19118 | G13: 7819 | H13: 5703 | I13: 10641036 | J13: 6239 | K13: 130953299 | L13: 4017 | M13: 78922327 | N13: 287 | O13: 8720047 | P13: 24 | Q13: 1263331 | R13: 358 | S13: 6783860 | T13: 374 | U13: 5615901 | V13: 242899801 | W13: 194655404 | X13: 16320.56712 | Y13: 24895.17892 | Z13: 10181.78701 | AA13: 29.35356754 | AB13: 2.641066488 | AC13: 11406 | AD13: 238442464 | AE13: 9107 | AF13: 48244397 | AG13: 3235 | AH13: 2620752 | AI13: 8803 | AJ13: 224244757 | AK13: 8668 | AL13: 4897505 | AM13: 7238 | AN13: 1687896 | AO13: 46 | AP13: -436950 | AQ13: 3455 | AR13: 16410444 | AS13: 1574 | AT13: 19557879 | AU13: 3317 | AV13: 67073016 | AW13: 2683 | AX13: 93730856 | AY13: 318 | AZ13: 20150588 | BA13: 240 | BB13: 22096070 | BC13: 75 | BD13: 13158758
A14: 2016 | B14: A446 | C14: 58010 | D14: ARSOLI | E14: 1010 | F14: 1577 | G14: 727 | H14: 508 | I14: 505398 | J14: 495 | K14: 9643209 | L14: 384 | M14: 6574138 | N14: 10 | O14: 349031 | R14: 23 | S14: 466114 | T14: 34 | U14: 506399 | V14: 18044289 | W14: 14837018 | X14: 14690.11683 | Y14: 20408.55296 | Z14: 9408.381737 | AA14: 33.06930693 | AB14: 1.485148515 | AC14: 970 | AD14: 17838291 | AE14: 738 | AF14: 3207271 | AG14: 258 | AH14: 215528 | AI14: 704 | AJ14: 16384662 | AK14: 689 | AL14: 333224 | AM14: 685 | AN14: 68215 | AO14: 5 | AP14: -20304 | AQ14: 329 | AR14: 1554225 | AS14: 126 | AT14: 1578056 | AU14: 305 | AV14: 6208576 | AW14: 197 | AX14: 6628760 | AY14: 16 | AZ14: 1036018 | BA14: 15 | BB14: 1339745
A15: 2016 | B15: A449 | C15: 58011 | D15: ARTENA | E15: 8119 | F15: 14177 | G15: 5372 | H15: 3023 | I15: 2989389 | J15: 4636 | K15: 82544818 | L15: 2495 | M15: 36208146 | N15: 68 | O15: 2410663 | P15: 20 | Q15: 461087 | R15: 269 | S15: 4424236 | T15: 228 | U15: 2769512 | V15: 131807851 | W15: 111078590 | X15: 13681.3142 | Y15: 20677.32502 | Z15: 7835.126614 | AA15: 32.77497229 | AB15: 0.6404729647 | AC15: 7842 | AD15: 130045438 | AE15: 6057 | AF15: 20729261 | AG15: 2851 | AH15: 2335987 | AI15: 5844 | AJ15: 119179013 | AK15: 5689 | AL15: 2300057 | AM15: 5698 | AN15: 941770 | AO15: 27 | AP15: -106123 | AQ15: 2634 | AR15: 12485321 | AS15: 1324 | AT15: 16383395 | AU15: 2557 | AV15: 51980366 | AW15: 1337 | AX15: 44561232 | AY15: 54 | AZ15: 3385216 | BA15: 38 | BB15: 3508510 | BC15: 14 | BD15: 2056888
A16: 2016 | B16: A749 | C16: 58012 | D16: BELLEGRA | E16: 1718 | F16: 2846 | G16: 1204 | H16: 697 | I16: 447960 | J16: 955 | K16: 16035591 | L16: 612 | M16: 8794545 | N16: 15 | O16: 407194 | R16: 63 | S16: 764298 | T16: 42 | U16: 606386 | V16: 27055974 | W16: 23006527 | X16: 13391.45925 | Y16: 19108.41113 | Z16: 8083.811314 | AA16: 34.8661234 | AB16: 0.2910360885 | AC16: 1667 | AD16: 26523688 | AE16: 1195 | AF16: 4049447 | AG16: 535 | AH16: 450511 | AI16: 1162 | AJ16: 23756183 | AK16: 1131 | AL16: 449290 | AM16: 1076 | AN16: 185100 | AQ16: 599 | AR16: 2908055 | AS16: 261 | AT16: 3178115 | AU16: 536 | AV16: 10772456 | AW16: 278 | AX16: 9215374 | AY16: 11 | AZ16: 685229 | BA16: 5 | BB16: 408270
A17: 2016 | B17: B114 | C17: 58013 | D17: BRACCIANO | E17: 12079 | F17: 19238 | G17: 8233 | H17: 5978 | I17: 10039534 | J17: 6528 | K17: 144389367 | L17: 3633 | M17: 81032418 | N17: 242 | O17: 6295426 | P17: 30 | Q17: 640328 | R17: 362 | S17: 5909232 | T17: 423 | U17: 5488176 | V17: 253794481 | W17: 201503183 | X17: 16682.10804 | Y17: 24475.0617 | Z17: 10474.22721 | AA17: 30.01904131 | AB17: 2.640947098 | AC17: 11560 | AD17: 251369049 | AE17: 9190 | AF17: 52291298 | AG17: 3023 | AH17: 2462783 | AI17: 8831 | AJ17: 236867113 | AK17: 8673 | AL17: 5250344 | AM17: 8659 | AN17: 1879564 | AO17: 50 | AP17: -471498 | AQ17: 3576 | AR17: 16073843 | AS17: 1375 | AT17: 17003847 | AU17: 3042 | AV17: 62329363 | AW17: 3104 | AX17: 109619818 | AY17: 410 | AZ17: 25925351 | BA17: 260 | BB17: 23332093 | BC17: 59 | BD17: 10221373
A18: 2016 | B18: B472 | C18: 58014 | D18: CAMERATA NUOVA | E18: 248 | F18: 457 | G18: 245 | H18: 98 | I18: 57393 | J18: 108 | K18: 2086822 | L18: 117 | M18: 1979978 | P18: 0 | Q18: 0 | R18: 8 | S18: 111617 | T18: 6 | U18: 35367 | V18: 4271177 | W18: 3535311 | X18: 14255.28629 | Y18: 14429.84082 | Z18: 7735.910284 | AA18: 33.06451613 | AB18: 0 | AC18: 237 | AD18: 4222446 | AE18: 191 | AF18: 735866 | AG18: 53 | AH18: 39032 | AI18: 187 | AJ18: 3998049 | AK18: 183 | AL18: 79397 | AM18: 184 | AN18: 30991 | AQ18: 82 | AR18: 442478 | AS18: 45 | AT18: 573060 | AU18: 60 | AV18: 1231896 | AW18: 51 | AX18: 1725240 | BC18: 0 | BD18: 0
A19: 2016 | B19: B496 | C19: 58015 | D19: CAMPAGNANO DI ROMA | E19: 6911 | F19: 11592 | G19: 4688 | H19: 3018 | I19: 5716678 | J19: 3765 | K19: 74892471 | L19: 1946 | M19: 35408102 | N19: 178 | O19: 5974137 | P19: 20 | Q19: 469136 | R19: 259 | S19: 4232328 | T19: 226 | U19: 3740214 | V19: 130433066 | W19: 104692785 | X19: 15148.71726 | Y19: 22332.07871 | Z19: 9031.468685 | AA19: 31.60179424 | AB19: 1.823180437 | AC19: 6592 | AD19: 129618494 | AE19: 5282 | AF19: 25740281 | AG19: 2116 | AH19: 1735856 | AI19: 5035 | AJ19: 121218885 | AK19: 4924 | AL19: 2584653 | AM19: 4874 | AN19: 960522 | AO19: 34 | AP19: -259199 | AQ19: 2150 | AR19: 10053916 | AS19: 904 | AT19: 11262092 | AU19: 1983 | AV19: 40178330 | AW19: 1426 | AX19: 49492032 | AY19: 153 | AZ19: 9645693 | BA19: 87 | BB19: 7997852 | BC19: 39 | BD19: 9033334
A20: 2016 | B20: B576 | C20: 58016 | D20: CANALE MONTERANO | E20: 2585 | F20: 4169 | G20: 1722 | H20: 1204 | I20: 1288751 | J20: 1290 | K20: 25048099 | L20: 856 | M20: 16172036 | N20: 39 | O20: 1121709 | P20: 9 | Q20: 259471 | R20: 94 | S20: 1594529 | T20: 93 | U20: 1005864 | V20: 46490459 | W20: 37926226 | X20: 14671.65416 | Y20: 22024.52149 | Z20: 9097.199808 | AA20: 33.2688588 | AB20: 1.237911025 | AC20: 2480 | AD20: 45936439 | AE20: 1907 | AF20: 8564233 | AG20: 645 | AH20: 526578 | AI20: 1819 | AJ20: 42430155 | AK20: 1785 | AL20: 890698 | AM20: 1779 | AN20: 336570 | AO20: 4 | AP20: -8791 | AQ20: 856 | AR20: 3745162 | AS20: 356 | AT20: 4391015 | AU20: 660 | AV20: 13404655 | AW20: 568 | AX20: 19705750 | AY20: 57 | AZ20: 3632209 | BA20: 25 | BB20: 2225807 | BC20: 7 | BD20: 1128869
A21: 2016 | B21: B635 | C21: 58017 | D21: CANTERANO | E21: 228 | F21: 346 | G21: 160 | H21: 74 | I21: 52735 | J21: 133 | K21: 2369077 | L21: 85 | M21: 1366332 | P21: 0 | Q21: 0 | R21: 5 | S21: 106990 | V21: 3895134 | W21: 3188916 | X21: 13986.47368 | Y21: 19930.725 | Z21: 9216.520231 | AA21: 27.63157895 | AB21: 0 | AC21: 224 | AD21: 4019535 | AE21: 178 | AF21: 706218 | AG21: 76 | AH21: 61647 | AI21: 175 | AJ21: 3746226 | AK21: 169 | AL21: 74019 | AM21: 10 | AN21: 2816 | AQ21: 63 | AR21: 286765 | AS21: 40 | AT21: 494620 | AU21: 78 | AV21: 1604079 | AW21: 43 | AX21: 1510382 | AY21: 0 | AZ21: 0
A22: 2016 | B22: B649 | C22: 58018 | D22: CAPENA | E22: 6431 | F22: 10659 | G22: 4420 | H22: 2914 | I22: 4522779 | J22: 3903 | K22: 77070644 | L22: 1573 | M22: 26442391 | N22: 96 | O22: 3044222 | P22: 27 | Q22: 544388 | R22: 190 | S22: 3594649 | T22: 267 | U22: 2857685 | V22: 118076758 | W22: 96855303 | X22: 15060.69087 | Y22: 21912.96448 | Z22: 9086.715733 | AA22: 30.77281916 | AB22: 1.415020992 | AC22: 6165 | AD22: 115750715 | AE22: 4946 | AF22: 21221455 | AG22: 2247 | AH22: 1853146 | AI22: 4751 | AJ22: 108175639 | AK22: 4664 | AL22: 2222021 | AM22: 4606 | AN22: 803741 | AO22: 33 | AP22: -385766 | AQ22: 1946 | AR22: 8937458 | AS22: 906 | AT22: 11222185 | AU22: 1894 | AV22: 38478780 | AW22: 1355 | AX22: 46829149 | AY22: 115 | AZ22: 7265353 | BA22: 79 | BB22: 7286740 | BC22: 12 | BD22: 1904865
A23: 2016 | B23: B687 | C23: 58019 | D23: CAPRANICA PRENESTINA | E23: 165 | F23: 351 | G23: 230 | H23: 74 | I23: 85755 | J23: 71 | K23: 1224695 | L23: 64 | M23: 1011247 | N23: 0 | O23: 0 | P23: 0 | Q23: 0 | R23: 8 | S23: 122339 | T23: 15 | U23: 136586 | V23: 2580622 | W23: 2169658 | X23: 13149.44242 | Y23: 9433.295652 | Z23: 6181.361823 | AA23: 38.18181818 | AB23: 0 | AC23: 159 | AD23: 2509434 | AE23: 122 | AF23: 410964 | AG23: 43 | AH23: 32848 | AI23: 120 | AJ23: 2315131 | AK23: 117 | AL23: 44624 | AM23: 118 | AN23: 18306 | AQ23: 63 | AR23: 333759 | AS23: 25 | AT23: 308831 | AU23: 47 | AV23: 982713 | AW23: 26 | AX23: 903342 | BA23: 0 | BB23: 0 | BC23: 0 | BD23: 0
A24: 2016 | B24: B828 | C24: 58020 | D24: CARPINETO ROMANO | E24: 3096 | F24: 4448 | G24: 1876 | H24: 1506 | I24: 940706 | J24: 1366 | K24: 25890865 | L24: 1452 | M24: 20001105 | N24: 23 | O24: 733804 | R24: 96 | S24: 1527605 | T24: 68 | U24: 914169 | V24: 50008254 | W24: 42159735 | X24: 13617.48547 | Y24: 22473.20629 | Z24: 9478.357689 | AA24: 33.39793282 | AB24: 0.645994832 | AC24: 3023 | AD24: 49372371 | AE24: 2257 | AF24: 7848519 | AG24: 789 | AH24: 641751 | AI24: 2204 | AJ24: 45284058 | AK24: 2149 | AL24: 858701 | AM24: 2163 | AN24: 359317 | AO24: 4 | AP24: -4267 | AQ24: 1030 | AR24: 4869488 | AS24: 474 | AT24: 5807742 | AU24: 995 | AV24: 20121707 | AW24: 518 | AX24: 16568596 | AY24: 28 | AZ24: 1741450 | BA24: 15 | BB24: 1361041 | BC24: 5 | BD24: 676514
A25: 2016 | B25: B932 | C25: 58021 | D25: CASAPE | E25: 449 | F25: 722 | G25: 362 | H25: 183 | I25: 206729 | J25: 217 | K25: 3758577 | L25: 196 | M25: 3028300 | V25: 6993606 | W25: 5854444 | X25: 13038.85078 | Y25: 16172.49724 | Z25: 8108.648199 | AA25: 32.29398664 | AB25: 0 | AC25: 435 | AD25: 7144669 | AE25: 340 | AF25: 1139162 | AG25: 129 | AH25: 100568 | AI25: 330 | AJ25: 6561923 | AK25: 313 | AL25: 122988 | AM25: 313 | AN25: 14463 | AQ25: 145 | AR25: 656874 | AS25: 74 | AT25: 915247 | AU25: 141 | AV25: 2815227 | AW25: 76 | AX25: 2493101 | AY25: 4 | AZ25: 263075
A26: 2016 | B26: C116 | C26: 58022 | D26: CASTEL GANDOLFO | E26: 5650 | F26: 8971 | G26: 3658 | H26: 2525 | I26: 5011811 | J26: 3132 | K26: 68949384 | L26: 1694 | M26: 32149020 | N26: 111 | O26: 3624843 | P26: 14 | Q26: 485823 | R26: 201 | S26: 3095012 | T26: 181 | U26: 2454344 | V26: 115770237 | W26: 92904428 | X26: 16443.26159 | Y26: 25397.60197 | Z26: 10356.08383 | AA26: 26.38938053 | AB26: 2 | AC26: 5425 | AD26: 114575259 | AE26: 4398 | AF26: 22865809 | AG26: 1607 | AH26: 1336806 | AI26: 4262 | AJ26: 107885297 | AK26: 4191 | AL26: 2326336 | AM26: 4184 | AN26: 720059 | AO26: 18 | AP26: -108335 | AQ26: 1473 | AR26: 6975225 | AS26: 785 | AT26: 9696728 | AU26: 1667 | AV26: 33868292 | AW26: 1368 | AX26: 47804330 | AY26: 135 | AZ26: 8595313 | BA26: 79 | BB26: 7333285 | BC26: 34 | BD26: 6858791
A27: 2016 | B27: C203 | C27: 58023 | D27: CASTEL MADAMA | E27: 4611 | F27: 7422 | G27: 3069 | H27: 2173 | I27: 3038957 | J27: 2552 | K27: 49580972 | L27: 1476 | M27: 24720651 | N27: 63 | O27: 1835668 | P27: 8 | Q27: 187671 | R27: 143 | S27: 2453984 | T27: 152 | U27: 1457480 | V27: 83275383 | W27: 68679394 | X27: 14894.68532 | Y27: 22378.4275 | Z27: 9253.488817 | AA27: 30.51398829 | AB27: 1.084363479 | AC27: 4453 | AD27: 82480101 | AE27: 3459 | AF27: 14595989 | AG27: 1403 | AH27: 1159903 | AI27: 3353 | AJ27: 76073698 | AK27: 3294 | AL27: 1521882 | AM27: 3039 | AN27: 539549 | AO27: 19 | AP27: -142116 | AQ27: 1388 | AR27: 6715427 | AS27: 625 | AT27: 7699752 | AU27: 1426 | AV27: 29000872 | AW27: 985 | AX27: 32847090 | AY27: 58 | AZ27: 3636824 | BA27: 36 | BB27: 3288696 | BC27: 14 | BD27: 2910435
A28: 2016 | B28: C266 | C28: 58025 | D28: CASTEL SAN PIETRO ROMANO | E28: 502 | F28: 886 | G28: 390 | H28: 224 | I28: 284594 | J28: 244 | K28: 4448016 | L28: 169 | M28: 2558613 | N28: 8 | O28: 247486 | R28: 31 | S28: 533372 | T28: 21 | U28: 503424 | V28: 8575505 | W28: 7235277 | X28: 14412.90239 | Y28: 18551.99231 | Z28: 8166.226862 | AA28: 29.48207171 | AB28: 1.394422311 | AC28: 482 | AD28: 8300566 | AE28: 394 | AF28: 1340228 | AG28: 137 | AH28: 114132 | AI28: 378 | AJ28: 7726263 | AK28: 366 | AL28: 151568 | AM28: 365 | AN28: 35314 | AO28: 0 | AP28: 0 | AQ28: 148 | AR28: 712631 | AS28: 87 | AT28: 1099464 | AU28: 152 | AV28: 3066770 | AW28: 87 | AX28: 2821738 | AY28: 8 | AZ28: 500587 | BA28: 7 | BB28: 585964 | BC28: 0 | BD28: 0
A29: 2016 | B29: C237 | C29: 58024 | D29: CASTELNUOVO DI PORTO | E29: 5415 | F29: 8597 | G29: 3608 | H29: 2369 | I29: 3870761 | J29: 3082 | K29: 64373919 | L29: 1533 | M29: 31871232 | N29: 132 | O29: 4038796 | P29: 17 | Q29: 750927 | R29: 166 | S29: 2901204 | T29: 170 | U29: 2204832 | V29: 110011671 | W29: 87446479 | X29: 16148.93426 | Y29: 24236.82899 | Z29: 10171.74352 | AA29: 31.3388735 | AB29: 2.566943675 | AC29: 5191 | AD29: 109033227 | AE29: 4150 | AF29: 22565192 | AG29: 1571 | AH29: 1282029 | AI29: 3923 | AJ29: 102202824 | AK29: 3841 | AL29: 2269276 | AM29: 3392 | AN29: 786513 | AO29: 19 | AP29: -181218 | AQ29: 1678 | AR29: 7489904 | AS29: 669 | AT29: 8270710 | AU29: 1431 | AV29: 29146448 | AW29: 1252 | AX29: 44674092 | AY29: 138 | AZ29: 8722197 | BA29: 100 | BB29: 9091080 | BC29: 39 | BD29: 7093787
A30: 2016 | B30: C390 | C30: 58026 | D30: CAVE | E30: 6547 | F30: 11378 | G30: 4439 | H30: 2707 | I30: 3044658 | J30: 3761 | K30: 68235330 | L30: 1913 | M30: 32083219 | N30: 71 | O30: 1799908 | P30: 16 | Q30: 346142 | R30: 212 | S30: 3713719 | T30: 188 | U30: 2878637 | V30: 112101613 | W30: 93549410 | X30: 14288.8972 | Y30: 21074.43343 | Z30: 8221.955528 | AA30: 31.92301818 | AB30: 0.7789827402 | AC30: 6308 | AD30: 110159749 | AE30: 4872 | AF30: 18552203 | AG30: 2164 | AH30: 1769745 | AI30: 4687 | AJ30: 101312473 | AK30: 4600 | AL30: 1994668 | AM30: 4597 | AN30: 782558 | AO30: 18 | AP30: -244338 | AQ30: 2072 | AR30: 9878812 | AS30: 959 | AT30: 11954847 | AU30: 1943 | AV30: 39435583 | AW30: 1299 | AX30: 43600744 | AY30: 72 | AZ30: 4618706 | BA30: 45 | BB30: 4144354 | BC30: 6 | BD30: 882808
A31: 2016 | B31: C518 | C31: 58027 | D31: CERRETO LAZIALE | E31: 751 | F31: 1120 | G31: 484 | H31: 314 | I31: 222322 | J31: 420 | K31: 7561631 | L31: 267 | M31: 4650804 | P31: 0 | Q31: 0 | R31: 18 | S31: 234555 | T31: 16 | U31: 222918 | V31: 12892230 | W31: 10792955 | X31: 14371.44474 | Y31: 22299.4938 | Z31: 9636.566964 | AA31: 25.69906791 | AB31: 0 | AC31: 727 | AD31: 12825424 | AE31: 594 | AF31: 2099275 | AG31: 251 | AH31: 212169 | AI31: 584 | AJ31: 12053985 | AK31: 574 | AL31: 224298 | AM31: 573 | AN31: 62083 | AQ31: 193 | AR31: 897030 | AS31: 96 | AT31: 1219886 | AU31: 291 | AV31: 5922758 | AW31: 147 | AX31: 4714000 | BC31: 0 | BD31: 0
A32: 2016 | B32: C543 | C32: 58028 | D32: CERVARA DI ROMA | E32: 328 | F32: 448 | G32: 261 | H32: 132 | I32: 89955 | J32: 168 | K32: 3269556 | L32: 114 | M32: 1661142 | N32: 8 | O32: 196171 | P32: 0 | Q32: 0 | R32: 17 | S32: 219754 | T32: 7 | U32: 68074 | V32: 5504652 | W32: 4544889 | X32: 13856.3689 | Y32: 17413.36782 | Z32: 10144.84152 | AA32: 30.18292683 | AB32: 0 | AC32: 322 | AD32: 5603715 | AE32: 255 | AF32: 959763 | AG32: 94 | AH32: 77720 | AI32: 244 | AJ32: 5065796 | AK32: 237 | AL32: 96556 | AM32: 232 | AN32: 22942 | AQ32: 99 | AR32: 494144 | AS32: 58 | AT32: 699335 | AU32: 96 | AV32: 1941354 | AW32: 66 | AX32: 2263951
A33: 2016 | B33: C552 | C33: 58029 | D33: CERVETERI | E33: 23184 | F33: 37759 | G33: 16421 | H33: 11211 | I33: 16904963 | J33: 12651 | K33: 257750280 | L33: 7048 | M33: 134943181 | N33: 346 | O33: 11930611 | P33: 45 | Q33: 1455072 | R33: 774 | S33: 13127654 | T33: 790 | U33: 10253989 | V33: 446365750 | W33: 360421638 | X33: 15546.1369 | Y33: 21948.82394 | Z33: 9545.317355 | AA33: 31.87543133 | AB33: 1.828847481 | AC33: 22163 | AD33: 438607235 | AE33: 17343 | AF33: 85944112 | AG33: 6591 | AH33: 5368483 | AI33: 16618 | AJ33: 408376568 | AK33: 16341 | AL33: 8770885 | AM33: 16171 | AN33: 3238843 | AO33: 102 | AP33: -1443010 | AQ33: 7288 | AR33: 33908854 | AS33: 3152 | AT33: 38972478 | AU33: 6064 | AV33: 123569456 | AW33: 5287 | AX33: 186527747 | AY33: 518 | AZ33: 33131195 | BA33: 325 | BB33: 29492141 | BC33: 99 | BD33: 16802756
A34: 2016 | B34: C677 | C34: 58030 | D34: CICILIANO | E34: 848 | F34: 1333 | G34: 631 | H34: 419 | I34: 412952 | J34: 441 | K34: 8137534 | L34: 299 | M34: 4991324 | N34: 7 | O34: 181015 | R34: 17 | S34: 299796 | T34: 32 | U34: 212544 | V34: 14235165 | W34: 11897330 | X34: 14029.87028 | Y34: 18854.72266 | Z34: 8925.228807 | AA34: 32.19339623 | AB34: 0.7075471698 | AC34: 812 | AD34: 14066078 | AE34: 626 | AF34: 2337835 | AG34: 253 | AH34: 207003 | AI34: 606 | AJ34: 12960977 | AK34: 595 | AL34: 250894 | AM34: 590 | AN34: 102651 | AQ34: 273 | AR34: 1256067 | AS34: 121 | AT34: 1541186 | AU34: 263 | AV34: 5277629 | AW34: 168 | AX34: 5571012 | AY34: 5 | AZ34: 315654 | BA34: 6 | BB34: 549387 | BC34: 0 | BD34: 0
A35: 2016 | B35: C702 | C35: 58031 | D35: CINETO ROMANO | E35: 401 | F35: 595 | G35: 289 | H35: 156 | I35: 161736 | J35: 202 | K35: 3672831 | L35: 163 | M35: 2363962 | R35: 7 | S35: 100147 | T35: 5 | U35: 75300 | V35: 6373976 | W35: 5346801 | X35: 13333.66833 | Y35: 18501.04152 | Z35: 8986.220168 | AA35: 31.17206983 | AB35: 0 | AC35: 390 | AD35: 6463579 | AE35: 307 | AF35: 1027175 | AG35: 118 | AH35: 100167 | AI35: 296 | AJ35: 5896517 | AK35: 286 | AL35: 108032 | AM35: 287 | AN35: 25278 | AQ35: 125 | AR35: 650569 | AS35: 58 | AT35: 715719 | AU35: 136 | AV35: 2694024 | AW35: 75 | AX35: 2438993 | BC35: 0 | BD35: 0
A36: 2016 | B36: C773 | C36: 58032 | D36: CIVITAVECCHIA | E36: 34956 | F36: 52816 | G36: 21318 | H36: 16601 | I36: 23445997 | J36: 19935 | K36: 413397258 | L36: 11345 | M36: 237639307 | N36: 582 | O36: 19985349 | P36: 57 | Q36: 1445860 | R36: 866 | S36: 14073070 | T36: 928 | U36: 12560715 | V36: 722547556 | W36: 581905850 | X36: 16646.80885 | Y36: 27296.45605 | Z36: 11017.60546 | AA36: 28.05813022 | AB36: 1.850898272 | AC36: 33601 | AD36: 710572229 | AE36: 27467 | AF36: 140641706 | AG36: 9676 | AH36: 7971522 | AI36: 26643 | AJ36: 674933045 | AK36: 26050 | AL36: 14367755 | AM36: 23642 | AN36: 5191146 | AO36: 145 | AP36: -1750964 | AQ36: 9663 | AR36: 42844954 | AS36: 4044 | AT36: 50293339 | AU36: 9868 | AV36: 202445055 | AW36: 9270 | AX36: 322246397 | AY36: 832 | AZ36: 52986123 | BA36: 507 | BB36: 46205485 | BC36: 140 | BD36: 23069318
A37: 2016 | B37: C784 | C37: 58033 | D37: CIVITELLA SAN PAOLO | E37: 1229 | F37: 2075 | G37: 949 | H37: 488 | I37: 576746 | J37: 699 | K37: 11876989 | L37: 358 | M37: 5952381 | N37: 15 | O37: 620569 | P37: 4 | Q37: 64536 | R37: 41 | S37: 844183 | T37: 33 | U37: 374055 | V37: 20309459 | W37: 16882264 | X37: 13736.58584 | Y37: 17789.53003 | Z37: 8136.030843 | AA37: 36.0455655 | AB37: 0.8136696501 | AC37: 1190 | AD37: 19795792 | AE37: 899 | AF37: 3427195 | AG37: 418 | AH37: 335543 | AI37: 856 | AJ37: 18109129 | AK37: 836 | AL37: 368351 | AM37: 826 | AN37: 109854 | AQ37: 443 | AR37: 1996656 | AS37: 190 | AT37: 2361556 | AU37: 339 | AV37: 6743282 | AW37: 206 | AX37: 6953413 | AY37: 22 | AZ37: 1388461 | BA37: 5 | BB37: 477142 | BC37: 5 | BD37: 910261
A38: 2016 | B38: C858 | C38: 58034 | D38: COLLEFERRO | E38: 14184 | F38: 21521 | G38: 8778 | H38: 7086 | I38: 6853232 | J38: 7484 | K38: 159036183 | L38: 4955 | M38: 92909464 | N38: 252 | O38: 8521396 | P38: 18 | Q38: 560139 | R38: 327 | S38: 5288034 | T38: 311 | U38: 5402666 | V38: 278571114 | W38: 226230778 | X38: 15949.71644 | Y38: 25772.47414 | Z38: 10512.09414 | AA38: 27.12210942 | AB38: 1.529892837 | AC38: 13565 | AD38: 274631692 | AE38: 11148 | AF38: 52340336 | AG38: 3942 | AH38: 3245378 | AI38: 10834 | AJ38: 260508676 | AK38: 10603 | AL38: 5369472 | AM38: 10641 | AN38: 2068841 | AO38: 41 | AP38: -512127 | AQ38: 3806 | AR38: 16991216 | AS38: 1763 | AT38: 21969149 | AU38: 4469 | AV38: 91493940 | AW38: 3411 | AX38: 115782789 | AY38: 230 | AZ38: 14547896 | BA38: 171 | BB38: 15422804 | BC38: 46 | BD38: 8799464
A39: 2016 | B39: C900 | C39: 58035 | D39: COLONNA | E39: 2736 | F39: 4309 | G39: 1744 | H39: 1201 | I39: 1979495 | J39: 1526 | K39: 30469657 | L39: 814 | M39: 13608852 | N39: 31 | O39: 518210 | P39: 5 | Q39: 62114 | R39: 92 | S39: 1677734 | T39: 88 | U39: 877684 | V39: 49193746 | W39: 40430109 | X39: 14777.08662 | Y39: 23182.40195 | Z39: 9382.712694 | AA39: 32.52923977 | AB39: 1.023391813 | AC39: 2634 | AD39: 48686825 | AE39: 2062 | AF39: 8763637 | AG39: 810 | AH39: 669662 | AI39: 1992 | AJ39: 44885891 | AK39: 1951 | AL39: 916850 | AM39: 1949 | AN39: 355289 | AO39: 12 | AP39: -84466 | AQ39: 878 | AR39: 4235549 | AS39: 377 | AT39: 4707548 | AU39: 752 | AV39: 15225383 | AW39: 603 | AX39: 20968231 | AY39: 47 | AZ39: 2913045 | BA39: 28 | BB39: 2451355
A40: 2016 | B40: D561 | C40: 58036 | D40: FIANO ROMANO | E40: 9762 | F40: 15708 | G40: 6351 | H40: 4165 | I40: 7543179 | J40: 6094 | K40: 120177427 | L40: 2317 | M40: 42797961 | N40: 175 | O40: 4390058 | P40: 19 | Q40: 405932 | R40: 300 | S40: 5428234 | T40: 328 | U40: 4347303 | V40: 185090094 | W40: 150207014 | X40: 15386.90985 | Y40: 23650.92332 | Z40: 9562.453145 | AA40: 30.58799426 | AB40: 1.618520795 | AC40: 9360 | AD40: 182947635 | AE40: 7475 | AF40: 34883080 | AG40: 3477 | AH40: 2849162 | AI40: 7213 | AJ40: 170821105 | AK40: 7078 | AL40: 3620634 | AM40: 6149 | AN40: 929081 | AO40: 55 | AP40: -563271 | AQ40: 2931 | AR40: 13984579 | AS40: 1358 | AT40: 16819533 | AU40: 2786 | AV40: 56572662 | AW40: 2100 | AX40: 73400930 | AY40: 224 | AZ40: 14168504 | BA40: 120 | BB40: 10948566 | BC40: 38 | BD40: 6898570
A41: 2016 | B41: D586 | C41: 58037 | D41: FILACCIANO | E41: 312 | F41: 462 | G41: 251 | H41: 143 | I41: 180689 | J41: 136 | K41: 2488949 | L41: 140 | M41: 2151204 | N41: 8 | O41: 297448 | R41: 12 | S41: 167549 | T41: 7 | U41: 36647 | V41: 5322486 | W41: 4387053 | X41: 14061.06731 | Y41: 17478.2988 | Z41: 9495.785714 | AA41: 30.12820513 | AB41: 0 | AC41: 305 | AD41: 5379927 | AE41: 250 | AF41: 935433 | AG41: 73 | AH41: 57881 | AI41: 242 | AJ41: 5031774 | AK41: 239 | AL41: 100180 | AM41: 238 | AN41: 25789 | AO41: 0 | AP41: 0 | AQ41: 94 | AR41: 439460 | AS41: 52 | AT41: 654589 | AU41: 103 | AV41: 2107821 | AW41: 54 | AX41: 1847487 | AY41: 4 | AZ41: 278994
A42: 2016 | B42: M297 | C42: 58120 | D42: FIUMICINO | E42: 49420 | F42: 78887 | G42: 33863 | H42: 21062 | I42: 41846914 | J42: 31563 | K42: 633177331 | L42: 11930 | M42: 220676775 | N42: 673 | O42: 22814936 | P42: 93 | Q42: 3477692 | R42: 1601 | S42: 27213410 | T42: 1616 | U42: 20654341 | V42: 969861399 | W42: 786907177 | X42: 15922.84858 | Y42: 23237.96406 | Z42: 9975.118549 | AA42: 28.03318495 | AB42: 1.744233104 | AC42: 47378 | AD42: 952160494 | AE42: 38371 | AF42: 182954222 | AG42: 18146 | AH42: 14820006 | AI42: 37961 | AJ42: 897481163 | AK42: 37324 | AL42: 18779094 | AM42: 32244 | AN42: 6886209 | AO42: 210 | AP42: -2754341 | AQ42: 13644 | AR42: 67864475 | AS42: 7062 | AT42: 87836285 | AU42: 14622 | AV42: 296082843 | AW42: 11244 | AX42: 388489006 | AY42: 985 | AZ42: 62268773 | BA42: 623 | BB42: 56887697 | BC42: 239 | BD42: 45517880
A43: 2016 | B43: M309 | C43: 58122 | D43: FONTE NUOVA | E43: 19000 | F43: 32917 | G43: 12836 | H43: 8460 | I43: 11672301 | J43: 11087 | K43: 199952362 | L43: 5052 | M43: 86373108 | N43: 239 | O43: 7276068 | P43: 46 | Q43: 1029037 | R43: 741 | S43: 12396112 | T43: 706 | U43: 9529691 | V43: 328228679 | W43: 272270662 | X43: 14330.03484 | Y43: 21211.48816 | Z43: 8271.430021 | AA43: 32.71578947 | AB43: 0.9473684211 | AC43: 18157 | AD43: 322723709 | AE43: 14045 | AF43: 55958017 | AG43: 6438 | AH43: 5291995 | AI43: 13457 | AJ43: 295963570 | AK43: 13202 | AL43: 5984187 | AM43: 12971 | AN43: 2202740 | AO43: 98 | AP43: -984751 | AQ43: 6118 | AR43: 29240985 | AS43: 2812 | AT43: 35056883 | AU43: 5420 | AV43: 109675573 | AW43: 3815 | AX43: 131207589 | AY43: 258 | AZ43: 16251168 | BA43: 145 | BB43: 12930904 | BC43: 35 | BD43: 6441406
A44: 2016 | B44: D707 | C44: 58038 | D44: FORMELLO | E44: 8027 | F44: 13010 | G44: 5294 | H44: 3502 | I44: 8601690 | J44: 4349 | K44: 123039258 | L44: 2161 | M44: 50683060 | N44: 331 | O44: 13279211 | P44: 30 | Q44: 1556438 | R44: 301 | S44: 6068883 | T44: 337 | U44: 5741471 | V44: 208970011 | W44: 157291886 | X44: 19595.35144 | Y44: 29711.34983 | Z44: 12090.07579 | AA44: 28.51625763 | AB44: 5.356920394 | AC44: 7624 | AD44: 206303856 | AE44: 6198 | AF44: 51678125 | AG44: 2110 | AH44: 1718432 | AI44: 5898 | AJ44: 196944556 | AK44: 5791 | AL44: 4775320 | AM44: 5741 | AN44: 1560676 | AO44: 52 | AP44: -579521 | AQ44: 2237 | AR44: 9898254 | AS44: 933 | AT44: 11614004 | AU44: 2018 | AV44: 40845008 | AW44: 1867 | AX44: 67066854 | AY44: 324 | AZ44: 20576170 | BA44: 273 | BB44: 25157730 | BC44: 157 | BD44: 43673080
A45: 2016 | B45: D773 | C45: 58039 | D45: FRASCATI | E45: 14838 | F45: 22331 | G45: 9311 | H45: 6766 | I45: 21802761 | J45: 7782 | K45: 179666584 | L45: 4776 | M45: 94812621 | N45: 358 | O45: 13308622 | P45: 29 | Q45: 608303 | R45: 448 | S45: 8495476 | T45: 585 | U45: 9816036 | V45: 328510403 | W45: 258519446 | X45: 17422.79593 | Y45: 27764.94963 | Z45: 11576.70709 | AA45: 27.42283327 | AB45: 3.389944736 | AC45: 14185 | AD45: 322553163 | AE45: 11589 | AF45: 69990957 | AG45: 3827 | AH45: 3156804 | AI45: 11155 | AJ45: 305773307 | AK45: 10960 | AL45: 6909961 | AM45: 9195 | AN45: 1706744 | AO45: 43 | AP45: -425883 | AQ45: 4026 | AR45: 19366299 | AS45: 1905 | AT45: 23692760 | AU45: 3967 | AV45: 80568534 | AW45: 3608 | AX45: 128017406 | AY45: 478 | AZ45: 30401066 | BA45: 344 | BB45: 31359862 | BC45: 159 | BD45: 31580825
A46: 2016 | B46: D875 | C46: 58040 | D46: GALLICANO NEL LAZIO | E46: 3700 | F46: 6326 | G46: 2626 | H46: 1564 | I46: 1671889 | J46: 2102 | K46: 37817764 | L46: 1078 | M46: 17819313 | N46: 40 | O46: 647401 | P46: 5 | Q46: 185637 | R46: 152 | S46: 2533631 | T46: 127 | U46: 1612936 | V46: 62288571 | W46: 51914243 | X46: 14030.87649 | Y46: 19769.32331 | Z46: 8206.487986 | AA46: 32.81081081 | AB46: 0.7027027027 | AC46: 3557 | AD46: 61469789 | AE46: 2741 | AF46: 10374328 | AG46: 1208 | AH46: 983501 | AI46: 2637 | AJ46: 56410947 | AK46: 2572 | AL46: 1118153 | AM46: 2253 | AN46: 431495 | AO46: 13 | AP46: -91381 | AQ46: 1201 | AR46: 5479388 | AS46: 576 | AT46: 7143513 | AU46: 1071 | AV46: 21788478 | AW46: 698 | AX46: 23599116 | AY46: 50 | AZ46: 3139150 | BA46: 22 | BB46: 1902501 | BC46: 4 | BD46: 792742
A47: 2016 | B47: D945 | C47: 58041 | D47: GAVIGNANO | E47: 1227 | F47: 1907 | G47: 753 | H47: 522 | I47: 328443 | J47: 672 | K47: 13014555 | L47: 397 | M47: 6473519 | N47: 12 | O47: 286716 | P47: 0 | Q47: 0 | R47: 41 | S47: 514313 | T47: 40 | U47: 324234 | V47: 20941780 | W47: 17475515 | X47: 14242.47351 | Y47: 23207.85525 | Z47: 9163.877819 | AA47: 32.11083945 | AB47: 0.65199674 | AC47: 1187 | AD47: 20611227 | AE47: 891 | AF47: 3466265 | AG47: 395 | AH47: 318115 | AI47: 876 | AJ47: 18971881 | AK47: 858 | AL47: 372318 | AM47: 863 | AN47: 150925 | AQ47: 394 | AR47: 1789662 | AS47: 181 | AT47: 2238042 | AU47: 384 | AV47: 7851243 | AW47: 227 | AX47: 7520826 | AY47: 11 | AZ47: 679725 | BA47: 8 | BB47: 700209
A48: 2016 | B48: D964 | C48: 58042 | D48: GENAZZANO | E48: 3599 | F48: 5984 | G48: 2487 | H48: 1589 | I48: 1399629 | J48: 1929 | K48: 38265004 | L48: 1262 | M48: 19586284 | N48: 36 | O48: 731805 | R48: 108 | S48: 1653476 | T48: 101 | U48: 1496435 | V48: 63132633 | W48: 52383734 | X48: 14555.0803 | Y48: 21063.02131 | Z48: 8753.966243 | AA48: 32.70352876 | AB48: 0.8335648791 | AC48: 3498 | AD48: 62494312 | AE48: 2692 | AF48: 10748899 | AG48: 1024 | AH48: 833901 | AI48: 2604 | AJ48: 57669046 | AK48: 2561 | AL48: 1140653 | AM48: 2556 | AN48: 457438 | AO48: 11 | AP48: -212576 | AQ48: 1166 | AR48: 5854590 | AS48: 513 | AT48: 6410676 | AU48: 996 | AV48: 20251440 | AW48: 796 | AX48: 26401432 | AY48: 37 | AZ48: 2397582 | BA48: 21 | BB48: 1898374 | BC48: 9 | BD48: 1293473
A49: 2016 | B49: D972 | C49: 58043 | D49: GENZANO DI ROMA | E49: 15693 | F49: 23894 | G49: 9392 | H49: 7237 | I49: 12526055 | J49: 8367 | K49: 165804344 | L49: 5047 | M49: 90210917 | N49: 310 | O49: 10547131 | P49: 35 | Q49: 699616 | R49: 500 | S49: 8853438 | T49: 605 | U49: 8578952 | V49: 297220453 | W49: 242131964 | X49: 15429.29739 | Y49: 25780.66056 | Z49: 10133.58852 | AA49: 30.87363793 | AB49: 1.682278723 | AC49: 15047 | AD49: 289951621 | AE49: 11957 | AF49: 55088489 | AG49: 4597 | AH49: 3763114 | AI49: 11563 | AJ49: 271356137 | AK49: 11361 | AL49: 5700910 | AM49: 9980 | AN49: 2077563 | AO49: 70 | AP49: -649208 | AQ49: 4775 | AR49: 23117876 | AS49: 2218 | AT49: 27477936 | AU49: 4511 | AV49: 91630371 | AW49: 3266 | AX49: 112590115 | AY49: 336 | AZ49: 21355639 | BA49: 196 | BB49: 18119619 | BC49: 68 | BD49: 11765142
A50: 2016 | B50: D978 | C50: 58044 | D50: GERANO | E50: 806 | F50: 1259 | G50: 570 | H50: 333 | I50: 240392 | J50: 356 | K50: 6963318 | L50: 360 | M50: 5548586 | N50: 10 | O50: 255903 | R50: 32 | S50: 404817 | T50: 16 | U50: 232267 | V50: 13645283 | W50: 11469399 | X50: 14230.02357 | Y50: 20121.75263 | Z50: 9109.92772 | AA50: 30.39702233 | AB50: 0 | AC50: 786 | AD50: 13460737 | AE50: 623 | AF50: 2175884 | AG50: 208 | AH50: 177169 | AI50: 600 | AJ50: 12406601 | AK50: 589 | AL50: 235815 | AM50: 589 | AN50: 86930 | AQ50: 245 | AR50: 1351236 | AS50: 131 | AT50: 1664930 | AU50: 253 | AV50: 5152283 | AW50: 158 | AX50: 5212394 | AY50: 4 | AZ50: 253227
A51: 2016 | B51: E091 | C51: 58045 | D51: GORGA | E51: 497 | F51: 720 | G51: 321 | H51: 184 | I51: 100664 | J51: 240 | K51: 4986230 | L51: 213 | M51: 3253534 | R51: 7 | S51: 220412 | T51: 18 | U51: 198893 | V51: 8759733 | W51: 7189981 | X51: 14466.76258 | Y51: 22398.6947 | Z51: 9986.084722 | AA51: 30.78470825 | AB51: 0 | AC51: 487 | AD51: 8833237 | AE51: 379 | AF51: 1569752 | AG51: 134 | AH51: 105282 | AI51: 369 | AJ51: 8234274 | AK51: 358 | AL51: 160353 | AM51: 365 | AN51: 51984 | AQ51: 153 | AR51: 788712 | AS51: 53 | AT51: 645723 | AU51: 182 | AV51: 3697334 | AW51: 92 | AX51: 2984065 | AY51: 5 | AZ51: 335599
A52: 2016 | B52: E204 | C52: 58046 | D52: GROTTAFERRATA | E52: 13249 | F52: 20450 | G52: 8572 | H52: 6666 | I52: 22410681 | J52: 6517 | K52: 175227750 | L52: 4370 | M52: 102751909 | N52: 423 | O52: 17770056 | P52: 34 | Q52: 3849294 | R52: 385 | S52: 7468669 | T52: 650 | U52: 14052749 | V52: 343531108 | W52: 261409383 | X52: 19730.49913 | Y52: 30495.7283 | Z52: 12782.85491 | AA52: 26.42463582 | AB52: 5.811759378 | AC52: 12494 | AD52: 337994962 | AE52: 10345 | AF52: 82121725 | AG52: 2826 | AH52: 2280354 | AI52: 10006 | AJ52: 324400206 | AK52: 9864 | AL52: 7878457 | AM52: 9482 | AN52: 2570132 | AO52: 49 | AP52: -414775 | AQ52: 3452 | AR52: 15808847 | AS52: 1456 | AT52: 18092137 | AU52: 3067 | AV52: 62482143 | AW52: 3491 | AX52: 126475068 | AY52: 630 | AZ52: 40107090 | BA52: 527 | BB52: 48643947 | BC52: 243 | BD52: 51199003
A53: 2016 | B53: E263 | C53: 58047 | D53: GUIDONIA MONTECELIO | E53: 54535 | F53: 89141 | G53: 35073 | H53: 24839 | I53: 32302420 | J53: 32253 | K53: 640571198 | L53: 14807 | M53: 280727429 | N53: 831 | O53: 27132659 | P53: 101 | Q53: 2856347 | R53: 1611 | S53: 29236689 | T53: 1595 | U53: 21204173 | V53: 1034030915 | W53: 844524161 | X53: 15485.91108 | Y53: 24079.03975 | Z53: 9474.026105 | AA53: 29.68185569 | AB53: 1.426606766 | AC53: 51963 | AD53: 1017733310 | AE53: 41695 | AF53: 189506754 | AG53: 17723 | AH53: 14599767 | AI53: 40185 | AJ53: 952532190 | AK53: 39486 | AL53: 19792920 | AM53: 34957 | AN53: 7321166 | AO53: 201 | AP53: -1935145 | AQ53: 15986 | AR53: 73963876 | AS53: 7269 | AT53: 90459042 | AU53: 15854 | AV53: 323421974 | AW53: 12445 | AX53: 431795991 | AY53: 1032 | AZ53: 65491953 | BA53: 623 | BB53: 56596780 | BC53: 155 | BD53: 26833997
A54: 2016 | B54: E382 | C54: 58048 | D54: JENNE | E54: 266 | F54: 364 | G54: 189 | H54: 114 | I54: 44249 | J54: 104 | K54: 1894457 | L54: 150 | M54: 2345881 | T54: 8 | U54: 44407 | V54: 4328994 | W54: 3630258 | X54: 13647.58647 | Y54: 19207.71429 | Z54: 9973.236264 | AA54: 30.07518797 | AB54: 0 | AC54: 260 | AD54: 4396224 | AE54: 197 | AF54: 698736 | AG54: 53 | AH54: 44786 | AI54: 195 | AJ54: 4046338 | AK54: 194 | AL54: 75811 | AM54: 192 | AN54: 10089 | AO54: 0 | AP54: 0 | AQ54: 80 | AR54: 436399 | AS54: 46 | AT54: 589939 | AU54: 84 | AV54: 1701808 | AW54: 50 | AX54: 1597534 | BC54: 0 | BD54: 0
A55: 2016 | B55: E392 | C55: 58049 | D55: LABICO | E55: 3926 | F55: 6445 | G55: 2460 | H55: 1850 | I55: 1449611 | J55: 2485 | K55: 47398757 | L55: 955 | M55: 16133548 | N55: 51 | O55: 1305829 | P55: 9 | Q55: 377279 | R55: 123 | S55: 2053105 | T55: 98 | U55: 1221070 | V55: 69939199 | W55: 58096665 | X55: 14797.92792 | Y55: 23616.53049 | Z55: 9014.222653 | AA55: 30.31074885 | AB55: 0.5858380031 | AC55: 3780 | AD55: 69097106 | AE55: 3007 | AF55: 11842534 | AG55: 1400 | AH55: 1149514 | AI55: 2875 | AJ55: 63781396 | AK55: 2816 | AL55: 1267402 | AM55: 2793 | AN55: 447492 | AO55: 14 | AP55: -240236 | AQ55: 1176 | AR55: 5423706 | AS55: 546 | AT55: 6770340 | AU55: 1198 | AV55: 24463003 | AW55: 863 | AX55: 29182773 | AY55: 54 | AZ55: 3391739 | BA55: 23 | BB55: 2094804
A56: 2016 | B56: M212 | C56: 58116 | D56: LADISPOLI | E56: 24440 | F56: 41174 | G56: 18992 | H56: 11682 | I56: 21181714 | J56: 14227 | K56: 259898829 | L56: 6617 | M56: 118882114 | N56: 307 | O56: 10399575 | P56: 48 | Q56: 1842651 | R56: 794 | S56: 13261895 | T56: 713 | U56: 8497187 | V56: 433963965 | W56: 353786998 | X56: 14475.73642 | Y56: 18628.21177 | Z56: 8592.485501 | AA56: 34.29623568 | AB56: 1.145662848 | AC56: 23208 | AD56: 431865194 | AE56: 17834 | AF56: 80176967 | AG56: 7626 | AH56: 6146869 | AI56: 17089 | AJ56: 398360612 | AK56: 16688 | AL56: 8340243 | AM56: 14449 | AN56: 3045242 | AO56: 107 | AP56: -776003 | AQ56: 8275 | AR56: 37772902 | AS56: 3272 | AT56: 40651224 | AU56: 6394 | AV56: 129890017 | AW56: 5240 | AX56: 182742304 | AY56: 447 | AZ56: 28312697 | BA56: 222 | BB56: 20356218 | BC56: 58 | BD56: 16169956
A57: 2016 | B57: C767 | C57: 58050 | D57: LANUVIO | E57: 8356 | F57: 13605 | G57: 5341 | H57: 3702 | I57: 4440645 | J57: 4822 | K57: 88002551 | L57: 2499 | M57: 40940203 | N57: 93 | O57: 2599174 | P57: 10 | Q57: 318363 | R57: 254 | S57: 4095093 | T57: 260 | U57: 3217256 | V57: 143613285 | W57: 119448788 | X57: 14294.97224 | Y57: 22364.49878 | Z57: 8779.771261 | AA57: 32.45572044 | AB57: 0.7778841551 | AC57: 8033 | AD57: 140667706 | AE57: 6218 | AF57: 24164497 | AG57: 2752 | AH57: 2257689 | AI57: 6007 | AJ57: 129582412 | AK57: 5887 | AL57: 2584362 | AM57: 5490 | AN57: 1008741 | AO57: 29 | AP57: -172352 | AQ57: 2683 | AR57: 12750653 | AS57: 1287 | AT57: 15968924 | AU57: 2462 | AV57: 49678310 | AW57: 1586 | AX57: 53940545 | AY57: 113 | AZ57: 7150540 | BA57: 49 | BB57: 4469011 | BC57: 16 | BD57: 3263722
A58: 2016 | B58: M207 | C58: 58115 | D58: LARIANO | E58: 7834 | F58: 13509 | G58: 5044 | H58: 2940 | I58: 4204434 | J58: 4307 | K58: 74160943 | L58: 2380 | M58: 37978799 | N58: 98 | O58: 3240262 | P58: 9 | Q58: 404202 | R58: 284 | S58: 4613347 | T58: 321 | U58: 4051300 | V58: 128653287 | W58: 107359939 | X58: 13704.3578 | Y58: 21284.68259 | Z58: 7947.289881 | AA58: 36.16287975 | AB58: 1.059484299 | AC58: 7500 | AD58: 126579050 | AE58: 5598 | AF58: 21293348 | AG58: 2448 | AH58: 1995809 | AI58: 5339 | AJ58: 114715888 | AK58: 5224 | AL58: 2305130 | AM58: 5227 | AN58: 801748 | AO58: 35 | AP58: -416521 | AQ58: 2798 | AR58: 13662429 | AS58: 1168 | AT58: 14439772 | AU58: 2201 | AV58: 44566262 | AW58: 1310 | AX58: 44577219 | AY58: 91 | AZ58: 5728817 | BA58: 61 | BB58: 5535578 | BC58: 22 | BD58: 3613698
A59: 2016 | B59: E576 | C59: 58051 | D59: LICENZA | E59: 572 | F59: 983 | G59: 462 | H59: 173 | I59: 125703 | J59: 289 | K59: 5074737 | L59: 234 | M59: 3630016 | N59: 7 | O59: 101031 | P59: 0 | Q59: 0 | R59: 16 | S59: 306534 | T59: 11 | U59: 290090 | V59: 9528111 | W59: 7867077 | X59: 13753.63112 | Y59: 17028.30519 | Z59: 8003.130214 | AA59: 34.26573427 | AB59: 0 | AC59: 554 | AD59: 9566897 | AE59: 415 | AF59: 1661034 | AG59: 154 | AH59: 122483 | AI59: 400 | AJ59: 8737780 | AK59: 383 | AL59: 174140 | AM59: 388 | AN59: 68981 | AQ59: 196 | AR59: 982178 | AS59: 74 | AT59: 923244 | AU59: 182 | AV59: 3707165 | AW59: 92 | AX59: 3111519 | AY59: 10 | AZ59: 626934
A60: 2016 | B60: E813 | C60: 58052 | D60: MAGLIANO ROMANO | E60: 882 | F60: 1413 | G60: 654 | H60: 329 | I60: 240449 | J60: 524 | K60: 9440435 | L60: 276 | M60: 5322311 | N60: 7 | O60: 213337 | R60: 18 | S60: 322409 | T60: 18 | U60: 170576 | V60: 15709517 | W60: 12903845 | X60: 14630.20975 | Y60: 19730.64985 | Z60: 9132.232838 | AA60: 31.63265306 | AB60: 1.587301587 | AC60: 858 | AD60: 15624695 | AE60: 678 | AF60: 2805672 | AG60: 303 | AH60: 245030 | AI60: 648 | AJ60: 14529294 | AK60: 634 | AL60: 293018 | AM60: 625 | AN60: 114346 | AO60: 0 | AP60: 0 | AQ60: 279 | AR60: 1335872 | AS60: 128 | AT60: 1602943 | AU60: 245 | AV60: 4925867 | AW60: 188 | AX60: 6225972 | AY60: 12 | AZ60: 803334 | BA60: 14 | BB60: 1275723 | BC60: 0 | BD60: 0
A61: 2016 | B61: B632 | C61: 58053 | D61: MANDELA | E61: 567 | F61: 934 | G61: 395 | H61: 293 | I61: 379349 | J61: 305 | K61: 6912770 | L61: 194 | M61: 3642857 | N61: 6 | O61: 144542 | P61: 0 | Q61: 0 | R61: 19 | S61: 209931 | T61: 8 | U61: 162483 | V61: 11451932 | W61: 9195293 | X61: 16217.44797 | Y61: 23279.22278 | Z61: 9845.067452 | AA61: 25.74955908 | AB61: 1.234567901 | AC61: 545 | AD61: 11532983 | AE61: 440 | AF61: 2256639 | AG61: 150 | AH61: 125309 | AI61: 428 | AJ61: 10866946 | AK61: 423 | AL61: 232158 | AM61: 421 | AN61: 55505 | AQ61: 146 | AR61: 725451 | AS61: 76 | AT61: 951662 | AU61: 167 | AV61: 3401076 | AW61: 147 | AX61: 5140456 | AY61: 10 | AZ61: 628434 | BA61: 7 | BB61: 652940
A62: 2016 | B62: E900 | C62: 58054 | D62: MANZIANA | E62: 4853 | F62: 7711 | G62: 3416 | H62: 2542 | I62: 3773125 | J62: 2536 | K62: 56479281 | L62: 1624 | M62: 36906421 | N62: 96 | O62: 2383681 | P62: 8 | Q62: 274310 | R62: 136 | S62: 2387872 | T62: 135 | U62: 1717991 | V62: 103922681 | W62: 82737229 | X62: 17048.6769 | Y62: 24220.50029 | Z62: 10729.76644 | AA62: 29.21903977 | AB62: 2.596332166 | AC62: 4647 | AD62: 102030062 | AE62: 3718 | AF62: 21185452 | AG62: 1150 | AH62: 939178 | AI62: 3557 | AJ62: 96642994 | AK62: 3502 | AL62: 2140275 | AM62: 3485 | AN62: 766419 | AO62: 16 | AP62: -169309 | AQ62: 1402 | AR62: 6123710 | AS62: 542 | AT62: 6650663 | AU62: 1206 | AV62: 24874822 | AW62: 1343 | AX62: 47229324 | AY62: 151 | AZ62: 9663112 | BA62: 104 | BB62: 9437323 | BC62: 22 | BD62: 3405442
A63: 2016 | B63: E908 | C63: 58055 | D63: MARANO EQUO | E63: 533 | F63: 780 | G63: 387 | H63: 237 | I63: 147071 | J63: 280 | K63: 6059454 | L63: 222 | M63: 4080369 | R63: 11 | S63: 114376 | T63: 7 | U63: 122559 | V63: 10523829 | W63: 8637631 | X63: 16205.68668 | Y63: 22319.45995 | Z63: 11073.8859 | AA63: 19.69981238 | AB63: 0 | AC63: 519 | AD63: 10636440 | AE63: 447 | AF63: 1886198 | AG63: 161 | AH63: 136666 | AI63: 439 | AJ63: 10101995 | AK63: 426 | AL63: 191762 | AM63: 426 | AN63: 41409 | AO63: 0 | AP63: 0 | AQ63: 105 | AR63: 563531 | AS63: 71 | AT63: 885088 | AU63: 210 | AV63: 4419180 | AW63: 132 | AX63: 4241741 | AY63: 4 | AZ63: 240897
A64: 2016 | B64: E924 | C64: 58056 | D64: MARCELLINA | E64: 4438 | F64: 7363 | G64: 2820 | H64: 1666 | I64: 1899989 | J64: 2588 | K64: 42806965 | L64: 1318 | M64: 21569267 | N64: 32 | O64: 764417 | P64: 7 | Q64: 66306 | R64: 107 | S64: 1612131 | T64: 57 | U64: 627063 | V64: 69346138 | W64: 58605406 | X64: 13205.36413 | Y64: 20782.05887 | Z64: 7959.446693 | AA64: 35.3988283 | AB64: 0.3379900856 | AC64: 4268 | AD64: 68530844 | AE64: 3243 | AF64: 10740732 | AG64: 1509 | AH64: 1212714 | AI64: 3101 | AJ64: 62181693 | AK64: 3031 | AL64: 1186526 | AM64: 2987 | AN64: 488059 | AO64: 15 | AP64: -203927 | AQ64: 1556 | AR64: 7237062 | AS64: 654 | AT64: 8119960 | AU64: 1267 | AV64: 25495416 | AW64: 806 | AX64: 26813148 | AY64: 35 | AZ64: 2288210 | BA64: 15 | BB64: 1431462
A65: 2016 | B65: E958 | C65: 58057 | D65: MARINO | E65: 28815 | F65: 43797 | G65: 18903 | H65: 13499 | I65: 21751370 | J65: 16360 | K65: 346701659 | L65: 8051 | M65: 150059252 | N65: 445 | O65: 14711880 | P65: 52 | Q65: 1898752 | R65: 917 | S65: 16545393 | T65: 993 | U65: 12166723 | V65: 563835029 | W65: 455011346 | X65: 15790.7807 | Y65: 24070.85362 | Z65: 10389.09848 | AA65: 28.75932674 | AB65: 1.780322749 | AC65: 27530 | AD65: 556778599 | AE65: 22424 | AF65: 108823683 | AG65: 8779 | AH65: 7266421 | AI65: 21293 | AJ65: 523045720 | AK65: 20918 | AL65: 11110110 | AM65: 20776 | AN65: 4142958 | AO65: 125 | AP65: -1657556 | AQ65: 8162 | AR65: 37191227 | AS65: 3983 | AT65: 49632638 | AU65: 8231 | AV65: 167270321 | AW65: 6675 | AX65: 232741023 | AY65: 606 | AZ65: 38537971 | BA65: 391 | BB65: 35626760 | BC65: 122 | BD65: 24306190
A66: 2016 | B66: F064 | C66: 58058 | D66: MAZZANO ROMANO | E66: 1815 | F66: 3135 | G66: 1411 | H66: 678 | I66: 1084868 | J66: 971 | K66: 18031773 | L66: 613 | M66: 11178249 | N66: 27 | O66: 862100 | R66: 56 | S66: 808331 | T66: 44 | U66: 614372 | V66: 32579693 | W66: 26525887 | X66: 14614.81377 | Y66: 18799.35294 | Z66: 8461.207974 | AA66: 32.23140496 | AB66: 0.9917355372 | AC66: 1751 | AD66: 32360469 | AE66: 1403 | AF66: 6053806 | AG66: 584 | AH66: 466987 | AI66: 1348 | AJ66: 30157722 | AK66: 1309 | AL66: 610041 | AM66: 1309 | AN66: 236528 | AO66: 7 | AP66: -26475 | AQ66: 578 | AR66: 2764095 | AS66: 255 | AT66: 3133221 | AU66: 539 | AV66: 10966446 | AW66: 366 | AX66: 12474480 | AY66: 27 | AZ66: 1643105 | BA66: 10 | BB66: 987692 | BC66: 8 | BD66: 1781919
A67: 2016 | B67: F127 | C67: 58059 | D67: MENTANA | E67: 13824 | F67: 23122 | G67: 9379 | H67: 6063 | I67: 7714007 | J67: 8273 | K67: 154039981 | L67: 3612 | M67: 62274189 | N67: 201 | O67: 5269631 | P67: 26 | Q67: 852928 | R67: 453 | S67: 7174054 | T67: 444 | U67: 5336114 | V67: 242660904 | W67: 201037256 | X67: 14542.62558 | Y67: 21434.82845 | Z67: 8694.630914 | AA67: 31.80700231 | AB67: 0.8825231481 | AC67: 13251 | AD67: 238565425 | AE67: 10414 | AF67: 41623648 | AG67: 4846 | AH67: 3988984 | AI67: 9996 | AJ67: 220600623 | AK67: 9813 | AL67: 4450023 | AM67: 9696 | AN67: 1638256 | AO67: 48 | AP67: -391962 | AQ67: 4349 | AR67: 20404933 | AS67: 1986 | AT67: 24684752 | AU67: 4070 | AV67: 82666618 | AW67: 2808 | AX67: 96732427 | AY67: 205 | AZ67: 12804890 | BA67: 98 | BB67: 8872954 | BC67: 24 | BD67: 3893452
A68: 2016 | B68: F477 | C68: 58060 | D68: MONTE COMPATRI | E68: 7466 | F68: 12023 | G68: 5111 | H68: 3389 | I68: 4644098 | J68: 4482 | K68: 85933381 | L68: 1960 | M68: 34580632 | N68: 119 | O68: 3866656 | P68: 15 | Q68: 295379 | R68: 227 | S68: 4447854 | T68: 252 | U68: 3690390 | V68: =I68+K68+M68+O68+Q68+S68+U68 -> 137458390 | W68: =V68-AF68 -> 112282697 | X68: =W68/E68 -> 15039.20399 | Y68: =W68/G68 -> 21968.83134 | Z68: =W68/F68 -> 9338.991683 | AA68: =(AO68+AQ68)/E68*100 -> 30.39110635 | AB68: =(BA68+BC68)/E68*100 -> 1.459951781 | AC68: 7133 | AD68: 135806158 | AE68: 5619 | AF68: 25175693 | AG68: 2497 | AH68: 2057142 | AI68: 5425 | AJ68: 126357291 | AK68: 5326 | AL68: 2622663 | AM68: 5242 | AN68: 882984 | AO68: 35 | AP68: -387600 | AQ68: 2234 | AR68: 10528997 | AS68: 1064 | AT68: 13278034 | AU68: 2155 | AV68: 43568259 | AW68: 1596 | AX68: 55399166 | AY68: 129 | AZ68: 8182376 | BA68: 93 | BB68: 8498680 | BC68: 16 | BD68: 2966208
A69: 2016 | B69: F590 | C69: 58064 | D69: MONTE PORZIO CATONE | E69: 5795 | F69: 8631 | G69: 3464 | H69: 2911 | I69: 5910214 | J69: 3012 | K69: 75657489 | L69: 1856 | M69: 42737605 | N69: 186 | O69: 5202703 | P69: 16 | Q69: 929169 | R69: 200 | S69: 3630761 | T69: 221 | U69: 4103815 | V69: 138171756 | W69: 107460109 | X69: 18543.59085 | Y69: 31021.97142 | Z69: 12450.48187 | AA69: 25.4529767 | AB69: 3.848144953 | AC69: 5544 | AD69: 136178998 | AE69: 4594 | AF69: 30711647 | AG69: 1294 | AH69: 1060224 | AI69: 4438 | AJ69: 130601084 | AK69: 4367 | AL69: 3022625 | AM69: 4333 | AN69: 1035708 | AO69: 24 | AP69: -175176 | AQ69: 1451 | AR69: 6537703 | AS69: 671 | AT69: 8341994 | AU69: 1432 | AV69: 29086629 | AW69: 1637 | AX69: 59184224 | AY69: 247 | AZ69: 15691734 | BA69: 165 | BB69: 15080289 | BC69: 58 | BD69: 10454469
A70: 2016 | B70: F504 | C70: 58061 | D70: MONTEFLAVIO | E70: 921 | F70: 1322 | G70: 584 | H70: 461 | I70: 293459 | J70: 460 | K70: 8929648 | L70: 408 | M70: 6749173 | R70: 22 | S70: 402757 | T70: 16 | U70: 151151 | V70: 16526188 | W70: 13758166 | X70: 14938.29099 | Y70: 23558.50342 | Z70: 10407.08472 | AA70: 23.45276873 | AB70: 0.651465798 | AC70: 907 | AD70: 16541338 | AE70: 766 | AF70: 2768022 | AG70: 266 | AH70: 222170 | AI70: 743 | AJ70: 15631036 | AK70: 733 | AL70: 296293 | AM70: 735 | AN70: 124274 | AQ70: 216 | AR70: 1132795 | AS70: 142 | AT70: 1781042 | AU70: 362 | AV70: 7321080 | AW70: 182 | AX70: 5876322 | AY70: 5 | AZ70: 312764 | BA70: 6 | BB70: 500247
A71: 2016 | B71: F534 | C71: 58062 | D71: MONTELANICO | E71: 1379 | F71: 2144 | G71: 968 | H71: 561 | I71: 324969 | J71: 767 | K71: 13974214 | L71: 482 | M71: 7386594 | N71: 13 | O71: 394681 | R71: 39 | S71: 663746 | T71: 36 | U71: 473650 | V71: 23217854 | W71: 19456610 | X71: 14109.21682 | Y71: 20099.80372 | Z71: 9074.911381 | AA71: 30.89195069 | AB71: 0.2900652647 | AC71: 1329 | AD71: 22852576 | AE71: 1035 | AF71: 3761244 | AG71: 441 | AH71: 356565 | AI71: 1012 | AJ71: 21072516 | AK71: 981 | AL71: 402108 | AM71: 981 | AN71: 126830 | AO71: 6 | AP71: -19050 | AQ71: 420 | AR71: 1986877 | AS71: 217 | AT71: 2736263 | AU71: 437 | AV71: 8999798 | AW71: 252 | AX71: 8204580 | AY71: 15 | AZ71: 982481 | BA71: 4 | BB71: 374422
A72: 2016 | B72: F545 | C72: 58063 | D72: MONTELIBRETTI | E72: 3483 | F72: 5353 | G72: 2243 | H72: 1507 | I72: 1826352 | J72: 1749 | K72: 32346898 | L72: 1294 | M72: 19902697 | N72: 36 | O72: 889101 | P72: 5 | Q72: 261540 | R72: 114 | S72: 1632582 | T72: 120 | U72: 1345643 | V72: 58204813 | W72: 48564967 | X72: 13943.43009 | Y72: 21651.79091 | Z72: 9072.476555 | AA72: 33.96497272 | AB72: 0.8326155613 | AC72: 3372 | AD72: 57454205 | AE72: 2516 | AF72: 9639846 | AG72: 957 | AH72: 796109 | AI72: 2462 | AJ72: 52525546 | AK72: 2414 | AL72: 1035112 | AM72: 2408 | AN72: 314973 | AO72: 7 | AP72: -37437 | AQ72: 1176 | AR72: 5742256 | AS72: 530 | AT72: 6551344 | AU72: 1012 | AV72: 20629066 | AW72: 648 | AX72: 21807918 | AY72: 32 | AZ72: 2065356 | BA72: 25 | BB72: 2432523 | BC72: 4 | BD72: 588472
A73: 2016 | B73: F611 | C73: 58065 | D73: MONTEROTONDO | E73: 26321 | F73: 40813 | G73: 17772 | H73: 12583 | I73: 18825144 | J73: 15371 | K73: 315224630 | L73: 7309 | M73: 128281691 | N73: 446 | O73: 11980866 | P73: 82 | Q73: 1589502 | R73: 679 | S73: 11738317 | T73: 870 | U73: 11479689 | V73: 499119839 | W73: 408042476 | X73: 15502.54458 | Y73: 22959.85123 | Z73: 9997.855487 | AA73: 29.98746248 | AB73: 1.428517154 | AC73: 25123 | AD73: 490387395 | AE73: 20007 | AF73: 91077363 | AG73: 8253 | AH73: 6842189 | AI73: 19235 | AJ73: 457987264 | AK73: 18927 | AL73: 9509429 | AM73: 14254 | AN73: 3260754 | AO73: 93 | AP73: -733787 | AQ73: 7800 | AR73: 36723388 | AS73: 3380 | AT73: 42125569 | AU73: 7650 | AV73: 155198530 | AW73: 6065 | AX73: 209620226 | AY73: 493 | AZ73: 31276175 | BA73: 293 | BB73: 26415262 | BC73: 83 | BD73: 13577470
A74: 2016 | B74: F692 | C74: 58066 | D74: MONTORIO ROMANO | E74: 1196 | F74: 1930 | G74: 872 | H74: 460 | I74: 395168 | J74: 655 | K74: 10714085 | L74: 461 | M74: 7005321 | N74: 9 | O74: 332606 | R74: 39 | S74: 379364 | T74: 25 | U74: 284869 | V74: 19111413 | W74: 16118059 | X74: 13476.63796 | Y74: 18484.01261 | Z74: 8351.325907 | AA74: 33.77926421 | AB74: 0.9197324415 | AC74: 1172 | AD74: 18919438 | AE74: 888 | AF74: 2993354 | AG74: 374 | AH74: 304078 | AI74: 859 | AJ74: 17224030 | AK74: 833 | AL74: 331407 | AM74: 834 | AN74: 136314 | AQ74: 404 | AR74: 1998628 | AS74: 196 | AT74: 2444014 | AU74: 399 | AV74: 8067162 | AW74: 162 | AX74: 5386420 | AY74: 8 | AZ74: 497060 | BA74: 11 | BB74: 973578
A75: 2016 | B75: F730 | C75: 58067 | D75: MORICONE | E75: 1695 | F75: 2611 | G75: 1083 | H75: 709 | I75: 875767 | J75: 875 | K75: 15802229 | L75: 590 | M75: 8409685 | N75: 13 | O75: 425836 | R75: 43 | S75: 820548 | T75: 62 | U75: 747575 | V75: 27081640 | W75: 22768228 | X75: 13432.58289 | Y75: 21023.29455 | Z75: 8720.117962 | AA75: 35.87020649 | AB75: 0.4719764012 | AC75: 1625 | AD75: 26588460 | AE75: 1211 | AF75: 4313412 | AG75: 494 | AH75: 400243 | AI75: 1174 | AJ75: 24186244 | AK75: 1148 | AL75: 467184 | AM75: 1149 | AN75: 123298 | AO75: 7 | AP75: -198061 | AQ75: 601 | AR75: 2895150 | AS75: 267 | AT75: 3297127 | AU75: 459 | AV75: 9272257 | AW75: 314 | AX75: 10340328 | AY75: 14 | AZ75: 863423 | BA75: 8 | BB75: 756198
A76: 2016 | B76: F734 | C76: 58068 | D76: MORLUPO | E76: 5457 | F76: 8729 | G76: 3800 | H76: 2435 | I76: 3877870 | J76: 3008 | K76: 62083734 | L76: 1671 | M76: 31058747 | N76: 121 | O76: 3940817 | P76: 25 | Q76: 778278 | R76: 154 | S76: 2701834 | T76: 182 | U76: 2252144 | V76: 106693424 | W76: 85791604 | X76: 15721.38611 | Y76: 22576.73789 | Z76: 9828.342765 | AA76: 30.14476819 | AB76: 1.887483966 | AC76: 5273 | AD76: 105591978 | AE76: 4235 | AF76: 20901820 | AG76: 1601 | AH76: 1330825 | AI76: 4052 | AJ76: 99322493 | AK76: 3966 | AL76: 2126461 | AM76: 3947 | AN76: 787178 | AO76: 23 | AP76: -162311 | AQ76: 1622 | AR76: 7526595 | AS76: 719 | AT76: 8914129 | AU76: 1566 | AV76: 31639653 | AW76: 1221 | AX76: 43132884 | AY76: 126 | AZ76: 7911692 | BA76: 72 | BB76: 6552566 | BC76: 31 | BD76: 5450258
A77: 2016 | B77: F857 | C77: 58069 | D77: NAZZANO | E77: 894 | F77: 1425 | G77: 641 | H77: 320 | I77: 346649 | J77: 463 | K77: 8087443 | L77: 328 | M77: 5621273 | N77: 7 | O77: 237458 | R77: 28 | S77: 389957 | T77: 19 | U77: 313094 | V77: 14995874 | W77: 12329289 | X77: 13791.15101 | Y77: 19234.46022 | Z77: 8652.132632 | AA77: 36.24161074 | AB77: 0.8948545861 | AC77: 867 | AD77: 14973017 | AE77: 651 | AF77: 2666585 | AG77: 254 | AH77: 200328 | AI77: 619 | AJ77: 13566557 | AK77: 608 | AL77: 275674 | AM77: 601 | AN77: 56704 | AO77: 0 | AP77: 0 | AQ77: 324 | AR77: 1515671 | AS77: 142 | AT77: 1746363 | AU77: 220 | AV77: 4437456 | AW77: 175 | AX77: 5864241 | AY77: 11 | AZ77: 707650 | BA77: 8 | BB77: 737613
A78: 2016 | B78: F865 | C78: 58070 | D78: NEMI | E78: 1272 | F78: 1910 | G78: 818 | H78: 565 | I78: 1372874 | J78: 615 | K78: 13471380 | L78: 435 | M78: 7857588 | N78: 38 | O78: 1373272 | R78: 52 | S78: 853816 | T78: 73 | U78: 543128 | V78: 25472058 | W78: 20325148 | X78: 15978.88994 | Y78: 24847.36919 | Z78: 10641.43874 | AA78: 30.66037736 | AB78: 2.908805031 | AC78: 1213 | AD78: 25063883 | AE78: 959 | AF78: 5146910 | AG78: 316 | AH78: 253896 | AI78: 935 | AJ78: 23587615 | AK78: 917 | AL78: 518485 | AM78: 904 | AN78: 186376 | AQ78: 390 | AR78: 1816974 | AS78: 156 | AT78: 1926968 | AU78: 355 | AV78: 7103960 | AW78: 257 | AX78: 8867361 | AY78: 49 | AZ78: 3131466 | BA78: 30 | BB78: 2732653 | BC78: 7 | BD78: 1087712
A79: 2016 | B79: F871 | C79: 58071 | D79: NEROLA | E79: 1314 | F79: 1957 | G79: 854 | H79: 594 | I79: 721542 | J79: 702 | K79: 13814104 | L79: 452 | M79: 7851392 | N79: 17 | O79: 509407 | P79: 5 | Q79: 61437 | R79: 44 | S79: 660894 | T79: 53 | U79: 583024 | V79: 24201800 | W79: 19757372 | X79: 15036.05175 | Y79: 23135.09602 | Z79: 10095.74451 | AA79: 30.3652968 | AB79: 0.7610350076 | AC79: 1287 | AD79: 23825148 | AE79: 1004 | AF79: 4444428 | AG79: 361 | AH79: 288409 | AI79: 973 | AJ79: 22286210 | AK79: 951 | AL79: 460050 | AM79: 952 | AN79: 177278 | AO79: 0 | AP79: 0 | AQ79: 399 | AR79: 1801022 | AS79: 181 | AT79: 2235530 | AU79: 401 | AV79: 8088450 | AW79: 289 | AX79: 10071899 | AY79: 17 | AZ79: 1080694 | BA79: 10 | BB79: 962416
A80: 2016 | B80: F880 | C80: 58072 | D80: NETTUNO | E80: 30491 | F80: 49657 | G80: 21895 | H80: 12777 | I80: 21093756 | J80: 17186 | K80: 330736890 | L80: 9226 | M80: 164829933 | N80: 404 | O80: 13103782 | P80: 38 | Q80: 1245689 | R80: 874 | S80: 14717845 | T80: 838 | U80: 10229774 | V80: 555957669 | W80: 452352011 | X80: 14835.59119 | Y80: 20660.05988 | Z80: 9109.531607 | AA80: 34.4035945 | AB80: 1.164277984 | AC80: 29056 | AD80: 544556878 | AE80: 22189 | AF80: 103605658 | AG80: 9203 | AH80: 7411219 | AI80: 21367 | AJ80: 504796903 | AK80: 20861 | AL80: 10625236 | AM80: 20821 | AN80: 3971294 | AO80: 124 | AP80: -1305999 | AQ80: 10366 | AR80: 47389622 | AS80: 4146 | AT80: 51380990 | AU80: 8235 | AV80: 167536714 | AW80: 6161 | AX80: 211833298 | AY80: 460 | AZ80: 29391064 | BA80: 266 | BB80: 23862259 | BC80: 89 | BD80: 38441025
A81: 2016 | B81: G022 | C81: 58073 | D81: OLEVANO ROMANO | E81: 4144 | F81: 6657 | G81: 2803 | H81: 1845 | I81: 1877162 | J81: 2136 | K81: 39196582 | L81: 1499 | M81: 21709737 | N81: 48 | O81: 1477970 | R81: 155 | S81: 2566410 | T81: 110 | U81: 1343974 | V81: 68171835 | W81: 57174578 | X81: 13796.95415 | Y81: 20397.63753 | Z81: 8588.640228 | AA81: 34.99034749 | AB81: 0.7480694981 | AC81: 4025 | AD81: 67160601 | AE81: 2955 | AF81: 10997257 | AG81: 1166 | AH81: 951813 | AI81: 2867 | AJ81: 60669857 | AK81: 2800 | AL81: 1201055 | AM81: 2188 | AN81: 359318 | AO81: 11 | AP81: -88990 | AQ81: 1439 | AR81: 6961182 | AS81: 668 | AT81: 8133774 | AU81: 1122 | AV81: 22475377 | AW81: 795 | AX81: 26897757 | AY81: 33 | AZ81: 2101199 | BA81: 25 | BB81: 2294139 | BC81: 6 | BD81: 914575
A82: 2016 | B82: G274 | C82: 58074 | D82: PALESTRINA | E82: 13769 | F82: 21716 | G82: 9024 | H82: 5567 | I82: 9200683 | J82: 7520 | K82: 140105058 | L82: 4092 | M82: 70215545 | N82: 230 | O82: 6842816 | P82: 43 | Q82: 1608011 | R82: 437 | S82: 8357332 | T82: 529 | U82: 7675218 | V82: 244004663 | W82: 200819071 | X82: 14584.86971 | Y82: 22253.88641 | Z82: 9247.516624 | AA82: 32.03573244 | AB82: 1.270971022 | AC82: 13174 | AD82: 239133311 | AE82: 10368 | AF82: 43185592 | AG82: 4246 | AH82: 3457885 | AI82: 9899 | AJ82: 221758182 | AK82: 9689 | AL82: 4525298 | AM82: 9621 | AN82: 1755271 | AO82: 43 | AP82: -643673 | AQ82: 4368 | AR82: 20101144 | AS82: 1998 | AT82: 24732152 | AU82: 3916 | AV82: 79458145 | AW82: 2763 | AX82: 93725481 | AY82: 201 | AZ82: 12548353 | BA82: 137 | BB82: 12771434 | BC82: 38 | BD82: 7740778
A83: 2016 | B83: G293 | C83: 58075 | D83: PALOMBARA SABINA | E83: 8255 | F83: 13218 | G83: 5460 | H83: 3693 | I83: 4516073 | J83: 4581 | K83: 84231999 | L83: 2615 | M83: 43967008 | N83: 111 | O83: 3229467 | P83: 8 | Q83: 303395 | R83: 246 | S83: 4083392 | T83: 216 | U83: 2711200 | V83: 143042534 | W83: 118436867 | X83: 14347.28855 | Y83: 21691.73388 | Z83: 8960.271372 | AA83: 31.25378558 | AB83: 0.8237431859 | AC83: 7931 | AD83: 141430757 | AE83: 6241 | AF83: 24605667 | AG83: 2651 | AH83: 2166664 | AI83: 6018 | AJ83: 131236557 | AK83: 5890 | AL83: 2610098 | AM83: 5493 | AN83: 1025376 | AO83: 27 | AP83: -286654 | AQ83: 2553 | AR83: 11893629 | AS83: 1234 | AT83: 15327953 | AU83: 2507 | AV83: 50778230 | AW83: 1616 | AX83: 54449918 | AY83: 110 | AZ83: 6999917 | BA83: 52 | BB83: 4794994 | BC83: 16 | BD83: 3122940
A84: 2016 | B84: G444 | C84: 58076 | D84: PERCILE | E84: 138 | F84: 241 | G84: 137 | H84: 46 | I84: 38638 | J84: 50 | K84: 778026 | L84: 72 | M84: 1057617 | P84: 0 | Q84: 0 | R84: 9 | S84: 105322 | V84: 1979603 | W84: 1683320 | X84: 12197.97101 | Y84: 12287.0073 | Z84: 6984.73029 | AA84: 36.23188406 | AB84: 0 | AC84: 134 | AD84: 2052492 | AE84: 100 | AF84: 296283 | AG84: 32 | AH84: 23876 | AI84: 98 | AJ84: 1859876 | AK84: 94 | AL84: 34764 | AM84: 8 | AN84: 1364 | AO84: 0 | AP84: 0 | AQ84: 50 | AR84: 265777 | AS84: 20 | AT84: 235301 | AU84: 47 | AV84: 952715 | AW84: 18 | AX84: 596077 | BA84: 0 | BB84: 0 | BC84: 0 | BD84: 0
A85: 2016 | B85: G704 | C85: 58077 | D85: PISONIANO | E85: 482 | F85: 753 | G85: 267 | H85: 229 | I85: 168130 | J85: 239 | K85: 4408372 | L85: 201 | M85: 3261773 | R85: 10 | S85: 194908 | T85: 10 | U85: 166002 | V85: 8199185 | W85: 6763934 | X85: 14033.05809 | Y85: 25333.08614 | Z85: 8982.648074 | AA85: 31.95020747 | AB85: 0 | AC85: 472 | AD85: 8262814 | AE85: 371 | AF85: 1435251 | AG85: 126 | AH85: 103842 | AI85: 353 | AJ85: 7619933 | AK85: 342 | AL85: 146907 | AM85: 346 | AN85: 60313 | AO85: 0 | AP85: 0 | AQ85: 154 | AR85: 756813 | AS85: 75 | AT85: 937939 | AU85: 150 | AV85: 3059891 | AW85: 94 | AX85: 3055073
A86: 2016 | B86: G784 | C86: 58078 | D86: POLI | E86: 1418 | F86: 2425 | G86: 1022 | H86: 567 | I86: 518340 | J86: 783 | K86: 12867516 | L86: 481 | M86: 7402890 | N86: 8 | O86: 136033 | P86: 4 | Q86: 129765 | R86: 35 | S86: 514223 | T86: 19 | U86: 191590 | V86: 21760357 | W86: 18424906 | X86: 12993.58674 | Y86: 18028.28376 | Z86: 7597.899381 | AA86: 36.17771509 | AB86: 0.3526093089 | AC86: 1358 | AD86: 21503958 | AE86: 1026 | AF86: 3335451 | AG86: 493 | AH86: 406752 | AI86: 989 | AJ86: 19445787 | AK86: 962 | AL86: 375388 | AM86: 952 | AN86: 81453 | AO86: 12 | AP86: -39414 | AQ86: 501 | AR86: 2535770 | AS86: 235 | AT86: 2921192 | AU86: 413 | AV86: 8180464 | AW86: 213 | AX86: 7168392 | AY86: 10 | AZ86: 637160 | BA86: 5 | BB86: 431262
A87: 2016 | B87: G811 | C87: 58079 | D87: POMEZIA | E87: 41708 | F87: 63268 | G87: 25567 | H87: 19835 | I87: 26270197 | J87: 26249 | K87: 528192014 | L87: 10803 | M87: 201921783 | N87: 485 | O87: 17039141 | P87: 58 | Q87: 1271122 | R87: 1016 | S87: 18446713 | T87: 969 | U87: 11860597 | V87: 805001567 | W87: 657088797 | X87: 15754.50266 | Y87: 25700.66089 | Z87: 10385.80004 | AA87: 28.31830824 | AB87: 1.22997986 | AC87: 39986 | AD87: 792263208 | AE87: 32305 | AF87: 147912770 | AG87: 14436 | AH87: 11839291 | AI87: 31240 | AJ87: 743639436 | AK87: 30712 | AL87: 15387847 | AM87: 27499 | AN87: 4668486 | AO87: 164 | AP87: -2100445 | AQ87: 11647 | AR87: 54238997 | AS87: 5680 | AT87: 70656271 | AU87: 12273 | AV87: 250857055 | AW87: 10104 | AX87: 350291254 | AY87: 687 | AZ87: 43226139 | BA87: 396 | BB87: 35860104 | BC87: 117 | BD87: 22089125
A88: 2016 | B88: G874 | C88: 58080 | D88: PONZANO ROMANO | E88: 739 | F88: 1137 | G88: 549 | H88: 276 | I88: 362680 | J88: 378 | K88: 6785044 | L88: 258 | M88: 4021747 | N88: 8 | O88: 275819 | R88: 26 | S88: 316879 | T88: 23 | U88: 243512 | V88: 12005681 | W88: 10011879 | X88: 13547.87415 | Y88: 18236.57377 | Z88: 8805.522427 | AA88: 31.79972936 | AB88: 1.353179973 | AC88: 718 | AD88: 11884163 | AE88: 550 | AF88: 1993802 | AG88: 237 | AH88: 193247 | AI88: 534 | AJ88: 10842194 | AK88: 526 | AL88: 214589 | AM88: 520 | AN88: 25924 | AO88: 4 | AP88: -44350 | AQ88: 231 | AR88: 1116581 | AS88: 121 | AT88: 1464597 | AU88: 238 | AV88: 4666905 | AW88: 116 | AX88: 3838125 | AY88: 10 | AZ88: 594287 | BA88: 10 | BB88: 875584 | BC88: 0 | BD88: 0
A89: 2016 | B89: H267 | C89: 58081 | D89: RIANO | E89: 6120 | F89: 10565 | G89: 4306 | H89: 2691 | I89: 4356003 | J89: 3506 | K89: 75927004 | L89: 1679 | M89: 32818624 | N89: 158 | O89: 5280894 | P89: 19 | Q89: 245508 | R89: 187 | S89: 3809308 | T89: 201 | U89: 3182110 | V89: 125619451 | W89: 99808065 | X89: 16308.50735 | Y89: 23178.83535 | Z89: 9447.048273 | AA89: 29.68954248 | AB89: 3.039215686 | AC89: 5854 | AD89: 124403732 | AE89: 4709 | AF89: 25811386 | AG89: 1899 | AH89: 1563859 | AI89: 4487 | AJ89: 117041475 | AK89: 4392 | AL89: 2586307 | AM89: 3306 | AN89: 845866 | AO89: 29 | AP89: -326704 | AQ89: 1788 | AR89: 8156468 | AS89: 808 | AT89: 10052448 | AU89: 1710 | AV89: 34551350 | AW89: 1320 | AX89: 46441404 | AY89: 159 | AZ89: 10129646 | BA89: 131 | BB89: 11965550 | BC89: 55 | BD89: 9997349
A90: 2016 | B90: H288 | C90: 58082 | D90: RIGNANO FLAMINIO | E90: 6006 | F90: 10232 | G90: 4539 | H90: 2627 | I90: 4474442 | J90: 3470 | K90: 68052419 | L90: 1721 | M90: 34409984 | N90: 117 | O90: 3671088 | P90: 11 | Q90: 353644 | R90: 215 | S90: 3434984 | T90: 140 | U90: 2060938 | V90: 116457499 | W90: 94129638 | X90: 15672.6004 | Y90: 20737.96827 | Z90: 9199.534597 | AA90: 31.96803197 | AB90: 1.998001998 | AC90: 5782 | AD90: 114327274 | AE90: 4558 | AF90: 22327861 | AG90: 1857 | AH90: 1517481 | AI90: 4361 | AJ90: 106450122 | AK90: 4263 | AL90: 2275693 | AM90: 4120 | AN90: 837687 | AO90: 22 | AP90: -375984 | AQ90: 1898 | AR90: 9225013 | AS90: 771 | AT90: 9531200 | AU90: 1602 | AV90: 32355728 | AW90: 1371 | AX90: 47986903 | AY90: 126 | AZ90: 8079542 | BA90: 88 | BB90: 8169420 | BC90: 32 | BD90: 5254210
A91: 2016 | B91: H300 | C91: 58083 | D91: RIOFREDDO | E91: 481 | F91: 762 | G91: 377 | H91: 224 | I91: 135138 | J91: 252 | K91: 4446843 | L91: 179 | M91: 2956471 | N91: 0 | O91: 0 | R91: 16 | S91: 266021 | T91: 8 | U91: 91167 | V91: 7895640 | W91: 6565425 | X91: 13649.53222 | Y91: 17414.92042 | Z91: 8616.043307 | AA91: 32.01663202 | AB91: 0 | AC91: 466 | AD91: 7993724 | AE91: 364 | AF91: 1330215 | AG91: 148 | AH91: 116790 | AI91: 352 | AJ91: 7309186 | AK91: 342 | AL91: 140573 | AM91: 19 | AN91: 2642 | AQ91: 154 | AR91: 737294 | AS91: 68 | AT91: 855818 | AU91: 150 | AV91: 3051077 | AW91: 90 | AX91: 2925435 | AY91: 4 | AZ91: 278662
A92: 2016 | B92: H387 | C92: 58084 | D92: ROCCA CANTERANO | E92: 153 | F92: 188 | G92: 112 | H92: 52 | I92: 12525 | J92: 82 | K92: 1482650 | L92: 61 | M92: 856845 | P92: 0 | Q92: 0 | R92: 7 | S92: 103000 | T92: 0 | U92: 0 | V92: 2455020 | W92: 2031617 | X92: 13278.54248 | Y92: 18139.4375 | Z92: 10806.4734 | AA92: 30.06535948 | AB92: 0 | AC92: 147 | AD92: 2508368 | AE92: 115 | AF92: 423403 | AG92: 49 | AH92: 42135 | AI92: 114 | AJ92: 2331220 | AK92: 112 | AL92: 43318 | AM92: 5 | AN92: 591 | AQ92: 46 | AR92: 238731 | AS92: 25 | AT92: 304590 | AU92: 50 | AV92: 1012321 | AW92: 25 | AX92: 771570 | BC92: 0 | BD92: 0
A93: 2016 | B93: H401 | C93: 58085 | D93: ROCCA DI CAVE | E93: 252 | F93: 378 | G93: 193 | H93: 76 | I93: 38199 | J93: 117 | K93: 2309198 | L93: 102 | M93: 1649142 | N93: 4 | O93: 65273 | P93: 0 | Q93: 0 | R93: 4 | S93: 49336 | T93: 8 | U93: 79762 | V93: 4190910 | W93: 3449943 | X93: 13690.25 | Y93: 17875.35233 | Z93: 9126.833333 | AA93: 34.52380952 | AB93: 0 | AC93: 243 | AD93: 4186110 | AE93: 190 | AF93: 740967 | AG93: 64 | AH93: 52033 | AI93: 182 | AJ93: 3877474 | AK93: 180 | AL93: 77461 | AM93: 180 | AN93: 30782 | AQ93: 87 | AR93: 488365 | AS93: 34 | AT93: 410467 | AU93: 75 | AV93: 1511935 | AW93: 46 | AX93: 1526867 | BC93: 0 | BD93: 0
A94: 2016 | B94: H404 | C94: 58086 | D94: ROCCA DI PAPA | E94: 9650 | F94: 17144 | G94: 6880 | H94: 4052 | I94: 6121254 | J94: 5344 | K94: 110942725 | L94: 2673 | M94: 51619780 | N94: 186 | O94: 7637386 | P94: 19 | Q94: 1041430 | R94: 354 | S94: 6308433 | T94: 352 | U94: 4282787 | V94: 187953795 | W94: 150898079 | X94: 15637.10663 | Y94: 21932.86032 | Z94: 8801.801155 | AA94: 32.52849741 | AB94: 2.404145078 | AC94: 9196 | AD94: 184767052 | AE94: 7117 | AF94: 37055716 | AG94: 2907 | AH94: 2368208 | AI94: 6801 | AJ94: 171448973 | AK94: 6660 | AL94: 3755592 | AM94: 6636 | AN94: 1357938 | AO94: 43 | AP94: -252895 | AQ94: 3096 | AR94: 14447620 | AS94: 1288 | AT94: 15900505 | AU94: 2621 | AV94: 53222088 | AW94: 1929 | AX94: 67452149 | AY94: 224 | AZ94: 14367927 | BA94: 167 | BB94: 15237143 | BC94: 65 | BD94: 14602371
A95: 2016 | B95: H432 | C95: 58088 | D95: ROCCA PRIORA | E95: 7397 | F95: 12013 | G95: 4873 | H95: 3252 | I95: 4755938 | J95: 4102 | K95: 80394820 | L95: 2289 | M95: 44225906 | N95: 132 | O95: 4515808 | P95: 11 | Q95: 165342 | R95: 240 | S95: 3780532 | T95: 255 | U95: 3146818 | V95: 140985164 | W95: 114626465 | X95: 15496.34514 | Y95: 23522.77139 | Z95: 9541.868393 | AA95: 31.02609166 | AB95: 1.770988238 | AC95: 7101 | AD95: 138043287 | AE95: 5595 | AF95: 26358699 | AG95: 2152 | AH95: 1748278 | AI95: 5379 | AJ95: 128957544 | AK95: 5278 | AL95: 2722749 | AM95: 5236 | AN95: 845215 | AO95: 29 | AP95: -133969 | AQ95: 2266 | AR95: 10667973 | AS95: 1019 | AT95: 12644620 | AU95: 1980 | AV95: 40060803 | AW95: 1685 | AX95: 57965246 | AY95: 163 | AZ95: 10374000 | BA95: 106 | BB95: 9624296 | BC95: 25 | BD95: 3964077
A96: 2016 | B96: H441 | C96: 58089 | D96: ROCCA SANTO STEFANO | E96: 600 | F96: 971 | G96: 396 | H96: 223 | I96: 68920 | J96: 301 | K96: 5398567 | L96: 228 | M96: 3425962 | R96: 25 | S96: 346818 | T96: 14 | U96: 134260 | V96: 9374527 | W96: 7975369 | X96: 13292.28167 | Y96: 20139.82071 | Z96: 8213.562307 | AA96: 29.16666667 | AB96: 0 | AC96: 578 | AD96: 9272440 | AE96: 443 | AF96: 1399158 | AG96: 189 | AH96: 163344 | AI96: 431 | AJ96: 8476777 | AK96: 417 | AL96: 155421 | AM96: 420 | AN96: 66791 | AO96: 5 | AP96: -70469 | AQ96: 170 | AR96: 797045 | AS96: 103 | AT96: 1289491 | AU96: 228 | AV96: 4470089 | AW96: 84 | AX96: 2778043 | BC96: 0 | BD96: 0
A97: 2016 | B97: H411 | C97: 58087 | D97: ROCCAGIOVINE | E97: 177 | F97: 265 | G97: 120 | H97: 78 | I97: 49368 | J97: 73 | K97: 1291711 | L97: 80 | M97: 1360316 | P97: 0 | Q97: 0 | R97: 4 | S97: 87291 | V97: 2788686 | W97: 2331573 | X97: 13172.72881 | Y97: 19429.775 | Z97: 8798.388679 | AA97: 35.02824859 | AB97: 0 | AC97: 170 | AD97: 2848829 | AE97: 132 | AF97: 457113 | AG97: 43 | AH97: 31697 | AI97: 128 | AJ97: 2620015 | AK97: 126 | AL97: 49373 | AM97: 123 | AN97: 13318 | AO97: 0 | AP97: 0 | AQ97: 62 | AR97: 288296 | AS97: 24 | AT97: 306659 | AU97: 58 | AV97: 1239571 | AW97: 29 | AX97: 972846 | BA97: 0 | BB97: 0 | BC97: 0 | BD97: 0
A98: 2016 | B98: H494 | C98: 58090 | D98: ROIATE | E98: 476 | F98: 719 | G98: 320 | H98: 180 | I98: 77037 | J98: 245 | K98: 4778865 | L98: 202 | M98: 3104444 | N98: 5 | O98: 64686 | P98: 0 | Q98: 0 | R98: 9 | S98: 97682 | T98: 7 | U98: 49997 | V98: 8172711 | W98: 6840004 | X98: 14369.7563 | Y98: 21375.0125 | Z98: 9513.218359 | AA98: 28.36134454 | AB98: 0 | AC98: 466 | AD98: 8220331 | AE98: 381 | AF98: 1332707 | AG98: 133 | AH98: 106941 | AI98: 362 | AJ98: 7600833 | AK98: 357 | AL98: 139884 | AM98: 355 | AN98: 17143 | AO98: 0 | AP98: 0 | AQ98: 135 | AR98: 742608 | AS98: 64 | AT98: 794129 | AU98: 167 | AV98: 3494758 | AW98: 103 | AX98: 3267621 | BA98: 0 | BB98: 0 | BC98: 0 | BD98: 0
A99: 2016 | B99: H501 | C99: 58091 | D99: ROMA | E99: 1949106 | F99: 2873494 | G99: 1363997 | H99: 931675 | I99: 2468902359 | J99: 1031164 | K99: 26463550398 | L99: 653501 | M99: 14604490405 | N99: 64282 | O99: 2922909574 | P99: 3483 | Q99: 138028813 | R99: 45676 | S99: 879179489 | T99: 51236 | U99: 1257865103 | V99: 48734926141 | W99: 37200011785 | X99: 19085.67917 | Y99: 27272.7959 | Z99: 12945.91594 | AA99: 27.83712122 | AB99: 4.937083976 | AC99: 1862368 | AD99: 48344155592 | AE99: 1499386 | AF99: 11534914356 | AG99: 472424 | AH99: 386288291 | AI99: 1445739 | AJ99: 46201448734 | AK99: 1423526 | AL99: 1105357649 | AM99: 1228085 | AN99: 397323611 | AO99: 6088 | AP99: -70455977 | AQ99: 536487 | AR99: 2325456326 | AS99: 210097 | AT99: 2615976294 | AU99: 467804 | AV99: 9576003996 | AW99: 515737 | AX99: 18528261449 | AY99: 78028 | AZ99: 4980670912 | BA99: 62949 | BB99: 5788436146 | BC99: 33280 | BD99: 7764633585
A100: 2016 | B100: H618 | C100: 58092 | D100: ROVIANO | E100: 888 | F100: 1334 | G100: 598 | H100: 329 | I100: 224119 | J100: 500 | K100: 9590377 | L100: 320 | M100: 5302251 | N100: 4 | O100: 95561 | P100: 0 | Q100: 0 | R100: 25 | S100: 377266 | T100: 16 | U100: 176983 | V100: 15766557 | W100: 13087133 | X100: 14737.76239 | Y100: 21884.83779 | Z100: 9810.444528 | AA100: 27.7027027 | AB100: 0.7882882883 | AC100: 859 | AD100: 15663075 | AE100: 705 | AF100: 2679424 | AG100: 313 | AH100: 262244 | AI100: 690 | AJ100: 14684832 | AK100: 676 | AL100: 285741 | AM100: 677 | AN100: 116420 | AQ100: 246 | AR100: 1331120 | AS100: 128 | AT100: 1610777 | AU100: 321 | AV100: 6520719 | AW100: 156 | AX100: 5087248 | AY100: 10 | AZ100: 600131 | BA100: 7 | BB100: 597757
A101: 2016 | B101: H658 | C101: 58093 | D101: SACROFANO | E101: 4561 | F101: 7806 | G101: 3433 | H101: 2000 | I101: 8112417 | J101: 2336 | K101: 54993973 | L101: 1318 | M101: 31847467 | N101: 184 | O101: 6690361 | P101: 14 | Q101: 394585 | R101: 172 | S101: 3007812 | T101: 196 | U101: 3222792 | V101: 108269407 | W101: 82911995 | X101: 18178.46854 | Y101: 24151.46956 | Z101: 10621.57251 | AA101: 29.81802236 | AB101: 5.262003947 | AC101: 4335 | AD101: 106697131 | AE101: 3567 | AF101: 25357412 | AG101: 1165 | AH101: 943998 | AI101: 3383 | AJ101: 101585794 | AK101: 3313 | AL101: 2428461 | AM101: 3059 | AN101: 800976 | AO101: 30 | AP101: -281508 | AQ101: 1330 | AR101: 6013416 | AS101: 555 | AT101: 6818952 | AU101: 1093 | AV101: 22100781 | AW101: 1051 | AX101: 38412380 | AY101: 176 | AZ101: 11229716 | BA101: 162 | BB101: 14667230 | BC101: 78 | BD101: 15098115
A102: 2016 | B102: H745 | C102: 58094 | D102: SAMBUCI | E102: 563 | F102: 907 | G102: 393 | H102: 216 | I102: 215728 | J102: 291 | K102: 5397515 | L102: 210 | M102: 3364342 | N102: 7 | O102: 261528 | R102: 19 | S102: 245547 | T102: 13 | U102: 105273 | V102: 9589933 | W102: 8062052 | X102: 14319.80817 | Y102: 20514.12723 | Z102: 8888.701213 | AA102: 29.6625222 | AB102: 0.7104795737 | AC102: 547 | AD102: 9473039 | AE102: 432 | AF102: 1527881 | AG102: 163 | AH102: 135266 | AI102: 420 | AJ102: 8760822 | AK102: 406 | AL102: 167954 | AM102: 408 | AN102: 44471 | AQ102: 167 | AR102: 823715 | AS102: 88 | AT102: 1087853 | AU102: 171 | AV102: 3464681 | AW102: 121 | AX102: 3944706 | BA102: 4 | BB102: 392388 | BC102: 0 | BD102: 0
A103: 2016 | B103: M295 | C103: 58119 | D103: SAN CESAREO | E103: 9148 | F103: 15507 | G103: 5950 | H103: 3648 | I103: 5060665 | J103: 5439 | K103: 98359026 | L103: 2412 | M103: 41259388 | N103: 76 | O103: 2236988 | P103: 23 | Q103: 590498 | R103: 326 | S103: 5335750 | T103: 317 | U103: 4519473 | V103: 157361788 | W103: 130516335 | X103: 14267.19884 | Y103: 21935.51849 | Z103: 8416.607661 | AA103: 31.49322256 | AB103: 0.7324005247 | AC103: 8770 | AD103: 155853071 | AE103: 6864 | AF103: 26845453 | AG103: 3153 | AH103: 2575832 | AI103: 6574 | AJ103: 142622830 | AK103: 6433 | AL103: 2826074 | AM103: 6355 | AN103: 1122851 | AO103: 44 | AP103: -408892 | AQ103: 2837 | AR103: 13353308 | AS103: 1367 | AT103: 16952578 | AU103: 2658 | AV103: 53810090 | AW103: 1886 | AX103: 63795056 | AY103: 116 | AZ103: 7311357 | BA103: 44 | BB103: 3975289 | BC103: 23 | BD103: 4006329
A104: 2016 | B104: H942 | C104: 58095 | D104: SAN GREGORIO DA SASSOLA | E104: 1031 | F104: 1589 | G104: 718 | H104: 414 | I104: 328623 | J104: 495 | K104: 8691190 | L104: 420 | M104: 6447010 | N104: 6 | O104: 93779 | P104: 4 | Q104: 102785 | R104: 37 | S104: 537880 | T104: 18 | U104: 282846 | V104: 16484113 | W104: 13838183 | X104: 13422.09796 | Y104: 19273.23538 | Z104: 8708.736941 | AA104: 32.49272551 | AB104: 0 | AC104: 991 | AD104: 16326763 | AE104: 776 | AF104: 2645930 | AG104: 273 | AH104: 227249 | AI104: 756 | AJ104: 15033202 | AK104: 740 | AL104: 285131 | AM104: 739 | AN104: 91353 | AO104: 7 | AP104: -24946 | AQ104: 328 | AR104: 1631728 | AS104: 169 | AT104: 2103864 | AU104: 312 | AV104: 6185128 | AW104: 191 | AX104: 6343859 | AY104: 8 | AZ104: 511917 | BC104: 0 | BD104: 0
A105: 2016 | B105: I125 | C105: 58096 | D105: SAN POLO DEI CAVALIERI | E105: 1779 | F105: 2981 | G105: 1342 | H105: 803 | I105: 920970 | J105: 966 | K105: 17760234 | L105: 572 | M105: 10241998 | N105: 33 | O105: 806226 | P105: 6 | Q105: 71897 | R105: 58 | S105: 762059 | T105: 55 | U105: 769064 | V105: 31332448 | W105: 25919357 | X105: 14569.6217 | Y105: 19313.9769 | Z105: 8694.853069 | AA105: 31.25351321 | AB105: 0.8431703204 | AC105: 1711 | AD105: 30966273 | AE105: 1379 | AF105: 5413091 | AG105: 549 | AH105: 438223 | AI105: 1312 | AJ105: 28775434 | AK105: 1294 | AL105: 566948 | AM105: 1269 | AN105: 174723 | AO105: 6 | AP105: -41063 | AQ105: 550 | AR105: 2536624 | AS105: 233 | AT105: 2914597 | AU105: 546 | AV105: 11222766 | AW105: 378 | AX105: 12561494 | AY105: 25 | AZ105: 1579682 | BA105: 11 | BB105: 992109 | BC105: 4 | BD105: 585646
A106: 2016 | B106: I400 | C106: 58100 | D106: SAN VITO ROMANO | E106: 1989 | F106: 3339 | G106: 1329 | H106: 956 | I106: 662407 | J106: 1028 | K106: 19184657 | L106: 705 | M106: 10397673 | N106: 16 | O106: 351757 | R106: 82 | S106: 1348707 | T106: 85 | U106: 1083008 | V106: 33028209 | W106: 27837033 | X106: 13995.4917 | Y106: 20945.84876 | Z106: 8336.937107 | AA106: 34.13775767 | AB106: 0.7038712921 | AC106: 1931 | AD106: 32290488 | AE106: 1431 | AF106: 5191176 | AG106: 559 | AH106: 466135 | AI106: 1393 | AJ106: 29376278 | AK106: 1358 | AL106: 571504 | AM106: 1363 | AN106: 232674 | AQ106: 679 | AR106: 3229760 | AS106: 314 | AT106: 3883443 | AU106: 556 | AV106: 11184949 | AW106: 393 | AX106: 13292275 | AY106: 7 | AZ106: 413717 | BA106: 10 | BB106: 869645 | BC106: 4 | BD106: 648330
A107: 2016 | B107: I255 | C107: 58097 | D107: SANTA MARINELLA | E107: 12238 | F107: 18882 | G107: 9239 | H107: 6281 | I107: 11672460 | J107: 6388 | K107: 139217887 | L107: 4006 | M107: 83447390 | N107: 264 | O107: 8133803 | P107: 26 | Q107: 528083 | R107: 427 | S107: 8570015 | T107: 447 | U107: 6311520 | V107: 257881158 | W107: 204423758 | X107: 16704.01683 | Y107: 22126.17794 | Z107: 10826.38269 | AA107: 31.65549926 | AB107: 2.819088086 | AC107: 11596 | AD107: 252947300 | AE107: 9199 | AF107: 53457400 | AG107: 3114 | AH107: 2499790 | AI107: 8869 | AJ107: 238283971 | AK107: 8691 | AL107: 5338302 | AM107: 8569 | AN107: 606704 | AO107: 73 | AP107: -762998 | AQ107: 3801 | AR107: 17486510 | AS107: 1454 | AT107: 18014254 | AU107: 3011 | AV107: 61778963 | AW107: 2970 | AX107: 105129207 | AY107: 380 | AZ107: 24095022 | BA107: 241 | BB107: 22398827 | BC107: 104 | BD107: 18507995
A108: 2016 | B108: I284 | C108: 58098 | D108: SANT'ANGELO ROMANO | E108: 2676 | F108: 5017 | G108: 2221 | H108: 1072 | I108: 1378281 | J108: 1490 | K108: 26428144 | L108: 796 | M108: 14121744 | N108: 34 | O108: 1037687 | P108: 5 | Q108: 41968 | R108: 117 | S108: 1911225 | T108: 83 | U108: 927281 | V108: 45846330 | W108: 37910849 | X108: 14166.98393 | Y108: 17069.27015 | Z108: 7556.477776 | AA108: 33.44544096 | AB108: 1.158445441 | AC108: 2566 | AD108: 44987084 | AE108: 1996 | AF108: 7935481 | AG108: 869 | AH108: 691613 | AI108: 1910 | AJ108: 41445109 | AK108: 1845 | AL108: 835722 | AM108: 1848 | AN108: 326160 | AO108: 20 | AP108: -190299 | AQ108: 875 | AR108: 3815330 | AS108: 388 | AT108: 4844201 | AU108: 776 | AV108: 15660372 | AW108: 516 | AX108: 17872451 | AY108: 35 | AZ108: 2225272 | BA108: 27 | BB108: 2379937 | BC108: 4 | BD108: 559569
A109: 2016 | B109: I352 | C109: 58099 | D109: SANT'ORESTE | E109: 2227 | F109: 3675 | G109: 1584 | H109: 898 | I109: 927577 | J109: 1136 | K109: 20382233 | L109: 767 | M109: 12288065 | N109: 29 | O109: 957483 | R109: 68 | S109: 883117 | T109: 71 | U109: 572491 | V109: 36010966 | W109: 30180800 | X109: 13552.22272 | Y109: 19053.53535 | Z109: 8212.462585 | AA109: 33.857207 | AB109: 0.5837449484 | AC109: 2156 | AD109: 35492598 | AE109: 1647 | AF109: 5830166 | AG109: 669 | AH109: 548437 | AI109: 1590 | AJ109: 32552608 | AK109: 1556 | AL109: 633602 | AM109: 1534 | AN109: 134493 | AO109: 8 | AP109: -60539 | AQ109: 746 | AR109: 3484781 | AS109: 358 | AT109: 4465866 | AU109: 664 | AV109: 13540593 | AW109: 376 | AX109: 12516517 | AY109: 21 | AZ109: 1317016 | BA109: 13 | BB109: 1198277
A110: 2016 | B110: I424 | C110: 58101 | D110: SARACINESCO | E110: 88 | F110: 182 | G110: 107 | H110: 42 | I110: 24902 | J110: 39 | K110: 812093 | L110: 34 | M110: 721157 | P110: 0 | Q110: 0 | T110: 4 | U110: 47442 | V110: 1605594 | W110: 1226558 | X110: 13938.15909 | Y110: 11463.15888 | Z110: 6739.32967 | AA110: 30.68181818 | AB110: 0 | AC110: 81 | AD110: 1835924 | AE110: 65 | AF110: 379036 | AG110: 18 | AH110: 12053 | AI110: 62 | AJ110: 1625095 | AK110: 62 | AL110: 35489 | AM110: 4 | AN110: 712 | AQ110: 27 | AR110: 106613 | AS110: 11 | AT110: 142505 | AU110: 18 | AV110: 361176 | AW110: 20 | AX110: 684376 | AY110: 8 | AZ110: 497743 | BC110: 0 | BD110: 0
A111: 2016 | B111: I573 | C111: 58102 | D111: SEGNI | E111: 5857 | F111: 9220 | G111: 3882 | H111: 2853 | I111: 2670405 | J111: 3006 | K111: 61560463 | L111: 2085 | M111: 33698916 | N111: 67 | O111: 2253171 | P111: 12 | Q111: 499061 | R111: 159 | S111: 2337454 | T111: 163 | U111: 2823418 | V111: 105842888 | W111: 87543046 | X111: 14946.73826 | Y111: 22551.01649 | Z111: 9494.907375 | AA111: 29.14461328 | AB111: 1.212224688 | AC111: 5614 | AD111: 104078349 | AE111: 4453 | AF111: 18299842 | AG111: 1703 | AH111: 1392110 | AI111: 4332 | AJ111: 97460156 | AK111: 4257 | AL111: 1949869 | AM111: 4271 | AN111: 774174 | AO111: 17 | AP111: -145077 | AQ111: 1690 | AR111: 7613956 | AS111: 829 | AT111: 10227847 | AU111: 1886 | AV111: 38844216 | AW111: 1181 | AX111: 39590942 | AY111: 72 | AZ111: 4589337 | BA111: 62 | BB111: 5710708 | BC111: 9 | BD111: 1403418
A112: 2016 | B112: I992 | C112: 58103 | D112: SUBIACO | E112: 5937 | F112: 8987 | G112: 3856 | H112: 2625 | I112: 2832145 | J112: 3148 | K112: 60148412 | L112: 2140 | M112: 35447188 | N112: 72 | O112: 1788365 | P112: 33 | Q112: 608438 | R112: 175 | S112: 2927393 | T112: 183 | U112: 2306190 | V112: 106058131 | W112: 88223646 | X112: 14859.97069 | Y112: 22879.57624 | Z112: 9816.807166 | AA112: 30.08253327 | AB112: 0.8758632306 | AC112: 5751 | AD112: 104069315 | AE112: 4472 | AF112: 17834485 | AG112: 1724 | AH112: 1394632 | AI112: 4325 | AJ112: 96035268 | AK112: 4251 | AL112: 1884585 | AM112: 4243 | AN112: 759257 | AO112: 20 | AP112: -148230 | AQ112: 1766 | AR112: 8661787 | AS112: 819 | AT112: 10210135 | AU112: 1868 | AV112: 38382535 | AW112: 1248 | AX112: 41156439 | AY112: 67 | AZ112: 4204239 | BA112: 41 | BB112: 3722013 | BC112: 11 | BD112: 1690319
A113: 2016 | B113: L182 | C113: 58104 | D113: TIVOLI | E113: 35701 | F113: 56603 | G113: 23737 | H113: 16066 | I113: 28098560 | J113: 19727 | K113: 384168343 | L113: 10989 | M113: 201789820 | N113: 724 | O113: 21206664 | P113: 76 | Q113: 2552220 | R113: 915 | S113: 14978984 | T113: 989 | U113: 11771842 | V113: 664566433 | W113: 543631101 | X113: 15227.3354 | Y113: 22902.26655 | Z113: 9604.28071 | AA113: 30.21203888 | AB113: 1.459342876 | AC113: 34030 | AD113: 653143957 | AE113: 27024 | AF113: 120935332 | AG113: 10747 | AH113: 8781136 | AI113: 26060 | AJ113: 610014510 | AK113: 25540 | AL113: 12572397 | AM113: 25437 | AN113: 4827052 | AO113: 123 | AP113: -1711670 | AQ113: 10663 | AR113: 48363786 | AS113: 4742 | AT113: 59142620 | AU113: 10495 | AV113: 214540807 | AW113: 7917 | AX113: 271210270 | AY113: 559 | AZ113: 35468646 | BA113: 408 | BB113: 37306095 | BC113: 113 | BD113: 22060205
A114: 2016 | B114: L192 | C114: 58105 | D114: TOLFA | E114: 3354 | F114: 5074 | G114: 2168 | H114: 1566 | I114: 1686332 | J114: 1816 | K114: 33804699 | L114: 1113 | M114: 18034555 | N114: 32 | O114: 607433 | P114: 6 | Q114: 66593 | R114: 120 | S114: 1625578 | T114: 123 | U114: 1462724 | V114: 57287914 | W114: 47661019 | X114: 14210.20244 | Y114: 21983.86485 | Z114: 9393.184667 | AA114: 34.01908169 | AB114: 0.9242695289 | AC114: 3204 | AD114: 56099699 | AE114: 2431 | AF114: 9626895 | AG114: 963 | AH114: 787922 | AI114: 2369 | AJ114: 51635550 | AK114: 2305 | AL114: 1033395 | AM114: 2303 | AN114: 212877 | AO114: 11 | AP114: -34021 | AQ114: 1130 | AR114: 5350309 | AS114: 456 | AT114: 5578247 | AU114: 919 | AV114: 18698586 | AW114: 702 | AX114: 23567236 | AY114: 37 | AZ114: 2280244 | BA114: 25 | BB114: 2290480 | BC114: 6 | BD114: 1011277
A115: 2016 | B115: L302 | C115: 58106 | D115: TORRITA TIBERINA | E115: 709 | F115: 1077 | G115: 522 | H115: 317 | I115: 338214 | J115: 357 | K115: 6624604 | L115: 265 | M115: 4677636 | N115: 15 | O115: 398753 | P115: 0 | Q115: 0 | R115: 24 | S115: 307678 | T115: 20 | U115: 118249 | V115: 12465134 | W115: 10214654 | X115: 14407.12835 | Y115: 19568.30268 | Z115: 9484.358403 | AA115: 33.42736248 | AB115: 0.8462623413 | AC115: 685 | AD115: 12430886 | AE115: 516 | AF115: 2250480 | AG115: 206 | AH115: 173314 | AI115: 498 | AJ115: 11354555 | AK115: 486 | AL115: 235076 | AM115: 457 | AN115: 47525 | AQ115: 237 | AR115: 1235245 | AS115: 98 | AT115: 1247996 | AU115: 198 | AV115: 3962656 | AW115: 141 | AX115: 4952352 | AY115: 11 | AZ115: 690002 | BA115: 6 | BB115: 525497
A116: 2016 | B116: L401 | C116: 58107 | D116: TREVIGNANO ROMANO | E116: 3711 | F116: 5781 | G116: 2883 | H116: 1745 | I116: 3936730 | J116: 1701 | K116: 36444180 | L116: 1268 | M116: 28563588 | N116: 122 | O116: 5827706 | P116: 5 | Q116: 171067 | R116: 149 | S116: 2602626 | T116: 175 | U116: 2111907 | V116: 79657804 | W116: 61825396 | X116: 16660.03665 | Y116: 21444.81304 | Z116: 10694.58502 | AA116: 33.11775802 | AB116: 3.718674212 | AC116: 3503 | AD116: 78317737 | AE116: 2720 | AF116: 17832408 | AG116: 766 | AH116: 608658 | AI116: 2606 | AJ116: 73808265 | AK116: 2556 | AL116: 1734628 | AM116: 2519 | AN116: 586861 | AO116: 19 | AP116: -218490 | AQ116: 1210 | AR116: 5421833 | AS116: 476 | AT116: 5818044 | AU116: 852 | AV116: 17217676 | AW116: 784 | AX116: 28314112 | AY116: 153 | AZ116: 9689375 | BA116: 94 | BB116: 8521112 | BC116: 44 | BD116: 9405422
A117: 2016 | B117: L611 | C117: 58108 | D117: VALLEPIETRA | E117: 189 | F117: 268 | G117: 150 | H117: 52 | I117: 23115 | J117: 59 | K117: 856209 | L117: 95 | M117: 1214310 | P117: 0 | Q117: 0 | R117: 18 | S117: 136817 | T117: 6 | U117: 30701 | V117: 2261152 | W117: 1972572 | X117: 10436.88889 | Y117: 13150.48 | Z117: 7360.343284 | AA117: 46.03174603 | AB117: 0 | AC117: 176 | AD117: 2171614 | AE117: 111 | AF117: 288580 | AG117: 32 | AH117: 24601 | AI117: 107 | AJ117: 1813697 | AK117: 104 | AL117: 33739 | AM117: 107 | AN117: 9481 | AO117: 0 | AP117: 0 | AQ117: 87 | AR117: 481259 | AS117: 34 | AT117: 395527 | AU117: 43 | AV117: 864557 | AW117: 16 | AX117: 548236 | AY117: 0 | AZ117: 0 | BA117: 0 | BB117: 0 | BC117: 0 | BD117: 0
A118: 2016 | B118: L625 | C118: 58109 | D118: VALLINFREDA | E118: 175 | F118: 279 | G118: 164 | H118: 93 | I118: 119372 | J118: 75 | K118: 1718856 | L118: 81 | M118: 1282034 | P118: 0 | Q118: 0 | R118: 7 | S118: 84248 | V118: 3204510 | W118: 2611535 | X118: 14923.05714 | Y118: 15923.9939 | Z118: 9360.340502 | AA118: 25.14285714 | AB118: 0 | AC118: 171 | AD118: 3303081 | AE118: 136 | AF118: 592975 | AG118: 42 | AH118: 36157 | AI118: 133 | AJ118: 3102432 | AK118: 131 | AL118: 61659 | AM118: 132 | AN118: 19121 | AO118: 0 | AP118: 0 | AQ118: 44 | AR118: 230822 | AS118: 22 | AT118: 268343 | AU118: 63 | AV118: 1308362 | AW118: 40 | AX118: 1360559 | BC118: 0 | BD118: 0
A119: 2016 | B119: L639 | C119: 58110 | D119: VALMONTONE | E119: 9444 | F119: 16035 | G119: 6328 | H119: 3676 | I119: 4425832 | J119: 5519 | K119: 99603794 | L119: 2616 | M119: 41604056 | N119: 105 | O119: 3340363 | P119: 10 | Q119: 272361 | R119: 291 | S119: 4764930 | T119: 291 | U119: 3751376 | V119: 157762712 | W119: 131863404 | X119: 13962.66455 | Y119: 20838.08534 | Z119: 8223.473901 | AA119: 32.78271919 | AB119: 0.7412113511 | AC119: 9064 | AD119: 154873605 | AE119: 7008 | AF119: 25899308 | AG119: 3220 | AH119: 2647094 | AI119: 6768 | AJ119: 142671974 | AK119: 6636 | AL119: 2802585 | AM119: 6271 | AN119: 1118249 | AO119: 33 | AP119: -215768 | AQ119: 3063 | AR119: 14506010 | AS119: 1418 | AT119: 17585347 | AU119: 2793 | AV119: 56310790 | AW119: 1782 | AX119: 59665847 | AY119: 95 | AZ119: 5996919 | BA119: 56 | BB119: 4954232 | BC119: 14 | BD119: 2638636
A120: 2016 | B120: L719 | C120: 58111 | D120: VELLETRI | E120: 32426 | F120: 53365 | G120: 22522 | H120: 13055 | I120: 21501775 | J120: 16771 | K120: 310219180 | L120: 10739 | M120: 180381908 | N120: 635 | O120: 20996836 | P120: 55 | Q120: 1546750 | R120: 1172 | S120: 19971441 | T120: 1107 | U120: 15445156 | V120: 570063046 | W120: 467535878 | X120: 14418.54925 | Y120: 20759.07459 | Z120: 8761.095812 | AA120: 34.24412508 | AB120: 1.569727996 | AC120: 31053 | AD120: 559267476 | AE120: 23536 | AF120: 102527168 | AG120: 9200 | AH120: 7473592 | AI120: 22675 | AJ120: 515584918 | AK120: 22222 | AL120: 10697065 | AM120: 22253 | AN120: 4086903 | AO120: 161 | AP120: -1413298 | AQ120: 10943 | AR120: 51293637 | AS120: 4733 | AT120: 58607314 | AU120: 8798 | AV120: 177447299 | AW120: 6129 | AX120: 209441549 | AY120: 517 | AZ120: 33086710 | BA120: 394 | BB120: 35711441 | BC120: 115 | BD120: 21752538
A121: 2016 | B121: L851 | C121: 58112 | D121: VICOVARO | E121: 2403 | F121: 3994 | G121: 1619 | H121: 818 | I121: 617410 | J121: 1411 | K121: 24598368 | L121: 787 | M121: 12588325 | N121: 19 | O121: 430142 | P121: 6 | Q121: 182808 | R121: 71 | S121: 1115420 | T121: 35 | U121: 653553 | V121: 40186026 | W121: 33629923 | X121: 13994.9742 | Y121: 20772.03397 | Z121: 8420.110916 | AA121: 32.54265501 | AB121: 0.4161464836 | AC121: 2327 | AD121: 39751440 | AE121: 1827 | AF121: 6556103 | AG121: 805 | AH121: 650421 | AI121: 1766 | AJ121: 36809441 | AK121: 1706 | AL121: 705853 | AM121: 1697 | AN121: 194424 | AO121: 16 | AP121: -107529 | AQ121: 766 | AR121: 3627353 | AS121: 330 | AT121: 4157687 | AU121: 768 | AV121: 15526799 | AW121: 462 | AX121: 15399990 | AY121: 16 | AZ121: 1033745 | BA121: 6 | BB121: 561782 | BC121: 4 | BD121: 532717
A122: 2016 | B122: M095 | C122: 58113 | D122: VIVARO ROMANO | E122: 107 | F122: 170 | G122: 96 | H122: 42 | I122: 7481 | J122: 41 | K122: 695127 | L122: 56 | M122: 798128 | N122: 0 | O122: 0 | P122: 0 | Q122: 0 | T122: 0 | U122: 0 | V122: 1500736 | W122: 1262083 | X122: 11795.16822 | Y122: 13146.69792 | Z122: 7424.017647 | AA122: 39.25233645 | AB122: 0 | AC122: 104 | AD122: 1550565 | AE122: 78 | AF122: 238653 | AG122: 26 | AH122: 20919 | AI122: 74 | AJ122: 1443343 | AK122: 72 | AL122: 26665 | AM122: 71 | AN122: 6228 | AO122: 0 | AP122: 0 | AQ122: 42 | AR122: 169401 | AS122: 11 | AT122: 132100 | AU122: 43 | AV122: 880170 | AW122: 10 | AX122: 327194 | BA122: 0 | BB122: 0 | BC122: 0 | BD122: 0
A123: 2016 | B123: M141 | C123: 58114 | D123: ZAGAROLO | E123: 10500 | F123: 17872 | G123: 7004 | H123: 4402 | I123: 5246292 | J123: 6138 | K123: 110359363 | L123: 2925 | M123: 49296929 | N123: 125 | O123: 4893458 | P123: 16 | Q123: 515284 | R123: 358 | S123: 6123603 | T123: 302 | U123: 4475045 | V123: 180909974 | W123: 150031250 | X123: 14288.69048 | Y123: 21420.79526 | Z123: 8394.765555 | AA123: 33.2952381 | AB123: 1.085714286 | AC123: 10075 | AD123: 178226857 | AE123: 7801 | AF123: 30878724 | AG123: 3560 | AH123: 2870969 | AI123: 7455 | AJ123: 163351831 | AK123: 7281 | AL123: 3283124 | AM123: 7197 | AN123: 1290464 | AO123: 47 | AP123: -624906 | AQ123: 3449 | AR123: 16344521 | AS123: 1541 | AT123: 18998104 | AU123: 3017 | AV123: 61072820 | AW123: 2033 | AX123: 69027828 | AY123: 129 | AZ123: 8233707 | BA123: 87 | BB123: 7893283 | BC123: 27 | BD123: 4656409

Sheet Redditi netti x comune
A1: Comune | B1: Reddito complessivo | C1: Reddito al netto delle imposte | D1: Reddito netto X contribuente | E1: Reddito netto X famiglia | F1: Reddito netto procapite | G1: Disagio reddituale - % contribuenti fino a 10.000€ | H1: Agio reddituale - % contribuenti oltre 75.000 €
A2: CIAMPINO | B2: 543610666 | C2: 433722851 | D2: 17484.59449 | E2: 26585.92932 | F2: 11255.8807 | G2: 25.17132952 | H2: 2.378456825
A3: AFFILE | B3: 15118515 | C3: 12835519 | D3: 13553.87434 | E3: 20309.36551 | F3: 8444.420395 | G3: 34.3189018 | H3: 0
A4: AGOSTA | B4: 18420548 | C4: 15255310 | D4: 15179.41294 | E4: 20072.77632 | F4: 8677.650739 | G4: 27.1641791 | H4: 0.3980099502
A5: ALBANO LAZIALE | B5: 519905955 | C5: 419504339 | D5: 16151.55504 | E5: 24282.49242 | F5: 10071.16577 | G5: 28.6682324 | H5: 2.052131059
A6: ALLUMIERE | B6: 45462958 | C6: 38017886 | D6: 14319.35443 | E6: 22509.10953 | F6: 9382.499013 | G6: 32.76836158 | H6: 0.4896421846
A7: ANGUILLARA SABAZIA | B7: 227481374 | C7: 183506360 | D7: 15818.15016 | E7: 23785.65911 | F7: 9458.603165 | G7: 30.14395311 | H7: 1.896388242
A8: ANTICOLI CORRADO | B8: 10078356 | C8: 8332892 | D8: 14670.58451 | E8: 20079.25783 | F8: 9331.346025 | G8: 29.57746479 | H8: 0.7042253521
A9: ANZIO | B9: 674956851 | C9: 545298014 | D9: 15505.07589 | E9: 20106.11755 | F9: 10040.28676 | G9: 32.89260428 | H9: 1.888026387
A10: ARCINAZZO ROMANO | B10: 15518557 | C10: 12843929 | D10: 14529.33145 | E10: 19913.06822 | F10: 9570.73696 | G10: 35.0678733 | H10: 1.244343891
A11: ARDEA | B11: 509464498 | C11: 420988130 | D11: 14648.1604 | E11: 18880.93152 | F11: 8518.922862 | G11: 31.9519833 | H11: 0.9081419624
A12: ARICCIA | B12: 242899801 | C12: 194655404 | D12: 16320.56712 | E12: 24895.17892 | F12: 10181.78701 | G12: 29.35356754 | H12: 2.641066488
A13: ARSOLI | B13: 18044289 | C13: 14837018 | D13: 14690.11683 | E13: 20408.55296 | F13: 9408.381737 | G13: 33.06930693 | H13: 1.485148515
A14: ARTENA | B14: 131807851 | C14: 111078590 | D14: 13681.3142 | E14: 20677.32502 | F14: 7835.126614 | G14: 32.77497229 | H14: 0.6404729647
A15: BELLEGRA | B15: 27055974 | C15: 23006527 | D15: 13391.45925 | E15: 19108.41113 | F15: 8083.811314 | G15: 34.8661234 | H15: 0.2910360885
A16: BRACCIANO | B16: 253794481 | C16: 201503183 | D16: 16682.10804 | E16: 24475.0617 | F16: 10474.22721 | G16: 30.01904131 | H16: 2.640947098
A17: CAMERATA NUOVA | B17: 4271177 | C17: 3535311 | D17: 14255.28629 | E17: 14429.84082 | F17: 7735.910284 | G17: 33.06451613 | H17: 0
A18: CAMPAGNANO DI ROMA | B18: 130433066 | C18: 104692785 | D18: 15148.71726 | E18: 22332.07871 | F18: 9031.468685 | G18: 31.60179424 | H18: 1.823180437
A19: CANALE MONTERANO | B19: 46490459 | C19: 37926226 | D19: 14671.65416 | E19: 22024.52149 | F19: 9097.199808 | G19: 33.2688588 | H19: 1.237911025
A20: CANTERANO | B20: 3895134 | C20: 3188916 | D20: 13986.47368 | E20: 19930.725 | F20: 9216.520231 | G20: 27.63157895 | H20: 0
A21: CAPENA | B21: 118076758 | C21: 96855303 | D21: 15060.69087 | E21: 21912.96448 | F21: 9086.715733 | G21: 30.77281916 | H21: 1.415020992
A22: CAPRANICA PRENESTINA | B22: 2580622 | C22: 2169658 | D22: 13149.44242 | E22: 9433.295652 | F22: 6181.361823 | G22: 38.18181818 | H22: 0
A23: CARPINETO ROMANO | B23: 50008254 | C23: 42159735 | D23: 13617.48547 | E23: 22473.20629 | F23: 9478.357689 | G23: 33.39793282 | H23: 0.645994832
A24: CASAPE | B24: 6993606 | C24: 5854444 | D24: 13038.85078 | E24: 16172.49724 | F24: 8108.648199 | G24: 32.29398664 | H24: 0
A25: CASTEL GANDOLFO | B25: 115770237 | C25: 92904428 | D25: 16443.26159 | E25: 25397.60197 | F25: 10356.08383 | G25: 26.38938053 | H25: 2
A26: CASTEL MADAMA | B26: 83275383 | C26: 68679394 | D26: 14894.68532 | E26: 22378.4275 | F26: 9253.488817 | G26: 30.51398829 | H26: 1.084363479
A27: CASTEL SAN PIETRO ROMANO | B27: 8575505 | C27: 7235277 | D27: 14412.90239 | E27: 18551.99231 | F27: 8166.226862 | G27: 29.48207171 | H27: 1.394422311
A28: CASTELNUOVO DI PORTO | B28: 110011671 | C28: 87446479 | D28: 16148.93426 | E28: 24236.82899 | F28: 10171.74352 | G28: 31.3388735 | H28: 2.566943675
A29: CAVE | B29: 112101613 | C29: 93549410 | D29: 14288.8972 | E29: 21074.43343 | F29: 8221.955528 | G29: 31.92301818 | H29: 0.7789827402
A30: CERRETO LAZIALE | B30: 12892230 | C30: 10792955 | D30: 14371.44474 | E30: 22299.4938 | F30: 9636.566964 | G30: 25.69906791 | H30: 0
A31: CERVARA DI ROMA | B31: 5504652 | C31: 4544889 | D31: 13856.3689 | E31: 17413.36782 | F31: 10144.84152 | G31: 30.18292683 | H31: 0
A32: CERVETERI | B32: 446365750 | C32: 360421638 | D32: 15546.1369 | E32: 21948.82394 | F32: 9545.317355 | G32: 31.87543133 | H32: 1.828847481
A33: CICILIANO | B33: 14235165 | C33: 11897330 | D33: 14029.87028 | E33: 18854.72266 | F33: 8925.228807 | G33: 32.19339623 | H33: 0.7075471698
A34: CINETO ROMANO | B34: 6373976 | C34: 5346801 | D34: 13333.66833 | E34: 18501.04152 | F34: 8986.220168 | G34: 31.17206983 | H34: 0
A35: CIVITAVECCHIA | B35: 722547556 | C35: 581905850 | D35: 16646.80885 | E35: 27296.45605 | F35: 11017.60546 | G35: 28.05813022 | H35: 1.850898272
A36: CIVITELLA SAN PAOLO | B36: 20309459 | C36: 16882264 | D36: 13736.58584 | E36: 17789.53003 | F36: 8136.030843 | G36: 36.0455655 | H36: 0.8136696501
A37: COLLEFERRO | B37: 278571114 | C37: 226230778 | D37: 15949.71644 | E37: 25772.47414 | F37: 10512.09414 | G37: 27.12210942 | H37: 1.529892837
A38: COLONNA | B38: 49193746 | C38: 40430109 | D38: 14777.08662 | E38: 23182.40195 | F38: 9382.712694 | G38: 32.52923977 | H38: 1.023391813
A39: FIANO ROMANO | B39: 185090094 | C39: 150207014 | D39: 15386.90985 | E39: 23650.92332 | F39: 9562.453145 | G39: 30.58799426 | H39: 1.618520795
A40: FILACCIANO | B40: 5322486 | C40: 4387053 | D40: 14061.06731 | E40: 17478.2988 | F40: 9495.785714 | G40: 30.12820513 | H40: 0
A41: FIUMICINO | B41: 969861399 | C41: 786907177 | D41: 15922.84858 | E41: 23237.96406 | F41: 9975.118549 | G41: 28.03318495 | H41: 1.744233104
A42: FONTE NUOVA | B42: 328228679 | C42: 272270662 | D42: 14330.03484 | E42: 21211.48816 | F42: 8271.430021 | G42: 32.71578947 | H42: 0.9473684211
A43: FORMELLO | B43: 208970011 | C43: 157291886 | D43: 19595.35144 | E43: 29711.34983 | F43: 12090.07579 | G43: 28.51625763 | H43: 5.356920394
A44: FRASCATI | B44: 328510403 | C44: 258519446 | D44: 17422.79593 | E44: 27764.94963 | F44: 11576.70709 | G44: 27.42283327 | H44: 3.389944736
A45: GALLICANO NEL LAZIO | B45: 62288571 | C45: 51914243 | D45: 14030.87649 | E45: 19769.32331 | F45: 8206.487986 | G45: 32.81081081 | H45: 0.7027027027
A46: GAVIGNANO | B46: 20941780 | C46: 17475515 | D46: 14242.47351 | E46: 23207.85525 | F46: 9163.877819 | G46: 32.11083945 | H46: 0.65199674
A47: GENAZZANO | B47: 63132633 | C47: 52383734 | D47: 14555.0803 | E47: 21063.02131 | F47: 8753.966243 | G47: 32.70352876 | H47: 0.8335648791
A48: GENZANO DI ROMA | B48: 297220453 | C48: 242131964 | D48: 15429.29739 | E48: 25780.66056 | F48: 10133.58852 | G48: 30.87363793 | H48: 1.682278723
A49: GERANO | B49: 13645283 | C49: 11469399 | D49: 14230.02357 | E49: 20121.75263 | F49: 9109.92772 | G49: 30.39702233 | H49: 0
A50: GORGA | B50: 8759733 | C50: 7189981 | D50: 14466.76258 | E50: 22398.6947 | F50: 9986.084722 | G50: 30.78470825 | H50: 0
A51: GROTTAFERRATA | B51: 343531108 | C51: 261409383 | D51: 19730.49913 | E51: 30495.7283 | F51: 12782.85491 | G51: 26.42463582 | H51: 5.811759378
A52: GUIDONIA MONTECELIO | B52: 1034030915 | C52: 844524161 | D52: 15485.91108 | E52: 24079.03975 | F52: 9474.026105 | G52: 29.68185569 | H52: 1.426606766
A53: JENNE | B53: 4328994 | C53: 3630258 | D53: 13647.58647 | E53: 19207.71429 | F53: 9973.236264 | G53: 30.07518797 | H53: 0
A54: LABICO | B54: 69939199 | C54: 58096665 | D54: 14797.92792 | E54: 23616.53049 | F54: 9014.222653 | G54: 30.31074885 | H54: 0.5858380031
A55: LADISPOLI | B55: 433963965 | C55: 353786998 | D55: 14475.73642 | E55: 18628.21177 | F55: 8592.485501 | G55: 34.29623568 | H55: 1.145662848
A56: LANUVIO | B56: 143613285 | C56: 119448788 | D56: 14294.97224 | E56: 22364.49878 | F56: 8779.771261 | G56: 32.45572044 | H56: 0.7778841551
A57: LARIANO | B57: 128653287 | C57: 107359939 | D57: 13704.3578 | E57: 21284.68259 | F57: 7947.289881 | G57: 36.16287975 | H57: 1.059484299
A58: LICENZA | B58: 9528111 | C58: 7867077 | D58: 13753.63112 | E58: 17028.30519 | F58: 8003.130214 | G58: 34.26573427 | H58: 0
A59: MAGLIANO ROMANO | B59: 15709517 | C59: 12903845 | D59: 14630.20975 | E59: 19730.64985 | F59: 9132.232838 | G59: 31.63265306 | H59: 1.587301587
A60: MANDELA | B60: 11451932 | C60: 9195293 | D60: 16217.44797 | E60: 23279.22278 | F60: 9845.067452 | G60: 25.74955908 | H60: 1.234567901
A61: MANZIANA | B61: 103922681 | C61: 82737229 | D61: 17048.6769 | E61: 24220.50029 | F61: 10729.76644 | G61: 29.21903977 | H61: 2.596332166
A62: MARANO EQUO | B62: 10523829 | C62: 8637631 | D62: 16205.68668 | E62: 22319.45995 | F62: 11073.8859 | G62: 19.69981238 | H62: 0
A63: MARCELLINA | B63: 69346138 | C63: 58605406 | D63: 13205.36413 | E63: 20782.05887 | F63: 7959.446693 | G63: 35.3988283 | H63: 0.3379900856
A64: MARINO | B64: 563835029 | C64: 455011346 | D64: 15790.7807 | E64: 24070.85362 | F64: 10389.09848 | G64: 28.75932674 | H64: 1.780322749
A65: MAZZANO ROMANO | B65: 32579693 | C65: 26525887 | D65: 14614.81377 | E65: 18799.35294 | F65: 8461.207974 | G65: 32.23140496 | H65: 0.9917355372
A66: MENTANA | B66: 242660904 | C66: 201037256 | D66: 14542.62558 | E66: 21434.82845 | F66: 8694.630914 | G66: 31.80700231 | H66: 0.8825231481
A67: MONTE COMPATRI | B67: 137458390 | C67: 112282697 | D67: 15039.20399 | E67: 21968.83134 | F67: 9338.991683 | G67: 30.39110635 | H67: 1.459951781
A68: MONTE PORZIO CATONE | B68: 138171756 | C68: 107460109 | D68: 18543.59085 | E68: 31021.97142 | F68: 12450.48187 | G68: 25.4529767 | H68: 3.848144953
A69: MONTEFLAVIO | B69: 16526188 | C69: 13758166 | D69: 14938.29099 | E69: 23558.50342 | F69: 10407.08472 | G69: 23.45276873 | H69: 0.651465798
A70: MONTELANICO | B70: 23217854 | C70: 19456610 | D70: 14109.21682 | E70: 20099.80372 | F70: 9074.911381 | G70: 30.89195069 | H70: 0.2900652647
A71: MONTELIBRETTI | B71: 58204813 | C71: 48564967 | D71: 13943.43009 | E71: 21651.79091 | F71: 9072.476555 | G71: 33.96497272 | H71: 0.8326155613
A72: MONTEROTONDO | B72: 499119839 | C72: 408042476 | D72: 15502.54458 | E72: 22959.85123 | F72: 9997.855487 | G72: 29.98746248 | H72: 1.428517154
A73: MONTORIO ROMANO | B73: 19111413 | C73: 16118059 | D73: 13476.63796 | E73: 18484.01261 | F73: 8351.325907 | G73: 33.77926421 | H73: 0.9197324415
A74: MORICONE | B74: 27081640 | C74: 22768228 | D74: 13432.58289 | E74: 21023.29455 | F74: 8720.117962 | G74: 35.87020649 | H74: 0.4719764012
A75: MORLUPO | B75: 106693424 | C75: 85791604 | D75: 15721.38611 | E75: 22576.73789 | F75: 9828.342765 | G75: 30.14476819 | H75: 1.887483966
A76: NAZZANO | B76: 14995874 | C76: 12329289 | D76: 13791.15101 | E76: 19234.46022 | F76: 8652.132632 | G76: 36.24161074 | H76: 0.8948545861
A77: NEMI | B77: 25472058 | C77: 20325148 | D77: 15978.88994 | E77: 24847.36919 | F77: 10641.43874 | G77: 30.66037736 | H77: 2.908805031
A78: NEROLA | B78: 24201800 | C78: 19757372 | D78: 15036.05175 | E78: 23135.09602 | F78: 10095.74451 | G78: 30.3652968 | H78: 0.7610350076
A79: NETTUNO | B79: 555957669 | C79: 452352011 | D79: 14835.59119 | E79: 20660.05988 | F79: 9109.531607 | G79: 34.4035945 | H79: 1.164277984
A80: OLEVANO ROMANO | B80: 68171835 | C80: 57174578 | D80: 13796.95415 | E80: 20397.63753 | F80: 8588.640228 | G80: 34.99034749 | H80: 0.7480694981
A81: PALESTRINA | B81: 244004663 | C81: 200819071 | D81: 14584.86971 | E81: 22253.88641 | F81: 9247.516624 | G81: 32.03573244 | H81: 1.270971022
A82: PALOMBARA SABINA | B82: 143042534 | C82: 118436867 | D82: 14347.28855 | E82: 21691.73388 | F82: 8960.271372 | G82: 31.25378558 | H82: 0.8237431859
A83: PERCILE | B83: 1979603 | C83: 1683320 | D83: 12197.97101 | E83: 12287.0073 | F83: 6984.73029 | G83: 36.23188406 | H83: 0
A84: PISONIANO | B84: 8199185 | C84: 6763934 | D84: 14033.05809 | E84: 25333.08614 | F84: 8982.648074 | G84: 31.95020747 | H84: 0
A85: POLI | B85: 21760357 | C85: 18424906 | D85: 12993.58674 | E85: 18028.28376 | F85: 7597.899381 | G85: 36.17771509 | H85: 0.3526093089
A86: POMEZIA | B86: 805001567 | C86: 657088797 | D86: 15754.50266 | E86: 25700.66089 | F86: 10385.80004 | G86: 28.31830824 | H86: 1.22997986
A87: PONZANO ROMANO | B87: 12005681 | C87: 10011879 | D87: 13547.87415 | E87: 18236.57377 | F87: 8805.522427 | G87: 31.79972936 | H87: 1.353179973
A88: RIANO | B88: 125619451 | C88: 99808065 | D88: 16308.50735 | E88: 23178.83535 | F88: 9447.048273 | G88: 29.68954248 | H88: 3.039215686
A89: RIGNANO FLAMINIO | B89: 116457499 | C89: 94129638 | D89: 15672.6004 | E89: 20737.96827 | F89: 9199.534597 | G89: 31.96803197 | H89: 1.998001998
A90: RIOFREDDO | B90: 7895640 | C90: 6565425 | D90: 13649.53222 | E90: 17414.92042 | F90: 8616.043307 | G90: 32.01663202 | H90: 0
A91: ROCCA CANTERANO | B91: 2455020 | C91: 2031617 | D91: 13278.54248 | E91: 18139.4375 | F91: 10806.4734 | G91: 30.06535948 | H91: 0
A92: ROCCA DI CAVE | B92: 4190910 | C92: 3449943 | D92: 13690.25 | E92: 17875.35233 | F92: 9126.833333 | G92: 34.52380952 | H92: 0
A93: ROCCA DI PAPA | B93: 187953795 | C93: 150898079 | D93: 15637.10663 | E93: 21932.86032 | F93: 8801.801155 | G93: 32.52849741 | H93: 2.404145078
A94: ROCCA PRIORA | B94: 140985164 | C94: 114626465 | D94: 15496.34514 | E94: 23522.77139 | F94: 9541.868393 | G94: 31.02609166 | H94: 1.770988238
A95: ROCCA SANTO STEFANO | B95: 9374527 | C95: 7975369 | D95: 13292.28167 | E95: 20139.82071 | F95: 8213.562307 | G95: 29.16666667 | H95: 0
A96: ROCCAGIOVINE | B96: 2788686 | C96: 2331573 | D96: 13172.72881 | E96: 19429.775 | F96: 8798.388679 | G96: 35.02824859 | H96: 0
A97: ROIATE | B97: 8172711 | C97: 6840004 | D97: 14369.7563 | E97: 21375.0125 | F97: 9513.218359 | G97: 28.36134454 | H97: 0
A98: ROMA | B98: 48734926141 | C98: 37200011785 | D98: 19085.67917 | E98: 27272.7959 | F98: 12945.91594 | G98: 27.83712122 | H98: 4.937083976
A99: ROVIANO | B99: 15766557 | C99: 13087133 | D99: 14737.76239 | E99: 21884.83779 | F99: 9810.444528 | G99: 27.7027027 | H99: 0.7882882883
A100: SACROFANO | B100: 108269407 | C100: 82911995 | D100: 18178.46854 | E100: 24151.46956 | F100: 10621.57251 | G100: 29.81802236 | H100: 5.262003947
A101: SAMBUCI | B101: 9589933 | C101: 8062052 | D101: 14319.80817 | E101: 20514.12723 | F101: 8888.701213 | G101: 29.6625222 | H101: 0.7104795737
A102: SAN CESAREO | B102: 157361788 | C102: 130516335 | D102: 14267.19884 | E102: 21935.51849 | F102: 8416.607661 | G102: 31.49322256 | H102: 0.7324005247
A103: SAN GREGORIO DA SASSOLA | B103: 16484113 | C103: 13838183 | D103: 13422.09796 | E103: 19273.23538 | F103: 8708.736941 | G103: 32.49272551 | H103: 0
A104: SAN POLO DEI CAVALIERI | B104: 31332448 | C104: 25919357 | D104: 14569.6217 | E104: 19313.9769 | F104: 8694.853069 | G104: 31.25351321 | H104: 0.8431703204
A105: SAN VITO ROMANO | B105: 33028209 | C105: 27837033 | D105: 13995.4917 | E105: 20945.84876 | F105: 8336.937107 | G105: 34.13775767 | H105: 0.7038712921
A106: SANTA MARINELLA | B106: 257881158 | C106: 204423758 | D106: 16704.01683 | E106: 22126.17794 | F106: 10826.38269 | G106: 31.65549926 | H106: 2.819088086
A107: SANT'ANGELO ROMANO | B107: 45846330 | C107: 37910849 | D107: 14166.98393 | E107: 17069.27015 | F107: 7556.477776 | G107: 33.44544096 | H107: 1.158445441
A108: SANT'ORESTE | B108: 36010966 | C108: 30180800 | D108: 13552.22272 | E108: 19053.53535 | F108: 8212.462585 | G108: 33.857207 | H108: 0.5837449484
A109: SARACINESCO | B109: 1605594 | C109: 1226558 | D109: 13938.15909 | E109: 11463.15888 | F109: 6739.32967 | G109: 30.68181818 | H109: 0
A110: SEGNI | B110: 105842888 | C110: 87543046 | D110: 14946.73826 | E110: 22551.01649 | F110: 9494.907375 | G110: 29.14461328 | H110: 1.212224688
A111: SUBIACO | B111: 106058131 | C111: 88223646 | D111: 14859.97069 | E111: 22879.57624 | F111: 9816.807166 | G111: 30.08253327 | H111: 0.8758632306
A112: TIVOLI | B112: 664566433 | C112: 543631101 | D112: 15227.3354 | E112: 22902.26655 | F112: 9604.28071 | G112: 30.21203888 | H112: 1.459342876
A113: TOLFA | B113: 57287914 | C113: 47661019 | D113: 14210.20244 | E113: 21983.86485 | F113: 9393.184667 | G113: 34.01908169 | H113: 0.9242695289
A114: TORRITA TIBERINA | B114: 12465134 | C114: 10214654 | D114: 14407.12835 | E114: 19568.30268 | F114: 9484.358403 | G114: 33.42736248 | H114: 0.8462623413
A115: TREVIGNANO ROMANO | B115: 79657804 | C115: 61825396 | D115: 16660.03665 | E115: 21444.81304 | F115: 10694.58502 | G115: 33.11775802 | H115: 3.718674212
A116: VALLEPIETRA | B116: 2261152 | C116: 1972572 | D116: 10436.88889 | E116: 13150.48 | F116: 7360.343284 | G116: 46.03174603 | H116: 0
A117: VALLINFREDA | B117: 3204510 | C117: 2611535 | D117: 14923.05714 | E117: 15923.9939 | F117: 9360.340502 | G117: 25.14285714 | H117: 0
A118: VALMONTONE | B118: 157762712 | C118: 131863404 | D118: 13962.66455 | E118: 20838.08534 | F118: 8223.473901 | G118: 32.78271919 | H118: 0.7412113511
A119: VELLETRI | B119: 570063046 | C119: 467535878 | D119: 14418.54925 | E119: 20759.07459 | F119: 8761.095812 | G119: 34.24412508 | H119: 1.569727996
A120: VICOVARO | B120: 40186026 | C120: 33629923 | D120: 13994.9742 | E120: 20772.03397 | F120: 8420.110916 | G120: 32.54265501 | H120: 0.4161464836
A121: VIVARO ROMANO | B121: 1500736 | C121: 1262083 | D121: 11795.16822 | E121: 13146.69792 | F121: 7424.017647 | G121: 39.25233645 | H121: 0
A122: ZAGAROLO | B122: 180909974 | C122: 150031250 | D122: 14288.69048 | E122: 21420.79526 | F122: 8394.765555 | G122: 33.2952381 | H122: 1.085714286

Sheet Agio e Disagio reddituale
A1: Comuni ordinati per AGIO reddituale - Decrescente - Ciampinoè al 16° posto | G1: Comuni ordinati per DISAGIO reddituale - Decrescente - Ciampino è al 118° posto
A2: Comune | B2: pos | C2: Disagio reddituale % contribuenti fino a 10.000€ | D2: pos | E2: Agio reddituale % contribuenti oltre 75.000 € | G2: Comune | H2: pos | I2: Disagio reddituale % contribuenti fino a 10.000€ | J2: pos | K2: Agio reddituale % contribuenti oltre 75.000 €
A3: CIAMPINO | B3: 118 | C3: 25.17132952 | D3: 16 | E3: 2.378456825 | G3: CIAMPINO | H3: 118 | I3: 25.17132952 | J3: 16 | K3: 2.378456825
A4: GROTTAFERRATA | B4: 113 | C4: 26.42463582 | D4: 1 | E4: 5.811759378 | G4: VALLEPIETRA | H4: 1 | I4: 46.03174603 | J4: 121 | K4: 0
A5: FORMELLO | B5: 102 | C5: 28.51625763 | D5: 2 | E5: 5.356920394 | G5: VIVARO ROMANO | H5: 2 | I5: 39.25233645 | J5: 120 | K5: 0
A6: SACROFANO | B6: 90 | C6: 29.81802236 | D6: 3 | E6: 5.262003947 | G6: CAPRANICA PRENESTINA | H6: 3 | I6: 38.18181818 | J6: 119 | K6: 0
A7: ROMA | B7: 107 | C7: 27.83712122 | D7: 4 | E7: 4.937083976 | G7: NAZZANO | H7: 4 | I7: 36.24161074 | J7: 60 | K7: 0.8948545861
A8: MONTE PORZIO CATONE | B8: 117 | C8: 25.4529767 | D8: 5 | E8: 3.848144953 | G8: PERCILE | H8: 5 | I8: 36.23188406 | J8: 118 | K8: 0
A9: TREVIGNANO ROMANO | B9: 31 | C9: 33.11775802 | D9: 6 | E9: 3.718674212 | G9: POLI | H9: 6 | I9: 36.17771509 | J9: 91 | K9: 0.3526093089
A10: FRASCATI | B10: 110 | C10: 27.42283327 | D10: 7 | E10: 3.389944736 | G10: LARIANO | H10: 7 | I10: 36.16287975 | J10: 53 | K10: 1.059484299
A11: RIANO | B11: 91 | C11: 29.68954248 | D11: 8 | E11: 3.039215686 | G11: CIVITELLA SAN PAOLO | H11: 8 | I11: 36.0455655 | J11: 68 | K11: 0.8136696501
A12: NEMI | B12: 73 | C12: 30.66037736 | D12: 9 | E12: 2.908805031 | G12: MORICONE | H12: 9 | I12: 35.87020649 | J12: 88 | K12: 0.4719764012
A13: SANTA MARINELLA | B13: 59 | C13: 31.65549926 | D13: 10 | E13: 2.819088086 | G13: MARCELLINA | H13: 10 | I13: 35.3988283 | J13: 92 | K13: 0.3379900856
A14: ARICCIA | B14: 96 | C14: 29.35356754 | D14: 11 | E14: 2.641066488 | G14: ARCINAZZO ROMANO | H14: 11 | I14: 35.0678733 | J14: 43 | K14: 1.244343891
A15: BRACCIANO | B15: 88 | C15: 30.01904131 | D15: 12 | E15: 2.640947098 | G15: ROCCAGIOVINE | H15: 12 | I15: 35.02824859 | J15: 117 | K15: 0
A16: MANZIANA | B16: 97 | C16: 29.21903977 | D16: 13 | E16: 2.596332166 | G16: OLEVANO ROMANO | H16: 13 | I16: 34.99034749 | J16: 73 | K16: 0.7480694981
A17: CASTELNUOVO DI PORTO | B17: 63 | C17: 31.3388735 | D17: 14 | E17: 2.566943675 | G17: BELLEGRA | H17: 14 | I17: 34.8661234 | J17: 93 | K17: 0.2910360885
A18: ROCCA DI PAPA | B18: 43 | C18: 32.52849741 | D18: 15 | E18: 2.404145078 | G18: ROCCA DI CAVE | H18: 15 | I18: 34.52380952 | J18: 116 | K18: 0
A19: ALBANO LAZIALE | B19: 101 | C19: 28.6682324 | D19: 17 | E19: 2.052131059 | G19: NETTUNO | H19: 16 | I19: 34.4035945 | J19: 48 | K19: 1.164277984
A20: CASTEL GANDOLFO | B20: 114 | C20: 26.38938053 | D20: 18 | E20: 2 | G20: AFFILE | H20: 17 | I20: 34.3189018 | J20: 115 | K20: 0
A21: RIGNANO FLAMINIO | B21: 52 | C21: 31.96803197 | D21: 19 | E21: 1.998001998 | G21: LADISPOLI | H21: 18 | I21: 34.29623568 | J21: 50 | K21: 1.145662848
A22: ANGUILLARA SABAZIA | B22: 83 | C22: 30.14395311 | D22: 20 | E22: 1.896388242 | G22: LICENZA | H22: 19 | I22: 34.26573427 | J22: 114 | K22: 0
A23: ANZIO | B23: 34 | C23: 32.89260428 | D23: 21 | E23: 1.888026387 | G23: VELLETRI | H23: 20 | I23: 34.24412508 | J23: 32 | K23: 1.569727996
A24: MORLUPO | B24: 82 | C24: 30.14476819 | D24: 22 | E24: 1.887483966 | G24: SAN VITO ROMANO | H24: 21 | I24: 34.13775767 | J24: 79 | K24: 0.7038712921
A25: CIVITAVECCHIA | B25: 105 | C25: 28.05813022 | D25: 23 | E25: 1.850898272 | G25: TOLFA | H25: 22 | I25: 34.01908169 | J25: 57 | K25: 0.9242695289
A26: CERVETERI | B26: 56 | C26: 31.87543133 | D26: 24 | E26: 1.828847481 | G26: MONTELIBRETTI | H26: 23 | I26: 33.96497272 | J26: 66 | K26: 0.8326155613
A27: CAMPAGNANO DI ROMA | B27: 61 | C27: 31.60179424 | D27: 25 | E27: 1.823180437 | G27: SANT'ORESTE | H27: 24 | I27: 33.857207 | J27: 86 | K27: 0.5837449484
A28: MARINO | B28: 100 | C28: 28.75932674 | D28: 26 | E28: 1.780322749 | G28: MONTORIO ROMANO | H28: 25 | I28: 33.77926421 | J28: 58 | K28: 0.9197324415
A29: ROCCA PRIORA | B29: 67 | C29: 31.02609166 | D29: 27 | E29: 1.770988238 | G29: SANT'ANGELO ROMANO | H29: 26 | I29: 33.44544096 | J29: 49 | K29: 1.158445441
A30: FIUMICINO | B30: 106 | C30: 28.03318495 | D30: 28 | E30: 1.744233104 | G30: TORRITA TIBERINA | H30: 27 | I30: 33.42736248 | J30: 63 | K30: 0.8462623413
A31: GENZANO DI ROMA | B31: 69 | C31: 30.87363793 | D31: 29 | E31: 1.682278723 | G31: CARPINETO ROMANO | H31: 28 | I31: 33.39793282 | J31: 83 | K31: 0.645994832
A32: FIANO ROMANO | B32: 74 | C32: 30.58799426 | D32: 30 | E32: 1.618520795 | G32: ZAGAROLO | H32: 29 | I32: 33.2952381 | J32: 51 | K32: 1.085714286
A33: MAGLIANO ROMANO | B33: 60 | C33: 31.63265306 | D33: 31 | E33: 1.587301587 | G33: CANALE MONTERANO | H33: 30 | I33: 33.2688588 | J33: 44 | K33: 1.237911025
A34: VELLETRI | B34: 20 | C34: 34.24412508 | D34: 32 | E34: 1.569727996 | G34: TREVIGNANO ROMANO | H34: 31 | I34: 33.11775802 | J34: 6 | K34: 3.718674212
A35: COLLEFERRO | B35: 112 | C35: 27.12210942 | D35: 33 | E35: 1.529892837 | G35: ARSOLI | H35: 32 | I35: 33.06930693 | J35: 34 | K35: 1.485148515
A36: ARSOLI | B36: 32 | C36: 33.06930693 | D36: 34 | E36: 1.485148515 | G36: CAMERATA NUOVA | H36: 33 | I36: 33.06451613 | J36: 113 | K36: 0
A37: MONTE COMPATRI | B37: 77 | C37: 30.39110635 | D37: 35 | E37: 1.459951781 | G37: ANZIO | H37: 34 | I37: 32.89260428 | J37: 21 | K37: 1.888026387
A38: TIVOLI | B38: 80 | C38: 30.21203888 | D38: 36 | E38: 1.459342876 | G38: GALLICANO NEL LAZIO | H38: 35 | I38: 32.81081081 | J38: 80 | K38: 0.7027027027
A39: MONTEROTONDO | B39: 89 | C39: 29.98746248 | D39: 37 | E39: 1.428517154 | G39: VALMONTONE | H39: 36 | I39: 32.78271919 | J39: 74 | K39: 0.7412113511
A40: GUIDONIA MONTECELIO | B40: 92 | C40: 29.68185569 | D40: 38 | E40: 1.426606766 | G40: ARTENA | H40: 37 | I40: 32.77497229 | J40: 84 | K40: 0.6404729647
A41: CAPENA | B41: 71 | C41: 30.77281916 | D41: 39 | E41: 1.415020992 | G41: ALLUMIERE | H41: 38 | I41: 32.76836158 | J41: 87 | K41: 0.4896421846
A42: CASTEL SAN PIETRO ROMANO | B42: 95 | C42: 29.48207171 | D42: 40 | E42: 1.394422311 | G42: FONTE NUOVA | H42: 39 | I42: 32.71578947 | J42: 56 | K42: 0.9473684211
A43: PONZANO ROMANO | B43: 58 | C43: 31.79972936 | D43: 41 | E43: 1.353179973 | G43: GENAZZANO | H43: 40 | I43: 32.70352876 | J43: 65 | K43: 0.8335648791
A44: PALESTRINA | B44: 50 | C44: 32.03573244 | D44: 42 | E44: 1.270971022 | G44: VICOVARO | H44: 41 | I44: 32.54265501 | J44: 89 | K44: 0.4161464836
A45: ARCINAZZO ROMANO | B45: 11 | C45: 35.0678733 | D45: 43 | E45: 1.244343891 | G45: COLONNA | H45: 42 | I45: 32.52923977 | J45: 54 | K45: 1.023391813
A46: CANALE MONTERANO | B46: 30 | C46: 33.2688588 | D46: 44 | E46: 1.237911025 | G46: ROCCA DI PAPA | H46: 43 | I46: 32.52849741 | J46: 15 | K46: 2.404145078
A47: MANDELA | B47: 115 | C47: 25.74955908 | D47: 45 | E47: 1.234567901 | G47: SAN GREGORIO DA SASSOLA | H47: 44 | I47: 32.49272551 | J47: 112 | K47: 0
A48: POMEZIA | B48: 104 | C48: 28.31830824 | D48: 46 | E48: 1.22997986 | G48: LANUVIO | H48: 45 | I48: 32.45572044 | J48: 71 | K48: 0.7778841551
A49: SEGNI | B49: 99 | C49: 29.14461328 | D49: 47 | E49: 1.212224688 | G49: CASAPE | H49: 46 | I49: 32.29398664 | J49: 111 | K49: 0
A50: NETTUNO | B50: 16 | C50: 34.4035945 | D50: 48 | E50: 1.164277984 | G50: MAZZANO ROMANO | H50: 47 | I50: 32.23140496 | J50: 55 | K50: 0.9917355372
A51: SANT'ANGELO ROMANO | B51: 26 | C51: 33.44544096 | D51: 49 | E51: 1.158445441 | G51: CICILIANO | H51: 48 | I51: 32.19339623 | J51: 77 | K51: 0.7075471698
A52: LADISPOLI | B52: 18 | C52: 34.29623568 | D52: 50 | E52: 1.145662848 | G52: GAVIGNANO | H52: 49 | I52: 32.11083945 | J52: 81 | K52: 0.65199674
A53: ZAGAROLO | B53: 29 | C53: 33.2952381 | D53: 51 | E53: 1.085714286 | G53: PALESTRINA | H53: 50 | I53: 32.03573244 | J53: 42 | K53: 1.270971022
A54: CASTEL MADAMA | B54: 75 | C54: 30.51398829 | D54: 52 | E54: 1.084363479 | G54: RIOFREDDO | H54: 51 | I54: 32.01663202 | J54: 110 | K54: 0
A55: LARIANO | B55: 7 | C55: 36.16287975 | D55: 53 | E55: 1.059484299 | G55: RIGNANO FLAMINIO | H55: 52 | I55: 31.96803197 | J55: 19 | K55: 1.998001998
A56: COLONNA | B56: 42 | C56: 32.52923977 | D56: 54 | E56: 1.023391813 | G56: ARDEA | H56: 53 | I56: 31.9519833 | J56: 59 | K56: 0.9081419624
A57: MAZZANO ROMANO | B57: 47 | C57: 32.23140496 | D57: 55 | E57: 0.9917355372 | G57: PISONIANO | H57: 54 | I57: 31.95020747 | J57: 109 | K57: 0
A58: FONTE NUOVA | B58: 39 | C58: 32.71578947 | D58: 56 | E58: 0.9473684211 | G58: CAVE | H58: 55 | I58: 31.92301818 | J58: 70 | K58: 0.7789827402
A59: TOLFA | B59: 22 | C59: 34.01908169 | D59: 57 | E59: 0.9242695289 | G59: CERVETERI | H59: 56 | I59: 31.87543133 | J59: 24 | K59: 1.828847481
A60: MONTORIO ROMANO | B60: 25 | C60: 33.77926421 | D60: 58 | E60: 0.9197324415 | G60: MENTANA | H60: 57 | I60: 31.80700231 | J60: 61 | K60: 0.8825231481
A61: ARDEA | B61: 53 | C61: 31.9519833 | D61: 59 | E61: 0.9081419624 | G61: PONZANO ROMANO | H61: 58 | I61: 31.79972936 | J61: 41 | K61: 1.353179973
A62: NAZZANO | B62: 4 | C62: 36.24161074 | D62: 60 | E62: 0.8948545861 | G62: SANTA MARINELLA | H62: 59 | I62: 31.65549926 | J62: 10 | K62: 2.819088086
A63: MENTANA | B63: 57 | C63: 31.80700231 | D63: 61 | E63: 0.8825231481 | G63: MAGLIANO ROMANO | H63: 60 | I63: 31.63265306 | J63: 31 | K63: 1.587301587
A64: SUBIACO | B64: 85 | C64: 30.08253327 | D64: 62 | E64: 0.8758632306 | G64: CAMPAGNANO DI ROMA | H64: 61 | I64: 31.60179424 | J64: 25 | K64: 1.823180437
A65: TORRITA TIBERINA | B65: 27 | C65: 33.42736248 | D65: 63 | E65: 0.8462623413 | G65: SAN CESAREO | H65: 62 | I65: 31.49322256 | J65: 75 | K65: 0.7324005247
A66: SAN POLO DEI CAVALIERI | B66: 65 | C66: 31.25351321 | D66: 64 | E66: 0.8431703204 | G66: CASTELNUOVO DI PORTO | H66: 63 | I66: 31.3388735 | J66: 14 | K66: 2.566943675
A67: GENAZZANO | B67: 40 | C67: 32.70352876 | D67: 65 | E67: 0.8335648791 | G67: PALOMBARA SABINA | H67: 64 | I67: 31.25378558 | J67: 67 | K67: 0.8237431859
A68: MONTELIBRETTI | B68: 23 | C68: 33.96497272 | D68: 66 | E68: 0.8326155613 | G68: SAN POLO DEI CAVALIERI | H68: 65 | I68: 31.25351321 | J68: 64 | K68: 0.8431703204
A69: PALOMBARA SABINA | B69: 64 | C69: 31.25378558 | D69: 67 | E69: 0.8237431859 | G69: CINETO ROMANO | H69: 66 | I69: 31.17206983 | J69: 108 | K69: 0
A70: CIVITELLA SAN PAOLO | B70: 8 | C70: 36.0455655 | D70: 68 | E70: 0.8136696501 | G70: ROCCA PRIORA | H70: 67 | I70: 31.02609166 | J70: 27 | K70: 1.770988238
A71: ROVIANO | B71: 108 | C71: 27.7027027 | D71: 69 | E71: 0.7882882883 | G71: MONTELANICO | H71: 68 | I71: 30.89195069 | J71: 94 | K71: 0.2900652647
A72: CAVE | B72: 55 | C72: 31.92301818 | D72: 70 | E72: 0.7789827402 | G72: GENZANO DI ROMA | H72: 69 | I72: 30.87363793 | J72: 29 | K72: 1.682278723
A73: LANUVIO | B73: 45 | C73: 32.45572044 | D73: 71 | E73: 0.7778841551 | G73: GORGA | H73: 70 | I73: 30.78470825 | J73: 107 | K73: 0
A74: NEROLA | B74: 78 | C74: 30.3652968 | D74: 72 | E74: 0.7610350076 | G74: CAPENA | H74: 71 | I74: 30.77281916 | J74: 39 | K74: 1.415020992
A75: OLEVANO ROMANO | B75: 13 | C75: 34.99034749 | D75: 73 | E75: 0.7480694981 | G75: SARACINESCO | H75: 72 | I75: 30.68181818 | J75: 106 | K75: 0
A76: VALMONTONE | B76: 36 | C76: 32.78271919 | D76: 74 | E76: 0.7412113511 | G76: NEMI | H76: 73 | I76: 30.66037736 | J76: 9 | K76: 2.908805031
A77: SAN CESAREO | B77: 62 | C77: 31.49322256 | D77: 75 | E77: 0.7324005247 | G77: FIANO ROMANO | H77: 74 | I77: 30.58799426 | J77: 30 | K77: 1.618520795
A78: SAMBUCI | B78: 93 | C78: 29.6625222 | D78: 76 | E78: 0.7104795737 | G78: CASTEL MADAMA | H78: 75 | I78: 30.51398829 | J78: 52 | K78: 1.084363479
A79: CICILIANO | B79: 48 | C79: 32.19339623 | D79: 77 | E79: 0.7075471698 | G79: GERANO | H79: 76 | I79: 30.39702233 | J79: 105 | K79: 0
A80: ANTICOLI CORRADO | B80: 94 | C80: 29.57746479 | D80: 78 | E80: 0.7042253521 | G80: MONTE COMPATRI | H80: 77 | I80: 30.39110635 | J80: 35 | K80: 1.459951781
A81: SAN VITO ROMANO | B81: 21 | C81: 34.13775767 | D81: 79 | E81: 0.7038712921 | G81: NEROLA | H81: 78 | I81: 30.3652968 | J81: 72 | K81: 0.7610350076
A82: GALLICANO NEL LAZIO | B82: 35 | C82: 32.81081081 | D82: 80 | E82: 0.7027027027 | G82: LABICO | H82: 79 | I82: 30.31074885 | J82: 85 | K82: 0.5858380031
A83: GAVIGNANO | B83: 49 | C83: 32.11083945 | D83: 81 | E83: 0.65199674 | G83: TIVOLI | H83: 80 | I83: 30.21203888 | J83: 36 | K83: 1.459342876
A84: MONTEFLAVIO | B84: 120 | C84: 23.45276873 | D84: 82 | E84: 0.651465798 | G84: CERVARA DI ROMA | H84: 81 | I84: 30.18292683 | J84: 104 | K84: 0
A85: CARPINETO ROMANO | B85: 28 | C85: 33.39793282 | D85: 83 | E85: 0.645994832 | G85: MORLUPO | H85: 82 | I85: 30.14476819 | J85: 22 | K85: 1.887483966
A86: ARTENA | B86: 37 | C86: 32.77497229 | D86: 84 | E86: 0.6404729647 | G86: ANGUILLARA SABAZIA | H86: 83 | I86: 30.14395311 | J86: 20 | K86: 1.896388242
A87: LABICO | B87: 79 | C87: 30.31074885 | D87: 85 | E87: 0.5858380031 | G87: FILACCIANO | H87: 84 | I87: 30.12820513 | J87: 103 | K87: 0
A88: SANT'ORESTE | B88: 24 | C88: 33.857207 | D88: 86 | E88: 0.5837449484 | G88: SUBIACO | H88: 85 | I88: 30.08253327 | J88: 62 | K88: 0.8758632306
A89: ALLUMIERE | B89: 38 | C89: 32.76836158 | D89: 87 | E89: 0.4896421846 | G89: JENNE | H89: 86 | I89: 30.07518797 | J89: 102 | K89: 0
A90: MORICONE | B90: 9 | C90: 35.87020649 | D90: 88 | E90: 0.4719764012 | G90: ROCCA CANTERANO | H90: 87 | I90: 30.06535948 | J90: 101 | K90: 0
A91: VICOVARO | B91: 41 | C91: 32.54265501 | D91: 89 | E91: 0.4161464836 | G91: BRACCIANO | H91: 88 | I91: 30.01904131 | J91: 12 | K91: 2.640947098
A92: AGOSTA | B92: 111 | C92: 27.1641791 | D92: 90 | E92: 0.3980099502 | G92: MONTEROTONDO | H92: 89 | I92: 29.98746248 | J92: 37 | K92: 1.428517154
A93: POLI | B93: 6 | C93: 36.17771509 | D93: 91 | E93: 0.3526093089 | G93: SACROFANO | H93: 90 | I93: 29.81802236 | J93: 3 | K93: 5.262003947
A94: MARCELLINA | B94: 10 | C94: 35.3988283 | D94: 92 | E94: 0.3379900856 | G94: RIANO | H94: 91 | I94: 29.68954248 | J94: 8 | K94: 3.039215686
A95: BELLEGRA | B95: 14 | C95: 34.8661234 | D95: 93 | E95: 0.2910360885 | G95: GUIDONIA MONTECELIO | H95: 92 | I95: 29.68185569 | J95: 38 | K95: 1.426606766
A96: MONTELANICO | B96: 68 | C96: 30.89195069 | D96: 94 | E96: 0.2900652647 | G96: SAMBUCI | H96: 93 | I96: 29.6625222 | J96: 76 | K96: 0.7104795737
A97: VALLEPIETRA | B97: 1 | C97: 46.03174603 | D97: 121 | E97: 0 | G97: ANTICOLI CORRADO | H97: 94 | I97: 29.57746479 | J97: 78 | K97: 0.7042253521
A98: VIVARO ROMANO | B98: 2 | C98: 39.25233645 | D98: 120 | E98: 0 | G98: CASTEL SAN PIETRO ROMANO | H98: 95 | I98: 29.48207171 | J98: 40 | K98: 1.394422311
A99: CAPRANICA PRENESTINA | B99: 3 | C99: 38.18181818 | D99: 119 | E99: 0 | G99: ARICCIA | H99: 96 | I99: 29.35356754 | J99: 11 | K99: 2.641066488
A100: PERCILE | B100: 5 | C100: 36.23188406 | D100: 118 | E100: 0 | G100: MANZIANA | H100: 97 | I100: 29.21903977 | J100: 13 | K100: 2.596332166
A101: ROCCAGIOVINE | B101: 12 | C101: 35.02824859 | D101: 117 | E101: 0 | G101: ROCCA SANTO STEFANO | H101: 98 | I101: 29.16666667 | J101: 100 | K101: 0
A102: ROCCA DI CAVE | B102: 15 | C102: 34.52380952 | D102: 116 | E102: 0 | G102: SEGNI | H102: 99 | I102: 29.14461328 | J102: 47 | K102: 1.212224688
A103: AFFILE | B103: 17 | C103: 34.3189018 | D103: 115 | E103: 0 | G103: MARINO | H103: 100 | I103: 28.75932674 | J103: 26 | K103: 1.780322749
A104: LICENZA | B104: 19 | C104: 34.26573427 | D104: 114 | E104: 0 | G104: ALBANO LAZIALE | H104: 101 | I104: 28.6682324 | J104: 17 | K104: 2.052131059
A105: CAMERATA NUOVA | B105: 33 | C105: 33.06451613 | D105: 113 | E105: 0 | G105: FORMELLO | H105: 102 | I105: 28.51625763 | J105: 2 | K105: 5.356920394
A106: SAN GREGORIO DA SASSOLA | B106: 44 | C106: 32.49272551 | D106: 112 | E106: 0 | G106: ROIATE | H106: 103 | I106: 28.36134454 | J106: 99 | K106: 0
A107: CASAPE | B107: 46 | C107: 32.29398664 | D107: 111 | E107: 0 | G107: POMEZIA | H107: 104 | I107: 28.31830824 | J107: 46 | K107: 1.22997986
A108: RIOFREDDO | B108: 51 | C108: 32.01663202 | D108: 110 | E108: 0 | G108: CIVITAVECCHIA | H108: 105 | I108: 28.05813022 | J108: 23 | K108: 1.850898272
A109: PISONIANO | B109: 54 | C109: 31.95020747 | D109: 109 | E109: 0 | G109: FIUMICINO | H109: 106 | I109: 28.03318495 | J109: 28 | K109: 1.744233104
A110: CINETO ROMANO | B110: 66 | C110: 31.17206983 | D110: 108 | E110: 0 | G110: ROMA | H110: 107 | I110: 27.83712122 | J110: 4 | K110: 4.937083976
A111: GORGA | B111: 70 | C111: 30.78470825 | D111: 107 | E111: 0 | G111: ROVIANO | H111: 108 | I111: 27.7027027 | J111: 69 | K111: 0.7882882883
A112: SARACINESCO | B112: 72 | C112: 30.68181818 | D112: 106 | E112: 0 | G112: CANTERANO | H112: 109 | I112: 27.63157895 | J112: 98 | K112: 0
A113: GERANO | B113: 76 | C113: 30.39702233 | D113: 105 | E113: 0 | G113: FRASCATI | H113: 110 | I113: 27.42283327 | J113: 7 | K113: 3.389944736
A114: CERVARA DI ROMA | B114: 81 | C114: 30.18292683 | D114: 104 | E114: 0 | G114: AGOSTA | H114: 111 | I114: 27.1641791 | J114: 90 | K114: 0.3980099502
A115: FILACCIANO | B115: 84 | C115: 30.12820513 | D115: 103 | E115: 0 | G115: COLLEFERRO | H115: 112 | I115: 27.12210942 | J115: 33 | K115: 1.529892837
A116: JENNE | B116: 86 | C116: 30.07518797 | D116: 102 | E116: 0 | G116: GROTTAFERRATA | H116: 113 | I116: 26.42463582 | J116: 1 | K116: 5.811759378
A117: ROCCA CANTERANO | B117: 87 | C117: 30.06535948 | D117: 101 | E117: 0 | G117: CASTEL GANDOLFO | H117: 114 | I117: 26.38938053 | J117: 18 | K117: 2
A118: ROCCA SANTO STEFANO | B118: 98 | C118: 29.16666667 | D118: 100 | E118: 0 | G118: MANDELA | H118: 115 | I118: 25.74955908 | J118: 45 | K118: 1.234567901
A119: ROIATE | B119: 103 | C119: 28.36134454 | D119: 99 | E119: 0 | G119: CERRETO LAZIALE | H119: 116 | I119: 25.69906791 | J119: 97 | K119: 0
A120: CANTERANO | B120: 109 | C120: 27.63157895 | D120: 98 | E120: 0 | G120: MONTE PORZIO CATONE | H120: 117 | I120: 25.4529767 | J120: 5 | K120: 3.848144953
A121: CERRETO LAZIALE | B121: 116 | C121: 25.69906791 | D121: 97 | E121: 0 | G121: VALLINFREDA | H121: 119 | I121: 25.14285714 | J121: 96 | K121: 0
A122: VALLINFREDA | B122: 119 | C122: 25.14285714 | D122: 96 | E122: 0 | G122: MONTEFLAVIO | H122: 120 | I122: 23.45276873 | J122: 82 | K122: 0.651465798
A123: MARANO EQUO | B123: 121 | C123: 19.69981238 | D123: 95 | E123: 0 | G123: MARANO EQUO | H123: 121 | I123: 19.69981238 | J123: 95 | K123: 0

Sheet Grafico agio e disagio
A1500: Comune | B1500: Disagio | C1500: Agio
A1501: VALLEPIETRA | B1501: 46.03174603 | C1501: 0 | D1501: =(C1501)-(C1501*2) -> 0
A1502: VIVARO ROMANO | B1502: 39.25233645 | C1502: 0 | D1502: 0
A1503: CAPRANICA PRENESTINA | B1503: 38.18181818 | C1503: 0 | D1503: 0
A1504: NAZZANO | B1504: 36.24161074 | C1504: 0.8948545861 | D1504: =(C1504)-(C1504*2) -> -0.8948545861
A1505: PERCILE | B1505: 36.23188406 | C1505: 0 | D1505: =(C1505)-(C1505*2) -> 0
A1506: POLI | B1506: 36.17771509 | C1506: 0.3526093089 | D1506: -0.3526093089
A1507: LARIANO | B1507: 36.16287975 | C1507: 1.059484299 | D1507: -1.059484299
A1508: CIVITELLA SAN PAOLO | B1508: 36.0455655 | C1508: 0.8136696501 | D1508: -0.8136696501
A1509: MORICONE | B1509: 35.87020649 | C1509: 0.4719764012 | D1509: -0.4719764012
A1510: MARCELLINA | B1510: 35.3988283 | C1510: 0.3379900856 | D1510: -0.3379900856
A1511: ARCINAZZO ROMANO | B1511: 35.0678733 | C1511: 1.244343891 | D1511: -1.244343891
A1512: ROCCAGIOVINE | B1512: 35.02824859 | C1512: 0 | D1512: 0
A1513: OLEVANO ROMANO | B1513: 34.99034749 | C1513: 0.7480694981 | D1513: -0.7480694981
A1514: BELLEGRA | B1514: 34.8661234 | C1514: 0.2910360885 | D1514: -0.2910360885
A1515: ROCCA DI CAVE | B1515: 34.52380952 | C1515: 0 | D1515: 0
A1516: NETTUNO | B1516: 34.4035945 | C1516: 1.164277984 | D1516: -1.164277984
A1517: AFFILE | B1517: 34.3189018 | C1517: 0 | D1517: 0
A1518: LADISPOLI | B1518: 34.29623568 | C1518: 1.145662848 | D1518: -1.145662848
A1519: LICENZA | B1519: 34.26573427 | C1519: 0 | D1519: 0
A1520: VELLETRI | B1520: 34.24412508 | C1520: 1.569727996 | D1520: -1.569727996
A1521: SAN VITO ROMANO | B1521: 34.13775767 | C1521: 0.7038712921 | D1521: -0.7038712921
A1522: TOLFA | B1522: 34.01908169 | C1522: 0.9242695289 | D1522: -0.9242695289
A1523: MONTELIBRETTI | B1523: 33.96497272 | C1523: 0.8326155613 | D1523: -0.8326155613
A1524: SANT'ORESTE | B1524: 33.857207 | C1524: 0.5837449484 | D1524: -0.5837449484
A1525: MONTORIO ROMANO | B1525: 33.77926421 | C1525: 0.9197324415 | D1525: -0.9197324415
A1526: SANT'ANGELO ROMANO | B1526: 33.44544096 | C1526: 1.158445441 | D1526: -1.158445441
A1527: TORRITA TIBERINA | B1527: 33.42736248 | C1527: 0.8462623413 | D1527: -0.8462623413
A1528: CARPINETO ROMANO | B1528: 33.39793282 | C1528: 0.645994832 | D1528: -0.645994832
A1529: ZAGAROLO | B1529: 33.2952381 | C1529: 1.085714286 | D1529: -1.085714286
A1530: CANALE MONTERANO | B1530: 33.2688588 | C1530: 1.237911025 | D1530: -1.237911025
A1531: TREVIGNANO ROMANO | B1531: 33.11775802 | C1531: 3.718674212 | D1531: -3.718674212
A1532: ARSOLI | B1532: 33.06930693 | C1532: 1.485148515 | D1532: -1.485148515
A1533: CAMERATA NUOVA | B1533: 33.06451613 | C1533: 0 | D1533: 0
A1534: ANZIO | B1534: 32.89260428 | C1534: 1.888026387 | D1534: -1.888026387
A1535: GALLICANO NEL LAZIO | B1535: 32.81081081 | C1535: 0.7027027027 | D1535: -0.7027027027
A1536: VALMONTONE | B1536: 32.78271919 | C1536: 0.7412113511 | D1536: -0.7412113511
A1537: ARTENA | B1537: 32.77497229 | C1537: 0.6404729647 | D1537: -0.6404729647
A1538: ALLUMIERE | B1538: 32.76836158 | C1538: 0.4896421846 | D1538: -0.4896421846
A1539: FONTE NUOVA | B1539: 32.71578947 | C1539: 0.9473684211 | D1539: -0.9473684211
A1540: GENAZZANO | B1540: 32.70352876 | C1540: 0.8335648791 | D1540: -0.8335648791
A1541: VICOVARO | B1541: 32.54265501 | C1541: 0.4161464836 | D1541: -0.4161464836
A1542: COLONNA | B1542: 32.52923977 | C1542: 1.023391813 | D1542: -1.023391813
A1543: ROCCA DI PAPA | B1543: 32.52849741 | C1543: 2.404145078 | D1543: -2.404145078
A1544: SAN GREGORIO DA SASSOLA | B1544: 32.49272551 | C1544: 0 | D1544: 0
A1545: LANUVIO | B1545: 32.45572044 | C1545: 0.7778841551 | D1545: -0.7778841551
A1546: CASAPE | B1546: 32.29398664 | C1546: 0 | D1546: 0
A1547: MAZZANO ROMANO | B1547: 32.23140496 | C1547: 0.9917355372 | D1547: -0.9917355372
A1548: CICILIANO | B1548: 32.19339623 | C1548: 0.7075471698 | D1548: -0.7075471698
A1549: GAVIGNANO | B1549: 32.11083945 | C1549: 0.65199674 | D1549: -0.65199674
A1550: PALESTRINA | B1550: 32.03573244 | C1550: 1.270971022 | D1550: -1.270971022
A1551: RIOFREDDO | B1551: 32.01663202 | C1551: 0 | D1551: 0
A1552: RIGNANO FLAMINIO | B1552: 31.96803197 | C1552: 1.998001998 | D1552: -1.998001998
A1553: ARDEA | B1553: 31.9519833 | C1553: 0.9081419624 | D1553: -0.9081419624
A1554: PISONIANO | B1554: 31.95020747 | C1554: 0 | D1554: 0
A1555: CAVE | B1555: 31.92301818 | C1555: 0.7789827402 | D1555: -0.7789827402
A1556: CERVETERI | B1556: 31.87543133 | C1556: 1.828847481 | D1556: -1.828847481
A1557: MENTANA | B1557: 31.80700231 | C1557: 0.8825231481 | D1557: -0.8825231481
A1558: PONZANO ROMANO | B1558: 31.79972936 | C1558: 1.353179973 | D1558: -1.353179973
A1559: SANTA MARINELLA | B1559: 31.65549926 | C1559: 2.819088086 | D1559: -2.819088086
A1560: MAGLIANO ROMANO | B1560: 31.63265306 | C1560: 1.587301587 | D1560: -1.587301587
A1561: CAMPAGNANO DI ROMA | B1561: 31.60179424 | C1561: 1.823180437 | D1561: -1.823180437
A1562: SAN CESAREO | B1562: 31.49322256 | C1562: 0.7324005247 | D1562: -0.7324005247
A1563: CASTELNUOVO DI PORTO | B1563: 31.3388735 | C1563: 2.566943675 | D1563: -2.566943675
A1564: PALOMBARA SABINA | B1564: 31.25378558 | C1564: 0.8237431859 | D1564: -0.8237431859
A1565: SAN POLO DEI CAVALIERI | B1565: 31.25351321 | C1565: 0.8431703204 | D1565: -0.8431703204
A1566: CINETO ROMANO | B1566: 31.17206983 | C1566: 0 | D1566: 0
A1567: ROCCA PRIORA | B1567: 31.02609166 | C1567: 1.770988238 | D1567: -1.770988238
A1568: MONTELANICO | B1568: 30.89195069 | C1568: 0.2900652647 | D1568: -0.2900652647
A1569: GENZANO DI ROMA | B1569: 30.87363793 | C1569: 1.682278723 | D1569: =(C1569)-(C1569*2) -> -1.682278723
A1570: GORGA | B1570: 30.78470825 | C1570: 0 | D1570: 0
A1571: CAPENA | B1571: 30.77281916 | C1571: 1.415020992 | D1571: -1.415020992
A1572: SARACINESCO | B1572: 30.68181818 | C1572: 0 | D1572: 0
A1573: NEMI | B1573: 30.66037736 | C1573: 2.908805031 | D1573: -2.908805031
A1574: FIANO ROMANO | B1574: 30.58799426 | C1574: 1.618520795 | D1574: -1.618520795
A1575: CASTEL MADAMA | B1575: 30.51398829 | C1575: 1.084363479 | D1575: -1.084363479
A1576: GERANO | B1576: 30.39702233 | C1576: 0 | D1576: 0
A1577: MONTE COMPATRI | B1577: 30.39110635 | C1577: 1.459951781 | D1577: -1.459951781
A1578: NEROLA | B1578: 30.3652968 | C1578: 0.7610350076 | D1578: -0.7610350076
A1579: LABICO | B1579: 30.31074885 | C1579: 0.5858380031 | D1579: -0.5858380031
A1580: TIVOLI | B1580: 30.21203888 | C1580: 1.459342876 | D1580: -1.459342876
A1581: CERVARA DI ROMA | B1581: 30.18292683 | C1581: 0 | D1581: 0
A1582: MORLUPO | B1582: 30.14476819 | C1582: 1.887483966 | D1582: -1.887483966
A1583: ANGUILLARA SABAZIA | B1583: 30.14395311 | C1583: 1.896388242 | D1583: -1.896388242
A1584: FILACCIANO | B1584: 30.12820513 | C1584: 0 | D1584: 0
A1585: SUBIACO | B1585: 30.08253327 | C1585: 0.8758632306 | D1585: -0.8758632306
A1586: JENNE | B1586: 30.07518797 | C1586: 0 | D1586: 0
A1587: ROCCA CANTERANO | B1587: 30.06535948 | C1587: 0 | D1587: 0
A1588: BRACCIANO | B1588: 30.01904131 | C1588: 2.640947098 | D1588: -2.640947098
A1589: MONTEROTONDO | B1589: 29.98746248 | C1589: 1.428517154 | D1589: -1.428517154
A1590: SACROFANO | B1590: 29.81802236 | C1590: 5.262003947 | D1590: -5.262003947
A1591: RIANO | B1591: 29.68954248 | C1591: 3.039215686 | D1591: -3.039215686
A1592: GUIDONIA MONTECELIO | B1592: 29.68185569 | C1592: 1.426606766 | D1592: -1.426606766
A1593: SAMBUCI | B1593: 29.6625222 | C1593: 0.7104795737 | D1593: -0.7104795737
A1594: ANTICOLI CORRADO | B1594: 29.57746479 | C1594: 0.7042253521 | D1594: -0.7042253521
A1595: CASTEL SAN PIETRO ROMANO | B1595: 29.48207171 | C1595: 1.394422311 | D1595: -1.394422311
A1596: ARICCIA | B1596: 29.35356754 | C1596: 2.641066488 | D1596: -2.641066488
A1597: MANZIANA | B1597: 29.21903977 | C1597: 2.596332166 | D1597: -2.596332166
A1598: ROCCA SANTO STEFANO | B1598: 29.16666667 | C1598: 0 | D1598: 0
A1599: SEGNI | B1599: 29.14461328 | C1599: 1.212224688 | D1599: -1.212224688
A1600: MARINO | B1600: 28.75932674 | C1600: 1.780322749 | D1600: -1.780322749
A1601: ALBANO LAZIALE | B1601: 28.6682324 | C1601: 2.052131059 | D1601: -2.052131059
A1602: FORMELLO | B1602: 28.51625763 | C1602: 5.356920394 | D1602: -5.356920394
A1603: ROIATE | B1603: 28.36134454 | C1603: 0 | D1603: 0
A1604: POMEZIA | B1604: 28.31830824 | C1604: 1.22997986 | D1604: -1.22997986
A1605: CIVITAVECCHIA | B1605: 28.05813022 | C1605: 1.850898272 | D1605: -1.850898272
A1606: FIUMICINO | B1606: 28.03318495 | C1606: 1.744233104 | D1606: -1.744233104
A1607: ROMA | B1607: 27.83712122 | C1607: 4.937083976 | D1607: -4.937083976
A1608: ROVIANO | B1608: 27.7027027 | C1608: 0.7882882883 | D1608: -0.7882882883
A1609: CANTERANO | B1609: 27.63157895 | C1609: 0 | D1609: 0
A1610: FRASCATI | B1610: 27.42283327 | C1610: 3.389944736 | D1610: -3.389944736
A1611: AGOSTA | B1611: 27.1641791 | C1611: 0.3980099502 | D1611: -0.3980099502
A1612: COLLEFERRO | B1612: 27.12210942 | C1612: 1.529892837 | D1612: -1.529892837
A1613: GROTTAFERRATA | B1613: 26.42463582 | C1613: 5.811759378 | D1613: -5.811759378
A1614: CASTEL GANDOLFO | B1614: 26.38938053 | C1614: 2 | D1614: -2
A1615: MANDELA | B1615: 25.74955908 | C1615: 1.234567901 | D1615: -1.234567901
A1616: CERRETO LAZIALE | B1616: 25.69906791 | C1616: 0 | D1616: 0
A1617: MONTE PORZIO CATONE | B1617: 25.4529767 | C1617: 3.848144953 | D1617: -3.848144953
A1618: CIAMPINO | B1618: 25.17132952 | C1618: 2.378456825 | D1618: -2.378456825
A1619: VALLINFREDA | B1619: 25.14285714 | C1619: 0 | D1619: 0
A1620: MONTEFLAVIO | B1620: 23.45276873 | C1620: 0.651465798 | D1620: -0.651465798
A1621: MARANO EQUO | B1621: 19.69981238 | C1621: 0 | D1621: 0
A1622: media | B1622: =AVERAGE(B1501:B1621) -> 31.38737862 | C1622: =AVERAGE(C1501:C1621) -> 1.168615587
A1623: correl | B1623: =CORREL(B1501:B1621,C1501:C1621) -> -0.3044356264 | C1623: =CORREL(C1501:C1621,D1501:D1621) -> -1
A1624: mediana | B1624: =MEDIAN(B1501:B1621) -> 31.60179424 | C1624: =MEDIAN(C1501:C1621) -> 0.8825231481
A1625: Varanza | B1625: =_xlfn.VAR.P(B1501:B1621) -> 10.80392806 | C1625: =_xlfn.VAR.P(C1501:C1621) -> 1.355393961
B1626: =LINEST(B1501:B1621) -> -0.08673604724 | C1626: =LINEST(C1501:C1621) -> 0.01156325855
